{"text_format":"3","workbook":"xlsx","n_sheets":5,"sheets":["表1 機關別勞務標","表2 機關別工程標","表3勞務標(工程類別)","表4工程標(工程類別)","節能減碳檢核明細"],"not_rendered":{"defined_names":8},"read":"whole","date_system":"1900"}

{"sheet":"表1 機關別勞務標","index":0,"n_rows":46,"n_cols":15,"rows_kept":46,"merged":[[0,0,0,1],[0,2,0,7],[0,8,1,14],[1,0,2,0],[1,1,2,1],[1,2,2,2],[1,3,1,5],[1,6,1,7]]}
[null,null,"應辦理節能減碳檢核辦理情形統計",{"$nulls":5},"不需辦理節能減碳檢核原因統計(原因可複選)"]
["機關別","決標\n總件數\n(A)\n(A = C+D+F)","應辦理件數(B)\n(B = A-F)","已依規定辦理情形",null,null,"未依規定辦理情形"]
[{"$nulls":3},"依規定辦理節能減碳檢核之件數\n(C)","計畫提報核定階段納入辦理節能減碳檢核件數","規劃設計階段納入辦理節能減碳檢核件數","未依規定於計畫提報核定、規劃設計階段納入辦理節能減碳檢核件數\n(D)","未依規定辦理節能減碳檢核件數比率%(E)\n(E = D/B)","不需辦理節能減碳檢核之件數\n(F)","非中央政府辦理新臺幣一億元以上之公共工程之件數","非受中央政府補助比率逾工程建造經費百分之五十且補助經費達新臺幣一億元以上之個案公共工程之件數","災後緊急處理、搶修、搶險之件數","災後原地復建之件數","整修工程、拆除工程、疏濬工程、結構補強工程之件數","規劃取得綠建築標章之建築工程之件數"]
["中央研究院 ",2,0,0,0,0,0,{"$f":"IF(D4+G4=0,0,G4/(D4+G4))","v":{"v":0,"d":"0%"}},2,1,0,0,0,0,1]
["內政部 ",10,1,1,0,1,0,{"v":0,"d":"0%"},9,2,1,2,1,6,0]
["外交部 ",2,0,0,0,0,0,{"v":0,"d":"0%"},2,0,0,0,0,2,0]
["國防部 ",14,1,1,0,1,0,{"v":0,"d":"0%"},13,4,1,0,0,8,0]
["財政部 ",5,0,0,0,0,0,{"v":0,"d":"0%"},5,4,1,0,0,1,0]
["教育部 ",24,0,0,0,0,0,{"v":0,"d":"0%"},24,9,3,0,0,18,0]
["經濟部 ",26,2,2,0,2,0,{"v":0,"d":"0%"},24,18,6,1,0,3,1]
["交通部 ",40,2,2,0,2,0,{"v":0,"d":"0%"},38,23,5,1,0,12,3]
["勞動部 ",2,0,0,0,0,0,{"v":0,"d":"0%"},2,2,0,0,0,1,0]
["農業部 ",26,1,1,0,1,0,{"v":0,"d":"0%"},25,21,7,1,0,3,1]
["衛生福利部 ",8,0,0,0,0,0,{"v":0,"d":"0%"},8,5,4,0,0,7,0]
["環境部 ",2,0,0,0,0,0,{"v":0,"d":"0%"},2,0,0,0,0,2,0]
["文化部 ",4,0,0,0,0,0,{"v":0,"d":"0%"},4,4,0,0,0,0,0]
["國家科學及技術委員會 ",1,0,0,0,0,0,{"v":0,"d":"0%"},1,0,0,0,0,1,0]
["海洋委員會 ",1,0,0,0,0,0,{"v":0,"d":"0%"},1,0,0,0,0,0,1]
["國軍退除役官兵輔導委員會 ",5,0,0,0,0,0,{"v":0,"d":"0%"},5,3,1,0,0,1,1]
["行政院主計總處 ",1,0,0,0,0,0,{"v":0,"d":"0%"},1,0,0,0,0,1,0]
["國立故宮博物院 ",1,0,0,0,0,0,{"v":0,"d":"0%"},1,1,0,0,0,0,0]
["臺灣高等法院 ",1,0,0,0,0,0,{"v":0,"d":"0%"},1,1,0,0,0,0,0]
["臺北市政府 ",27,0,0,0,0,0,{"v":0,"d":"0%"},27,13,15,0,0,10,2]
["高雄市政府 ",36,1,1,1,0,0,{"v":0,"d":"0%"},35,17,18,0,0,13,0]
["新北市政府 ",71,1,1,0,1,0,{"v":0,"d":"0%"},70,30,23,11,2,27,3]
["宜蘭縣政府 ",19,3,3,1,3,0,{"v":0,"d":"0%"},16,4,3,2,1,9,0]
["桃園市政府 ",28,1,1,0,1,0,{"v":0,"d":"0%"},27,15,8,0,4,9,0]
["新竹縣政府 ",18,0,0,0,0,0,{"v":0,"d":"0%"},18,11,7,0,1,6,0]
["苗栗縣政府 ",32,1,1,0,1,0,{"v":0,"d":"0%"},31,20,10,2,2,5,0]
["彰化縣政府 ",23,0,0,0,0,0,{"v":0,"d":"0%"},23,11,6,1,1,13,0]
["南投縣政府 ",50,0,0,0,0,0,{"v":0,"d":"0%"},50,24,17,3,10,28,0]
["雲林縣政府 ",43,0,0,0,0,0,{"v":0,"d":"0%"},43,21,15,0,1,20,0]
["嘉義縣政府 ",13,1,1,0,1,0,{"v":0,"d":"0%"},12,7,6,0,1,3,0]
["屏東縣政府 ",28,0,0,0,0,0,{"v":0,"d":"0%"},28,10,10,3,2,12,2]
["臺東縣政府 ",4,0,0,0,0,0,{"v":0,"d":"0%"},4,1,2,0,0,2,0]
["花蓮縣政府 ",9,0,0,0,0,0,{"v":0,"d":"0%"},9,5,1,0,0,5,0]
["澎湖縣政府 ",3,0,0,0,0,0,{"v":0,"d":"0%"},3,1,1,0,0,3,0]
["基隆市政府 ",7,0,0,0,0,0,{"v":0,"d":"0%"},7,5,1,0,1,1,0]
["新竹市政府 ",16,2,2,0,2,0,{"v":0,"d":"0%"},14,9,4,0,0,4,1]
["臺中市政府 ",90,0,0,0,0,0,{"v":0,"d":"0%"},90,49,31,6,1,41,2]
["嘉義市政府 ",10,0,0,0,0,0,{"v":0,"d":"0%"},10,6,3,0,0,6,1]
["臺南市政府 ",30,1,1,1,0,0,{"v":0,"d":"0%"},29,15,12,1,0,14,0]
["連江縣政府 ",5,1,1,0,1,0,{"v":0,"d":"0%"},4,2,2,0,0,0,2]
["金門縣政府 ",4,2,2,0,2,0,{"v":0,"d":"0%"},2,1,2,0,0,0,0]
["其他(法人團體) ",7,0,0,0,0,0,{"v":0,"d":"0%"},7,2,3,0,0,3,0]
["合計",{"$f":"SUM(B4:B45)","v":748},21,21,3,19,0,{"v":0,"d":"0%"},{"$f":"SUM(I4:I45)","v":727},377,229,34,28,300,21]

{"sheet":"表2 機關別工程標","index":1,"n_rows":27,"n_cols":16,"rows_kept":27,"merged":[[0,0,0,1],[0,2,0,7],[0,8,1,14],[0,15,1,15],[1,0,2,0],[1,1,2,1],[1,2,2,2],[1,3,1,5],[1,6,1,7]]}
[null,null,"應辦理節能減碳檢核辦理情形統計",{"$nulls":5},"不需辦理節能減碳檢核原因統計(原因可複選)",{"$nulls":6},"備註"]
["機關別","決標\n總件數\n(A)\n(A = C+D+F)","應辦理件數(B)\n(B = A-F)","已依規定辦理情形",null,null,"未依規定辦理情形"]
[{"$nulls":3},"依規定辦理節能減碳檢核之件數\n(C)","計畫提報核定階段納入辦理節能減碳檢核件數","規劃設計階段納入辦理節能減碳檢核件數","未依規定於計畫提報核定、規劃設計階段納入辦理節能減碳檢核件數\n(D)","未依規定辦理節能減碳檢核件數比率%(E)\n(E = D/B)","不需辦理節能減碳檢核之件數\n(F)","非中央政府辦理新臺幣一億元以上之公共工程之件數","非受中央政府補助比率逾工程建造經費百分之五十且補助經費達新臺幣一億元以上之個案公共工程之件數","災後緊急處理、搶修、搶險之件數","災後原地復建之件數","整修工程、拆除工程、疏濬工程、結構補強工程之件數","規劃取得綠建築標章之建築工程之件數","為公共工程節能減碳檢核注意事項公布前核定案件"]
["內政部 ",2,0,0,0,0,0,{"$f":"IF(D4+G4=0,0,G4/(D4+G4))","v":{"v":0,"d":"0%"}},2,0,1,0,0,0,2,0]
["國防部 ",1,0,0,0,0,0,{"v":0,"d":"0%"},1,0,0,0,0,1,0,0]
["教育部 ",2,0,0,0,0,0,{"v":0,"d":"0%"},2,0,0,0,0,1,1,0]
["經濟部 ",5,3,3,1,2,0,{"v":0,"d":"0%"},2,1,0,0,0,0,0,1]
["交通部 ",7,2,2,2,1,0,{"v":0,"d":"0%"},5,1,1,0,0,2,0,1]
["文化部 ",1,0,0,0,0,0,{"v":0,"d":"0%"},1,0,0,0,0,1,0,0]
["國家發展委員會 ",1,0,0,0,0,0,{"v":0,"d":"0%"},1,0,0,0,0,1,0,0]
["國軍退除役官兵輔導委員會 ",1,0,0,0,0,0,{"v":0,"d":"0%"},1,0,0,0,0,0,1,0]
["臺北市政府 ",1,0,0,0,0,0,{"v":0,"d":"0%"},1,0,0,0,0,1,0,0]
["高雄市政府 ",3,1,1,0,1,0,{"v":0,"d":"0%"},2,1,1,0,0,0,0,0]
["新北市政府 ",3,1,1,0,1,0,{"v":0,"d":"0%"},2,0,1,0,0,0,1,0]
["宜蘭縣政府 ",1,0,0,0,0,0,{"v":0,"d":"0%"},1,0,0,0,0,1,0,0]
["桃園市政府 ",1,1,1,0,1,0,{"v":0,"d":"0%"},0,0,0,0,0,0,0,0]
["新竹縣政府 ",1,1,1,0,1,0,{"v":0,"d":"0%"},0,0,0,0,0,0,0,0]
["苗栗縣政府 ",1,0,0,0,0,0,{"v":0,"d":"0%"},1,0,0,0,1,1,0,0]
["雲林縣政府 ",2,1,1,1,1,0,{"v":0,"d":"0%"},1,0,1,0,0,1,0,0]
["嘉義縣政府 ",1,0,0,0,0,0,{"v":0,"d":"0%"},1,0,0,0,0,0,1,0]
["屏東縣政府 ",1,0,0,0,0,0,{"v":0,"d":"0%"},1,0,1,0,0,0,0,0]
["花蓮縣政府 ",1,0,0,0,0,0,{"v":0,"d":"0%"},1,1,0,0,0,0,0,0]
["澎湖縣政府 ",1,0,0,0,0,0,{"v":0,"d":"0%"},1,0,1,0,0,0,0,0]
["新竹市政府 ",1,1,1,0,1,0,{"v":0,"d":"0%"},0,0,0,0,0,0,0,0]
["臺中市政府 ",1,0,0,0,0,0,{"v":0,"d":"0%"},1,0,0,0,0,0,1,0]
["臺南市政府 ",4,0,0,0,0,0,{"v":0,"d":"0%"},4,1,0,0,0,1,3,0]
["合計",{"$f":"SUM(B4:B26)","v":43},11,11,4,9,0,{"$f":"IF(D27+G27=0,0,G27/(D27+G27))","v":{"v":0,"d":"0%"}},{"$f":"SUM(I4:I26)","v":32},5,7,0,1,11,10,2]

{"sheet":"表3勞務標(工程類別)","index":2,"n_rows":11,"n_cols":15,"rows_kept":11,"merged":[[0,0,0,1],[0,2,0,7],[0,8,1,14],[1,0,2,0],[1,1,2,1],[1,2,2,2],[1,3,1,5],[1,6,1,7],[10,0,10,14]]}
[null,null,"應辦理節能減碳檢核辦理情形統計",{"$nulls":5},"不需辦理節能減碳檢核原因統計(原因可複選)"]
["機關別","決標\n總件數\n(A)\n(A = C+D+F)","應辦理件數(B)\n(B = A-F)","已依規定辦理情形",null,null,"未依規定辦理情形"]
[{"$nulls":3},"依規定辦理節能減碳檢核之件數\n(C)","計畫提報核定階段納入辦理節能減碳檢核件數\n","規劃設計階段納入辦理節能減碳檢核件數\n","未依規定於計畫提報核定、規劃設計階段納入辦理節能減碳檢核件數\n(D)","未依規定辦理節能減碳檢核件數比率%\n(E)\n(E = D/B)","不需辦理節能減碳檢核之件數\n(F)","非中央政府辦理新臺幣一億元以上之公共工程之件數","非受中央政府補助比率逾工程建造經費百分之五十且補助經費達新臺幣一億元以上之個案公共工程之件數","災後緊急處理、搶修、搶險之件數","災後原地復建之件數","整修工程、拆除工程、疏濬工程、結構補強工程之件數","規劃取得綠建築標章之建築工程之件數"]
["建築服務 ",188,2,2,0,2,0,{"$f":"IF(D4+G4=0,0,G4/(D4+G4))","v":{"v":0,"d":"0%"}},186,89,47,2,6,101,12]
["工程服務 ",468,14,14,1,13,0,{"v":0,"d":"0%"},454,241,150,30,20,170,7]
["綜合工程服務 ",69,4,4,1,4,0,{"v":0,"d":"0%"},65,32,21,2,2,25,2]
["都市計劃及景觀建築服務 ",23,1,1,1,0,0,{"v":0,"d":"0%"},22,15,11,0,0,4,0]
["合計",{"$f":"SUM(B4:B7)","v":748},21,21,3,19,0,{"$f":"IF(D8+G8=0,0,G8/(D8+G8))","v":{"v":0,"d":"0%"}},{"$f":"SUM(I4:I7)","v":727},377,229,34,28,300,21]
[]
[]
["備註：\n1.標的分類為「8671建築服務」、「8672工程服務」、「8673綜合工程服務」、「8674都市計劃及景觀建築服務」。\n2.各機關節能減碳檢核辦理情形係依據各機關所填之決標公告。"]

{"sheet":"表4工程標(工程類別)","index":3,"n_rows":11,"n_cols":16,"rows_kept":11,"merged":[[0,0,0,1],[0,2,0,7],[0,8,1,14],[0,15,1,15],[1,0,2,0],[1,1,2,1],[1,2,2,2],[1,3,1,5],[1,6,1,7],[10,0,10,14]]}
[null,null,"應辦理節能減碳檢核辦理情形統計",{"$nulls":5},"不需辦理節能減碳檢核原因統計(原因可複選)",{"$nulls":6},"備註"]
["機關別","決標\n總件數\n(A)\n(A = C+D+F)","應辦理件數(B)\n(B = A-F)","已依規定辦理情形",null,null,"未依規定辦理情形"]
[{"$nulls":3},"依規定辦理節能減碳檢核之件數\n(C)","計畫提報核定階段納入辦理節能減碳檢核件數\n","規劃設計階段納入辦理節能減碳檢核件數\n","未依規定於計畫提報核定、規劃設計階段納入辦理節能減碳檢核件數\n(D)","未依規定辦理節能減碳檢核件數比率%\n(E)\n(E = D/B)","不需辦理節能減碳檢核之件數\n(F)","非中央政府辦理新臺幣一億元以上之公共工程之件數","非受中央政府補助比率逾工程建造經費百分之五十且補助經費達新臺幣一億元以上之個案公共工程之件數","災後緊急處理、搶修、搶險之件數","災後原地復建之件數","整修工程、拆除工程、疏濬工程、結構補強工程之件數","規劃取得綠建築標章之建築工程之件數","為公共工程節能減碳檢核注意事項公布前核定案件"]
["交通工程 ",6,2,2,1,1,0,{"$f":"IF(D4+G4=0,0,G4/(D4+G4))","v":{"v":0,"d":"0%"}},4,0,1,0,0,2,0,1]
["水利工程 ",2,2,2,1,2,0,{"v":0,"d":"0%"},0,0,0,0,0,0,0,0]
["建築工程 ",26,5,5,1,5,0,{"v":0,"d":"0%"},21,3,6,0,1,6,8,0]
["其他土木工程 ",9,2,2,1,1,0,{"v":0,"d":"0%"},7,2,0,0,0,3,2,1]
["合計",{"$f":"SUM(B4:B7)","v":43},11,11,4,9,0,{"$f":"IF(D8+G8=0,0,G8/(D8+G8))","v":{"v":0,"d":"0%"}},{"$f":"SUM(I4:I7)","v":32},5,7,0,1,11,10,2]
[]
[]
["備註：\n1.交通工程類：依政府採購標的分類代碼表，代碼5131~5132。\n2.水利工程類：依政府採購標的分類代碼表，代碼5133。\n3.建築工程類：依政府採購標的分類代碼表，代碼5121~5129、5153、5161~5165、5171~5175、5177~5180。\n4.其他土木工程類：依政府採購標的分類代碼表，代碼5134~5137、5139~5140、5151~5152、5154~5159、5166、5169、5176。\n5.各機關節能減碳檢核辦理情形係依據各機關所填之決標公告。"]

{"sheet":"節能減碳檢核明細","index":4,"n_rows":793,"n_cols":16,"rows_kept":793}
["項次","主管機關","機關名稱","補助機關","標案名稱","採購性質","標的分類名稱","預算金額","決標金額","決標日期","決標公告\n日期","履約地點","節能減碳\n檢核狀態","已依規定辦理節能減碳檢核","不需辦理節能減碳\n檢核原因","是否為複數決標"]
["1","中央研究院 ","中央研究院 ","無 ","中央研究院南部院區全區公共工程及第1棟建築興建工程委託規劃設計及監造技術服務採購案第1次契約變更 ","勞務","建築服務 ","2736935","2690000","112/09/23","112/10/03","臺南市－全區 ","否","","規劃取得綠建築標章之建築工程 ","否"]
["2","中央研究院 ","中央研究院 ","無 ","演講廳(周大紓講堂)影音投影設備更新及裝修規劃設計暨監造技術服務案 ","勞務","工程服務 ","500000","500000","112/09/26","112/10/26","北部地區－全區 ","否","","非中央政府辦理新臺幣一億元以上之公共工程 ","否"]
["3","內政部 ","內政部國土管理署 ","無 ","111年度「私有建築物耐震弱層補強專案辦公室」委託技術服務案第1次契約變更 ","勞務","工程服務 ","800000","800000","112/10/06","112/10/16","臺北市－松山區 ","否","","非受中央政府補助比率逾工程建造經費百分之五十且補助經費達新臺幣一億元以上之個案公共工程 ","否"]
["4","內政部 ","內政部國土管理署城鄉發展分署 ","無 ","「嘉義縣大林都市計畫、國立中正大學特定區主要計畫及吳鳳廟特定區計畫(計畫圖重製專案通盤檢討)」案 ","勞務","都市計劃及景觀建築服務 ","14200000","14100000","112/10/04","112/10/23","臺北市－松山區 ","否","","整修工程、拆除工程、疏濬工程、結構補強工程 ","否"]
["5","內政部 ","內政部國土管理署北區都市基礎工程分署 ","無 ","國立蘭陽女子高級中學110年度第二校區學生宿舍興建工程 ","工程","教育用建築工程 ","121064063","121000000","112/10/17","112/10/23","宜蘭縣－宜蘭 ","否","","規劃取得綠建築標章之建築工程 ","否"]
["6","內政部 ","內政部國土管理署北區都市基礎工程分署 ","無 ","忠勤營區綜合生活休閒運動大樓新建工程  ","工程","其他用途建築工程 ","666462503","666462503","112/09/28","112/10/04","臺北市－南港區 ","否","","非受中央政府補助比率逾工程建造經費百分之五十且補助經費達新臺幣一億元以上之個案公共工程,規劃取得綠建築標章之建築工程 ","否"]
["7","內政部 ","內政部國土管理署北區都市基礎工程分署 ","無 ","北區聯合辦公大樓 (A棟)建築耐震補強工程委託技術服務採購案 ","勞務","工程服務 ","1863633","1863633","112/10/26","112/10/30","新北市－中和區 ","否","","整修工程、拆除工程、疏濬工程、結構補強工程 ","否"]
["8","內政部 ","內政部國家公園署墾丁國家公園管理處 ","無 ","112~114年園區土木工程委託技術服務(開口契約) ","勞務","工程服務 ","3000000","2892329","112/09/27","112/10/03","屏東縣－恆春 ","已依規定納入辦理節能減碳檢核 ","規劃設計階段納入辦理節能減碳檢核 ","","否"]
["9","內政部 ","內政部國家公園署玉山國家公園管理處 ","無 ","113年玉山主群峰步道設施整修工程委託規劃設計及監造技術服務 ","勞務","工程服務 ","1496000","1480000","112/09/27","112/10/11","南投縣－信義,嘉義縣－阿里山 ","否","","非中央政府辦理新臺幣一億元以上之公共工程,災後緊急處理、搶修、搶險,災後原地復建 ","否"]
["10","內政部 ","內政部國家公園署玉山國家公園管理處 ","無 ","113年八通關越道東段設施整修工程委託規劃設計及監造技術服務 ","勞務","工程服務 ","1203111","1100000","112/10/06","112/10/13","東部地區－全區 ","否","","整修工程、拆除工程、疏濬工程、結構補強工程 ","否"]
["11","內政部 ","內政部國家公園署陽明山國家公園管理處 ","無 ","113年度小油坑轄區設施整建維修工程委託設計暨監造服務案 ","勞務","工程服務 ","724318","717075","112/10/17","112/10/17","臺北市－北投區 ","否","","災後緊急處理、搶修、搶險 ","是"]
["12","內政部 ","內政部國家公園署陽明山國家公園管理處 ","無 ","113年度陽明書屋房屋及周邊設施整修工程委託設計暨監造服務案 ","勞務","建築服務 ","726384","704592","112/10/27","112/10/30","臺北市－北投區 ","否","","非中央政府辦理新臺幣一億元以上之公共工程,整修工程、拆除工程、疏濬工程、結構補強工程 ","否"]
["13","內政部 ","內政部國家公園署金門國家公園管理處 ","無 ","「陵水湖景觀美化步道整建暨烈嶼海岸防護工程」委託規劃設計及監造技術服務案 ","勞務","工程服務 ","1434822","1429083","112/09/27","112/10/02","金門縣－烈嶼 ","否","","整修工程、拆除工程、疏濬工程、結構補強工程 ","否"]
["14","內政部 ","內政部國家公園署金門國家公園管理處 ","無 ","「金門國家公園112至114年度頹屋整理工程」委託規劃設計及監造技術服務案 ","勞務","工程服務 ","969255","967316","112/10/24","112/10/27","離島地區－全區 ","否","","整修工程、拆除工程、疏濬工程、結構補強工程 ","否"]
["15","文化部 ","國立臺灣史前文化博物館 ","無 ","「康樂本館緊急發電機室外油槽設置工程委託規劃設計及監造技術服務案」 ","勞務","工程服務 ","246175","246175","112/10/03","112/10/04","臺東縣－臺東 ","否","","非中央政府辦理新臺幣一億元以上之公共工程 ","否"]
["16","文化部 ","國立臺灣史前文化博物館 ","無 ","康樂本館屋頂防水工程委託規劃設計及監造技術服務案 ","勞務","工程服務 ","583000","583000","112/10/30","112/10/31","臺東縣－臺東 ","否","","非中央政府辦理新臺幣一億元以上之公共工程 ","否"]
["17","文化部 ","國家人權博物館 ","無 ","「歷史建築最高軍事法院及北部地方軍事法院暨法庭整修工程委託技術服務」採購案第2次契約變更新增工項 ","勞務","工程服務 ","120000","117000","112/10/26","112/10/27","新北市－新店區 ","否","","非中央政府辦理新臺幣一億元以上之公共工程 ","否"]
["18","文化部 ","國立臺灣文學館 ","無 ","臺北分館（糧食局倉庫）公共服務設施工程規劃設計及監造 ","勞務","建築服務 ","2597400","2567400","112/10/02","112/10/18","臺北市－中正區 ","否","","非中央政府辦理新臺幣一億元以上之公共工程 ","否"]
["19","文化部 ","國家鐵道博物館籌備處 ","無 ","園區西側軌道復軌工程暨西宿舍周邊環境整備工程 ","工程","其他土木工程 ","358181324","358170000","112/10/17","112/10/27","臺北市－信義區 ","否","","整修工程、拆除工程、疏濬工程、結構補強工程 ","否"]
["20","外交部 ","外交部 ","無 ","「外交部辦公大樓後棟建築物耐震能力補強工程」規劃設計監造服務 ","勞務","工程服務 ","4900000","4900000","112/10/05","112/10/06","臺北市－中正區 ","否","","整修工程、拆除工程、疏濬工程、結構補強工程 ","否"]
["21","外交部 ","駐外機構 ","無 ","駐舊金山辦事處新館舍裝修工程估價服務 ","勞務","工程服務 ","368220","308495","112/06/09","112/10/25","其他－其他 ","否","","整修工程、拆除工程、疏濬工程、結構補強工程 ","否"]
["22","交通部 ","交通部民用航空局臺北國際航空站 ","無 ","松山機場道面透地雷達檢測開口契約 ","勞務","綜合工程服務 ","861000","589999","112/10/25","112/10/26","臺北市－松山區 ","否","","非中央政府辦理新臺幣一億元以上之公共工程 ","否"]
["23","交通部 ","交通部臺灣鐵路管理局 ","無 ","花蓮舊鐵路醫院整體排水改善工程(委託設計及監造) ","勞務","工程服務 ","627000","601920","112/10/26","112/10/27","花蓮縣－花蓮 ","否","","非中央政府辦理新臺幣一億元以上之公共工程 ","否"]
["24","交通部 ","交通部臺灣鐵路管理局 ","無 ","臺北機廠宿舍區(臺北市信義區逸仙段二小段33、33-29地號)法定空地分割作業 ","勞務","建築服務 ","1470000","1118000","112/10/17","112/10/19","臺北市－信義區 ","否","","整修工程、拆除工程、疏濬工程、結構補強工程 ","否"]
["25","交通部 ","交通部臺灣鐵路管理局 ","無 ","基隆站公共藝術裝置「燦流」卸下保存案 ","勞務","建築服務 ","202020","180000","112/10/26","112/10/30","基隆市－仁愛區 ","否","","整修工程、拆除工程、疏濬工程、結構補強工程 ","否"]
["26","交通部 ","交通部臺灣鐵路管理局 ","無 ","宜蘭線瑞芳及四腳亭站雨棚重置工程(委託規劃設計暨監造) ","勞務","工程服務 ","8872545","8872545","112/10/19","112/10/24","新北市－全區,宜蘭縣－全區 ","否","","非中央政府辦理新臺幣一億元以上之公共工程 ","否"]
["27","交通部 ","交通部公路總局第二區養護工程處 ","無 ","台1線156K+681大甲溪橋改建工程委託可行性評估、綜合規劃、測量、地質探查及設計服務工作(變更新增數量) ","勞務","工程服務 ","632160","632160","112/10/04","112/10/11","臺中市－大甲區 ","否","","非受中央政府補助比率逾工程建造經費百分之五十且補助經費達新臺幣一億元以上之個案公共工程 ","否"]
["28","交通部 ","交通部公路總局第二區養護工程處 ","無 ","台8線臨37便道6K+300明隧道改建及18K+600隧道復建工程委託測量、鑽探、檢測及設計服務工作(變更新增數量) ","勞務","工程服務 ","112585","112585","112/10/18","112/10/20","臺中市－和平區 ","否","","非中央政府辦理新臺幣一億元以上之公共工程 ","否"]
["29","交通部 ","交通部公路總局第二區養護工程處 ","無 ","台 7 4 線大里一交流道增設北出匝道改善工程 ","工程","橋樑, 高架快速道路, 隧道及地鐵 ","668670002","668670002","112/09/20","112/10/26","臺中市－大里區 ","否","","為111年8月前核定案件，毋須辦理節能減碳檢核","否"]
["30","交通部 ","交通部高速公路局 ","無 ","代辦「高雄新市鎮1-1、1-2及1-3號道路穿越高速公路工程(第X101G標)」 ","工程","快速道路(不含高架快速道路), 街道, 馬路, 鐵路及機場跑道 ","4650820291","4650820291","112/09/28","112/10/12","高雄市－燕巢區,高雄市－橋頭區 ","已依規定納入辦理節能減碳檢核 ","計畫提報核定階段納入辦理節能減碳檢核 ","","否"]
["31","交通部 ","交通部高速公路局北區養護工程分局 ","無 ","北區養護工程分局轄區邊坡安全評估委託技術服務-CCO-03 ","勞務","工程服務 ","12414009","12414009","112/10/11","112/10/16","北部地區－全區 ","否","","非受中央政府補助比率逾工程建造經費百分之五十且補助經費達新臺幣一億元以上之個案公共工程 ","否"]
["32","交通部 ","交通部高速公路局北區養護工程分局 ","無 ","111~112年度北區養護工程分局邊坡自動化監測委託技術服務工作CCO-03 ","勞務","工程服務 ","15570586","15570586","112/10/11","112/10/16","北部地區－全區 ","否","","非受中央政府補助比率逾工程建造經費百分之五十且補助經費達新臺幣一億元以上之個案公共工程 ","否"]
["33","交通部 ","交通部高速公路局北區養護工程分局 ","無 ","內湖段廁所及車棚新建暨司機備勤室修繕工程委託規劃設計及監造技術服務工作CCO-01 ","勞務","建築服務 ","310000","309750","112/10/05","112/10/06","臺北市－全區 ","否","","非中央政府辦理新臺幣一億元以上之公共工程 ","否"]
["34","交通部 ","交通部高速公路局北區養護工程分局 ","無 ","關西服務區給水改善規劃設計監造技術服務工作 ","勞務","工程服務 ","3479291","3400000","112/10/20","112/10/25","新竹縣－關西 ","否","","整修工程、拆除工程、疏濬工程、結構補強工程 ","否"]
["35","交通部 ","交通部高速公路局北區養護工程分局 ","無 ","國5無線電系統設備汰舊及數位化更新採購案委託設計監造及技術顧問服務工作 ","勞務","工程服務 ","23708882","23000000","112/09/25","112/10/05","新北市－全區,宜蘭縣－全區 ","否","","非中央政府辦理新臺幣一億元以上之公共工程 ","否"]
["36","交通部 ","交通部高速公路局北區養護工程分局 ","無 ","國道5號雪山隧道節能減碳與環境保育規劃委託技術服務工作 ","勞務","工程服務 ","2866442","2800000","112/10/18","112/10/23","新北市－坪林區 ","否","","非中央政府辦理新臺幣一億元以上之公共工程 ","否"]
["37","交通部 ","交通部高速公路局中區養護工程分局 ","無 ","西湖服務區高壓電力盤汰換委託設計監造技術服務工作CCO-01 ","勞務","工程服務 ","527000","513200","112/09/26","112/10/12","苗栗縣－西湖,臺中市－清水區 ","否","","非中央政府辦理新臺幣一億元以上之公共工程 ","否"]
["38","交通部 ","交通部高速公路局中區養護工程分局 ","無 ","苗栗段轄區鋼構橋梁塗裝、伸縮縫更換及橋面板修復工程委託設計及監造技術服務工作 ","勞務","工程服務 ","3113880","2280000","112/10/12","112/10/20","苗栗縣－頭份,苗栗縣－銅鑼,苗栗縣－三義 ","否","","整修工程、拆除工程、疏濬工程、結構補強工程 ","否"]
["39","交通部 ","交通部高速公路局中區養護工程分局 ","無 ","西湖服務區南站電扶梯汰換工程委託設計監造技術服務工作 ","勞務","工程服務 ","440000","380000","112/10/19","112/10/31","苗栗縣－西湖 ","否","","非中央政府辦理新臺幣一億元以上之公共工程 ","否"]
["40","交通部 ","交通部高速公路局中區養護工程分局 ","無 ","國道3號大甲工務段停車棚新建工程委託設計監造技術服務工作 ","勞務","工程服務 ","410000","380000","112/10/02","112/10/05","臺中市－大甲區 ","否","","非中央政府辦理新臺幣一億元以上之公共工程 ","否"]
["41","交通部 ","中華郵政股份有限公司 ","無 ","北臺灣郵件作業中心及訓練中心新建工程第4次設計變更 ","工程","商用建築工程 ","104401450","99561912","112/09/19","112/10/06","北部地區－全區 ","否","","非受中央政府補助比率逾工程建造經費百分之五十且補助經費達新臺幣一億元以上之個案公共工程 ","否"]
["42","交通部 ","中華郵政股份有限公司 ","無 ","蘆竹山腳郵局新建工程委託規劃設計及監造技術服務案 ","勞務","工程服務 ","20500000","20500000","112/10/20","112/10/23","桃園市－蘆竹區 ","否","","規劃取得綠建築標章之建築工程 ","否"]
["43","交通部 ","桃園國際機場股份有限公司 ","無 ","航機跑道自動異物偵測系統可行性綜整研究規劃技術服務案 ","勞務","工程服務 ","8180550","7850000","112/09/20","112/10/16","桃園市－大園區 ","否","","非中央政府辦理新臺幣一億元以上之公共工程 ","否"]
["44","交通部 ","臺灣港務股份有限公司基隆港務分公司 ","無 ","基隆港軍用碼頭及威海營區西遷工程(第二期及第三期)第四次契約變更 ","工程","水道、海港、水壩及其他水利工程 ","184541209","181515119","112/10/13","112/10/18","基隆市－全區 ","已依規定納入辦理節能減碳檢核 ","計畫提報核定階段納入辦理節能減碳檢核;規劃設計階段納入辦理節能減碳檢核 ","","否"]
["45","交通部 ","臺灣港務股份有限公司基隆港務分公司 ","無 ","臺北港南碼頭區公共建築及污水處理廠等工程委託設計監造第二次契約變更 ","勞務","綜合工程服務 ","217396","217396","112/08/17","112/10/26","新北市－八里區 ","否","","規劃取得綠建築標章之建築工程 ","否"]
["46","交通部 ","臺灣港務股份有限公司基隆港務分公司 ","無 ","「蘇澳港行政大樓整修工程設計監造」委託技術服務第一次契約變更 ","勞務","工程服務 ","8885314","8700000","112/10/18","112/10/20","宜蘭縣－蘇澳 ","否","","整修工程、拆除工程、疏濬工程、結構補強工程 ","否"]
["47","交通部 ","臺灣港務股份有限公司臺中港務分公司 ","無 ","『臺中港37、38號碼頭新建工程』設計及監造委託技術服務第1次後續擴充 ","勞務","工程服務 ","2520840","2520840","112/09/23","112/10/04","臺中市－梧棲區 ","已依規定納入辦理節能減碳檢核 ","規劃設計階段納入辦理節能減碳檢核 ","","否"]
["48","交通部 ","臺灣港務股份有限公司高雄港務分公司 ","無 ","安平港北觀光開發區域基礎設施改善工程 ","工程","其他土木工程 ","167492331","167490000","112/10/20","112/10/31","臺南市－南區 ","否","","整修工程、拆除工程、疏濬工程、結構補強工程 ","否"]
["49","交通部 ","臺灣港務股份有限公司高雄港務分公司 ","無 ","「澎湖港金龍頭灣區建築物及公共基礎設施整建統包工程」設計審查及監造工作委託技術服務 ","勞務","工程服務 ","12986652","12400000","112/10/04","112/10/13","澎湖縣－馬公 ","否","","整修工程、拆除工程、疏濬工程、結構補強工程 ","否"]
["50","交通部 ","臺灣港務股份有限公司高雄港務分公司 ","無 ","「高雄港70號碼頭改建工程」設計及監造工作委託技術服務第1次變更 ","勞務","工程服務 ","4722900","4597000","112/10/13","112/10/24","高雄市－前鎮區 ","否","","非中央政府辦理新臺幣一億元以上之公共工程,整修工程、拆除工程、疏濬工程、結構補強工程 ","否"]
["51","交通部 ","臺灣港務股份有限公司高雄港務分公司 ","無 ","「高雄港1號碼頭旅客服務中心及18號碼頭登船廊道新建工程」規劃設計及監造工作委託技術服務 ","勞務","工程服務 ","41492952","41201000","112/10/11","112/10/26","南部地區－全區 ","否","","規劃取得綠建築標章之建築工程 ","否"]
["52","交通部 ","臺灣港務股份有限公司高雄港務分公司 ","無 ","「馬公大樓1、2F客運服務設施優化」規劃設計及監造工作委託技術服務第2次變更 ","勞務","工程服務 ","9957379","7270000","112/09/19","112/10/05","高雄市－全區 ","否","","非中央政府辦理新臺幣一億元以上之公共工程 ","否"]
["53","交通部 ","交通部觀光署東部海岸國家風景區管理處 ","無 ","高台遊憩區興建工程委託技術服務案(112年至115年)第一次後續擴充 ","勞務","工程服務 ","383250","380000","112/10/16","112/10/23","臺東縣－成功 ","否","","非中央政府辦理新臺幣一億元以上之公共工程 ","否"]
["54","交通部 ","交通部觀光署澎湖國家風景區管理處 ","無 ","望安潭門港服務設施新建工程委託規劃 ","勞務","綜合工程服務 ","1200000","1200000","112/09/27","112/10/03","離島地區－全區 ","否","","非中央政府辦理新臺幣一億元以上之公共工程 ","否"]
["55","交通部 ","交通部觀光署澎湖國家風景區管理處 ","無 ","112年馬公湖西系統遊憩區設施工程委託設計監造 ","勞務","工程服務 ","9441960","9441960","112/09/27","112/10/03","全部地區－全區 ","否","","非中央政府辦理新臺幣一億元以上之公共工程,整修工程、拆除工程、疏濬工程、結構補強工程 ","否"]
["56","交通部 ","交通部觀光署花東縱谷國家風景區管理處 ","無 ","花東縱谷軸線魅力景點委託規劃設計及監造技術服務(110年至113年) ","勞務","綜合工程服務 ","1518480","1518480","112/09/28","112/10/03","花蓮縣－壽豐,花蓮縣－鳳林,花蓮縣－光復 ","否","","非中央政府辦理新臺幣一億元以上之公共工程,整修工程、拆除工程、疏濬工程、結構補強工程 ","否"]
["57","交通部 ","交通部觀光署馬祖國家風景區管理處 ","無 ","馬祖國家風景區觀光建設工程委託規劃設計及監造服務（111年-112年）第1次契約變更 ","勞務","工程服務 ","2050000","2050000","112/10/16","112/10/20","連江縣－全區 ","否","","非中央政府辦理新臺幣一億元以上之公共工程 ","否"]
["58","交通部 ","交通部觀光署茂林國家風景區管理處 ","無 ","113年涼山瀑布觀景步道延伸工程委託設計及監造服務工作 ","勞務","工程服務 ","2638000","2604856","112/09/26","112/10/04","屏東縣－瑪家 ","否","","非中央政府辦理新臺幣一億元以上之公共工程 ","否"]
["59","交通部 ","交通部觀光署茂林國家風景區管理處 ","無 ","113年茂林國家風景區據點設施整修工程委託設計及監造服務 ","勞務","工程服務 ","972825","948504","112/10/17","112/10/24","高雄市－全區,屏東縣－全區 ","否","","非中央政府辦理新臺幣一億元以上之公共工程 ","否"]
["60","交通部 ","交通部觀光署北海岸及觀音山國家風景區管理處 ","無 ","台北圓山大飯店金龍廳前方邊坡整治委託設計監造服務案 ","勞務","綜合工程服務 ","1490000","1460200","112/10/16","112/10/20","臺北市－中山區,新北市－石門區 ","否","","災後緊急處理、搶修、搶險 ","否"]
["61","交通部 ","交通部公路局南區養護工程分局 ","無 ","「屏鵝公路種樹百里2.0提升計畫」景觀規劃暨設計(含測量)委託技術服務工作(新增工項變更) ","勞務","工程服務 ","2130200","2088000","112/10/13","112/10/25","屏東縣－全區 ","否","","整修工程、拆除工程、疏濬工程、結構補強工程 ","否"]
["62","交通部 ","交通部公路局南區養護工程分局 ","無 ","台27線1k+227第一號橋改建工程委託可行性評估及規劃設計(含測量及地質探查)服務工作 ","勞務","工程服務 ","16552858","16552858","112/09/28","112/10/11","高雄市－六龜區 ","已依規定納入辦理節能減碳檢核 ","規劃設計階段納入辦理節能減碳檢核 ","","否"]
["63","交通部 ","交通部公路局雲嘉南區養護工程分局 ","無 ","112年工程委託測量設計服務工作(開口契約) ","勞務","工程服務 ","6629526","6629526","112/10/02","112/10/04","嘉義市－全區,嘉義縣－全區,雲林縣－全區,臺南市－全區 ","否","","非中央政府辦理新臺幣一億元以上之公共工程,非受中央政府補助比率逾工程建造經費百分之五十且補助經費達新臺幣一億元以上之個案公共工程 ","否"]
["64","交通部 ","交通部公路局工程材料技術所 ","無 ","文物室規劃設計及施作一式 ","勞務","綜合工程服務 ","350000","350000","112/10/25","112/10/26","新北市－新莊區 ","否","","非中央政府辦理新臺幣一億元以上之公共工程,非受中央政府補助比率逾工程建造經費百分之五十且補助經費達新臺幣一億元以上之個案公共工程,整修工程、拆除工程、疏濬工程、結構補強工程 ","否"]
["65","交通部 ","交通部高速公路局第二新建工程分局 ","無 ","名間收費站廳舍修繕工程委託規劃設計及施工監造技術服務第1號契約變更 ","勞務","建築服務 ","798783","793000","112/09/22","112/10/17","其他－其他 ","否","","整修工程、拆除工程、疏濬工程、結構補強工程 ","否"]
["66","交通部 ","交通部高速公路局第二新建工程分局 ","無 ","高雄新市鎮1-1、1-2及1-3號道路穿越高速公路工程委託環境監測服務 ","勞務","工程服務 ","12160796","8611943","112/08/22","112/10/11","高雄市－全區 ","否","","非中央政府辦理新臺幣一億元以上之公共工程 ","否"]
["67","交通部 ","交通部鐵道局南部工程分局 ","無 ","高 雄計畫ACL212標高雄車站段地下化(明挖覆蓋)工程(CCO-32-32) ","工程","其他用途建築工程 ","795637322","795637322","112/07/14","112/10/19","高雄市－三民區 ","否","","非中央政府辦理新臺幣一億元以上之公共工程 ","否"]
["68","交通部 ","交通部鐵道局東部工程分局 ","無 ","CF01標臺鐵康樂至大武車站美學工程 ","工程","快速道路(不含高架快速道路), 街道, 馬路, 鐵路及機場跑道 ","402440177","401168900","112/10/03","112/10/05","臺東縣－臺東,臺東縣－太麻里,臺東縣－大武 ","否","","整修工程、拆除工程、疏濬工程、結構補強工程 ","否"]
["69","行政院主計總處 ","行政院主計總處 ","無 ","行政院主計總處「廣博大樓電源線路改善委託設計監造服務」勞務採購案 ","勞務","工程服務 ","1820000","1790000","112/10/27","112/10/31","臺北市－全區 ","否","","整修工程、拆除工程、疏濬工程、結構補強工程 ","否"]
["70","其他(私立學校) ","雲林縣私立淵明國民中學 ","雲林縣政府 ","112年度「公立國民中小學老舊廁所整修工程」規劃設計監造技術服務 ","勞務","建築服務 ","169190","169000","112/09/22","112/10/16","中部地區－全區 ","否","","整修工程、拆除工程、疏濬工程、結構補強工程 ","否"]
["71","其他(法人團體) ","財團法人私立廣恩老人養護中心 ","新北市政府社會局 ","112年新北市五股老人公寓電梯汰換案委託設計監造技術服務案 ","勞務","工程服務 ","260000","163800","112/10/11","112/10/13","新北市－五股區 ","否","","非受中央政府補助比率逾工程建造經費百分之五十且補助經費達新臺幣一億元以上之個案公共工程 ","否"]
["72","其他(法人團體) ","國家原子能科技研究院 ","核能安全委員會 ","「核醫製藥潔淨室建置工程」監造技術服務(第二次契約變更) ","勞務","工程服務 ","300000","298000","112/10/27","112/10/31","桃園市－龍潭區 ","否","","非中央政府辦理新臺幣一億元以上之公共工程 ","否"]
["73","其他(法人團體) ","中信學校財團法人中信金融管理學院 ","教育部 ","宿舍公共空間改善規劃設計監造採購案 ","勞務","建築服務 ","12467450","12100000","112/10/12","112/10/27","臺南市－安南區 ","否","","整修工程、拆除工程、疏濬工程、結構補強工程 ","否"]
["74","其他(法人團體) ","秀傳醫療財團法人彰濱秀傳紀念醫院 ","無 ","2D病房及附屬活動空間變更設計使用（含設計監造）案 ","勞務","建築服務 ","2109751","1300000","112/09/18","112/10/05","中部地區－全區 ","否","","整修工程、拆除工程、疏濬工程、結構補強工程 ","否"]
["75","其他(法人團體) ","桃園市新屋區農會 ","無 ","「112年度桃園市新屋區農會提升穀物採收後自動化作業效能計畫」 設置稻穀低溫冷藏筒工程-基本規劃設計及監造案 ","勞務","工程服務 ","300000","250000","112/10/04","112/10/05","桃園市－新屋區 ","否","","非中央政府辦理新臺幣一億元以上之公共工程,非受中央政府補助比率逾工程建造經費百分之五十且補助經費達新臺幣一億元以上之個案公共工程 ","否"]
["76","其他(法人團體) ","臺南市新化區農會 ","行政院 ","擴充購物中心營運設備計畫-監照 ","勞務","綜合工程服務 ","385000","375000","112/10/18","112/10/19","南部地區－全區 ","否","","整修工程、拆除工程、疏濬工程、結構補強工程 ","否"]
["77","其他(法人團體) ","富里鄉農會 ","行政院農業委員會 ","112年度花蓮縣富里鄉農會特色農遊計畫-主題花海營造工程 ","勞務","都市計劃及景觀建築服務 ","1500000","1438000","112/08/09","112/10/25","花蓮縣－富里 ","否","","非受中央政府補助比率逾工程建造經費百分之五十且補助經費達新臺幣一億元以上之個案公共工程 ","否"]
["78","宜蘭縣政府 ","宜蘭縣政府 ","內政部營建署 ","宜蘭地區污水下水道用戶接管(開口契約)第8標工程 ","工程","其他土木工程 ","135840000","114784800","112/10/24","112/10/25","宜蘭縣－全區 ","否","","整修工程、拆除工程、疏濬工程、結構補強工程 ","否"]
["79","宜蘭縣政府 ","宜蘭縣政府 ","行政院農業委員會漁業署 ","大溪漁港東防波堤延長工程監造技術服務案 ","勞務","綜合工程服務 ","11220000","10546800","112/10/20","112/10/25","宜蘭縣－頭城 ","已依規定納入辦理節能減碳檢核 ","規劃設計階段納入辦理節能減碳檢核 ","","否"]
["80","宜蘭縣政府 ","宜蘭縣政府 ","無 ","112~113年度宜蘭縣農水路、養殖區改善及農村再生政府興建工程委託設計、監造技術開口契約 ","勞務","綜合工程服務 ","9500000","9025000","112/10/18","112/10/19","宜蘭縣－全區 ","否","","災後緊急處理、搶修、搶險,災後原地復建,整修工程、拆除工程、疏濬工程、結構補強工程 ","否"]
["81","宜蘭縣政府 ","宜蘭縣政府 ","無 ","「大湖風景特定區都市計畫出流管制規劃書」委託規劃設計服務 ","勞務","工程服務 ","1400000","1372000","112/10/13","112/10/16","宜蘭縣－員山 ","否","","非中央政府辦理新臺幣一億元以上之公共工程 ","否"]
["82","宜蘭縣政府 ","宜蘭縣政府 ","無 ","宜蘭市宜蘭國民小學（教師研習中心）教學設備建置工程委託規劃設計及監造技術服務技術服務 ","勞務","建築服務 ","1078400","1075165","112/10/02","112/10/03","宜蘭縣－宜蘭 ","否","","整修工程、拆除工程、疏濬工程、結構補強工程 ","否"]
["83","宜蘭縣政府 ","宜蘭縣政府 ","經濟部 ","「蘇澳溪分洪工程計畫-管理中心及上游防砂壩工程」委託設計及監造技術服務 ","勞務","綜合工程服務 ","11052200","10840020","112/10/11","112/10/13","宜蘭縣－蘇澳 ","已依規定納入辦理節能減碳檢核 ","計畫提報核定階段納入辦理節能減碳檢核;規劃設計階段納入辦理節能減碳檢核 ","","否"]
["84","宜蘭縣政府 ","宜蘭縣政府文化局 ","無 ","B區戲劇館耐震補強工程委託設計監造技術服務案 ","勞務","建築服務 ","792303","792283","112/10/23","112/10/31","宜蘭縣－全區 ","否","","整修工程、拆除工程、疏濬工程、結構補強工程 ","否"]
["85","宜蘭縣政府 ","宜蘭縣立蘭陽博物館 ","文化部文化資產局 ","「宜蘭縣「中興紙廠四結廠區歷史建築群第103、104、105號倉庫」修復規劃設計案」（含補充修復及再利用計畫） ","勞務","建築服務 ","4700000","4686660","112/10/18","112/10/24","宜蘭縣－五結 ","否","","非受中央政府補助比率逾工程建造經費百分之五十且補助經費達新臺幣一億元以上之個案公共工程 ","否"]
["86","宜蘭縣政府 ","宜蘭縣宜蘭市公所 ","無 ","宜蘭市112年度工程統合委託規劃設計、監造技術服務-後續擴充 ","勞務","工程服務 ","2500000","2500000","112/09/23","112/10/31","宜蘭縣－宜蘭 ","否","","非受中央政府補助比率逾工程建造經費百分之五十且補助經費達新臺幣一億元以上之個案公共工程","否"]
["87","宜蘭縣政府 ","宜蘭縣羅東鎮公所 ","無 ","羅東鎮立幼兒園111年度教學環境設施設備改善工程委託規劃設計監造技術服務案(契約變更) ","勞務","工程服務 ","122295","122295","112/10/23","112/10/25","宜蘭縣－羅東 ","否","","整修工程、拆除工程、疏濬工程、結構補強工程 ","否"]
["88","宜蘭縣政府 ","宜蘭縣蘇澳鎮公所 ","內政部營建署 ","蘇澳鎮公所廣場及周邊道路人本景觀環境提升計畫工程-委託監造服務案 ","勞務","工程服務 ","900000","900000","112/10/19","112/10/20","東部地區－全區 ","否","","整修工程、拆除工程、疏濬工程、結構補強工程 ","否"]
["89","宜蘭縣政府 ","宜蘭縣壯圍鄉公所 ","無 ","112年壯圍鄉災後復建暨其他工程設計監造技術服務開口契約(後續擴充)變更案 ","勞務","工程服務 ","3097256","3097256","112/10/02","112/10/11","宜蘭縣－壯圍 ","否","","災後緊急處理、搶修、搶險 ","否"]
["90","宜蘭縣政府 ","宜蘭縣壯圍鄉公所 ","無 ","宜蘭縣壯圍鄉功勞社區活動中心興建(拆除重建)工程委託規劃設計及後續擴充監造技術服務 ","勞務","建築服務 ","900000","864000","112/10/23","112/10/26","東部地區－全區 ","否","","非中央政府辦理新臺幣一億元以上之公共工程,非受中央政府補助比率逾工程建造經費百分之五十且補助經費達新臺幣一億元以上之個案公共工程 ","否"]
["91","宜蘭縣政府 ","宜蘭縣冬山鄉公所 ","衛生福利部 ","冬山鄉公設民營托嬰中心裝修工程委託規劃設計、監造技術服務採購案 ","勞務","工程服務 ","286724","286724","112/10/06","112/10/06","宜蘭縣－冬山 ","否","","整修工程、拆除工程、疏濬工程、結構補強工程 ","否"]
["92","宜蘭縣政府 ","宜蘭縣五結鄉公所 ","無 ","112年度五結鄉內道路改善工程委託設計、監造技術服務 ","勞務","綜合工程服務 ","775000","748500","112/10/31","112/10/31","宜蘭縣－五結 ","已依規定納入辦理節能減碳檢核 ","規劃設計階段納入辦理節能減碳檢核 ","","否"]
["93","宜蘭縣政府 ","宜蘭縣立礁溪國民中學 ","宜蘭縣政府 ","正明樓1期及五育館老舊廁所整修工程委託規劃設計監造技術服務 ","勞務","建築服務 ","509682","509682","112/09/27","112/10/02","宜蘭縣－礁溪 ","否","","非中央政府辦理新臺幣一億元以上之公共工程 ","否"]
["94","宜蘭縣政府 ","宜蘭縣立吳沙國民中學 ","教育部國民及學前教育署 ","112年度校園老舊廁所整修工程委託規劃設計監造技術服務 ","勞務","工程服務 ","222740","222470","112/10/06","112/10/12","宜蘭縣－礁溪 ","否","","整修工程、拆除工程、疏濬工程、結構補強工程 ","否"]
["95","宜蘭縣政府 ","宜蘭縣宜蘭市光復國民小學 ","教育部國民及學前教育署 ","112年度感恩樓老舊廁所整修工程委託規劃設計監造案 ","勞務","建築服務 ","217907","217907","112/10/16","112/10/17","宜蘭縣－宜蘭 ","否","","整修工程、拆除工程、疏濬工程、結構補強工程 ","否"]
["96","宜蘭縣政府 ","宜蘭縣壯圍鄉壯圍國民小學 ","宜蘭縣政府 ","學童上下學接送廊道工程委託規劃設計及監造技術服務採購案 ","勞務","建築服務 ","361012","353792","112/10/31","112/10/31","宜蘭縣－壯圍 ","否","","非中央政府辦理新臺幣一億元以上之公共工程 ","否"]
["97","宜蘭縣政府 ","宜蘭縣冬山鄉順安國民小學 ","教育部國民及學前教育署 ","宜蘭縣冬山鄉順安國民小學敦品樓老舊廁所整修工程規劃設計監造委託服務採購案 ","勞務","工程服務 ","283199","283199","112/10/12","112/10/12","東部地區－全區 ","否","","整修工程、拆除工程、疏濬工程、結構補強工程 ","否"]
["98","花蓮縣政府 ","花蓮縣政府 ","行政院環境保護署 ","花蓮縣社會福利館公廁修繕工程委託規劃設計監造技術服務案 ","勞務","建築服務 ","752390","750000","112/10/06","112/10/19","花蓮縣－全區 ","否","","整修工程、拆除工程、疏濬工程、結構補強工程 ","否"]
["99","花蓮縣政府 ","花蓮縣政府 ","無 ","太平洋公園極限運動場屋頂薄膜新建工程 ","工程","其他土木工程 ","108663169","108663169","112/10/04","112/10/13","東部地區－全區 ","否","","非中央政府辦理新臺幣一億元以上之公共工程 ","否"]
["100","花蓮縣政府 ","花蓮縣立國風國民中學 ","花蓮縣政府 ","「112年度花蓮縣立國風國民中學老舊廁所整修工程規劃設計與監造勞務」採購案 ","勞務","綜合工程服務 ","678307","678307","112/10/06","112/10/06","東部地區－全區 ","否","","非中央政府辦理新臺幣一億元以上之公共工程 ","否"]
["101","花蓮縣政府 ","花蓮縣立宜昌國民中學 ","教育部國民及學前教育署 ","花蓮縣立宜昌國中112年老舊廁所整修工程委託規劃  設計監造採購案 ","勞務","工程服務 ","433551","433551","112/10/04","112/10/11","花蓮縣－吉安 ","否","","非中央政府辦理新臺幣一億元以上之公共工程,非受中央政府補助比率逾工程建造經費百分之五十且補助經費達新臺幣一億元以上之個案公共工程 ","否"]
["102","花蓮縣政府 ","花蓮縣立美崙國民中學 ","無 ","112年度美崙國中老舊廁所整修工程委託設計及監造技術服務 ","勞務","建築服務 ","1057028","1049000","112/10/17","112/10/19","花蓮縣－全區 ","否","","整修工程、拆除工程、疏濬工程、結構補強工程 ","否"]
["103","花蓮縣政府 ","花蓮縣立自強國民中學 ","無 ","112年度公立國民中小學老舊廁所整修工程計畫委託設計及監造技術服務 ","勞務","工程服務 ","1024178","1024178","112/10/11","112/10/12","花蓮縣－花蓮 ","否","","整修工程、拆除工程、疏濬工程、結構補強工程 ","否"]
["104","花蓮縣政府 ","花蓮縣立化仁國民中學 ","教育部國民及學前教育署 ","112年老舊廁所整修工程委託設計監造 ","勞務","工程服務 ","700000","700000","112/09/28","112/10/12","花蓮縣－吉安 ","否","","非中央政府辦理新臺幣一億元以上之公共工程,整修工程、拆除工程、疏濬工程、結構補強工程 ","否"]
["105","花蓮縣政府 ","花蓮縣光復鄉光復國民小學 ","花蓮縣政府 ","光復國小112年學校運動操場及周邊設施整建工程委託設計監造技術服務 ","勞務","工程服務 ","453189","453189","112/10/06","112/10/18","花蓮縣－光復 ","否","","非中央政府辦理新臺幣一億元以上之公共工程 ","否"]
["106","花蓮縣政府 ","花蓮縣光復鄉光復國民小學 ","教育部國民及學前教育署 ","花蓮縣光復國小112年度老舊廁所整修工程委託規劃設計監造採購案 ","勞務","綜合工程服務 ","1014575","1014575","112/10/06","112/10/11","東部地區－全區 ","否","","非中央政府辦理新臺幣一億元以上之公共工程 ","否"]
["107","花蓮縣政府 ","花蓮縣富里鄉萬寧國民小學 ","花蓮縣政府 ","萬寧國小112年學校運動操場及周邊設施整建工程委託設計監造技術服務 ","勞務","工程服務 ","559765","559765","112/10/06","112/10/06","花蓮縣－富里 ","否","","整修工程、拆除工程、疏濬工程、結構補強工程 ","否"]
["108","金門縣政府 ","金門縣政府 ","內政部營建署 ","「金寧鄉第五標、金沙鎮第七標及零星污水下水道及用戶接管工程委託規劃設計暨監造」 ","勞務","工程服務 ","23446000","22489030","112/10/12","112/10/19","金門縣－全區 ","已依規定納入辦理節能減碳檢核 ","規劃設計階段納入辦理節能減碳檢核 ","","否"]
["109","金門縣政府 ","金門縣政府 ","內政部營建署 ","「金湖鎮太湖湖畔綠蔭遊憩及周邊路網升級改善工程」委託規劃設計監造案 ","勞務","工程服務 ","24122968","23073077","112/10/13","112/10/24","金門縣－金湖 ","已依規定納入辦理節能減碳檢核 ","規劃設計階段納入辦理節能減碳檢核 ","","否"]
["110","金門縣政府 ","金門縣政府 ","無 ","金門縣烈嶼鄉青年自建住宅土地規劃及都市計畫暨變更金寧鄉慈湖住宅區都市計畫土地使用分區管制 ","勞務","都市計劃及景觀建築服務 ","1134000","1102000","112/09/25","112/10/13","金門縣－金寧,金門縣－烈嶼 ","否","","非中央政府辦理新臺幣一億元以上之公共工程,非受中央政府補助比率逾工程建造經費百分之五十且補助經費達新臺幣一億元以上之個案公共工程 ","否"]
["111","金門縣政府 ","金門縣採購招標所 ","無 ","金門縣養護工程所廁所新建工程委託規劃設計暨監造案\t ","勞務","建築服務 ","500000","490000","112/10/06","112/10/20","金門縣－金湖 ","否","","非受中央政府補助比率逾工程建造經費百分之五十且補助經費達新臺幣一億元以上之個案公共工程 ","否"]
["112","南投縣政府 ","南投縣政府 ","內政部消防署 ","「112年度消防局第三大隊鹿谷分隊廳舍修繕工程」委託規劃設計及監造服務 ","勞務","建築服務 ","179413","177619","112/10/19","112/10/26","南投縣－鹿谷 ","否","","非中央政府辦理新臺幣一億元以上之公共工程,非受中央政府補助比率逾工程建造經費百分之五十且補助經費達新臺幣一億元以上之個案公共工程,整修工程、拆除工程、疏濬工程、結構補強工程 ","否"]
["113","南投縣政府 ","南投縣政府 ","內政部消防署 ","「112年度消防局第三大隊竹山分隊廳舍修繕工程」委託規劃設計及監造服務 ","勞務","建築服務 ","367650","363973","112/10/25","112/10/27","南投縣－竹山 ","否","","非中央政府辦理新臺幣一億元以上之公共工程,非受中央政府補助比率逾工程建造經費百分之五十且補助經費達新臺幣一億元以上之個案公共工程,整修工程、拆除工程、疏濬工程、結構補強工程 ","否"]
["114","南投縣政府 ","南投縣政府 ","內政部營建署 ","112年南投縣環境景觀總顧問計畫 ","勞務","都市計劃及景觀建築服務 ","3000000","3000000","112/10/20","112/10/27","南投縣－全區 ","否","","非中央政府辦理新臺幣一億元以上之公共工程 ","否"]
["115","南投縣政府 ","南投縣政府 ","交通部公路總局 ","西嶺國小校園周邊暨行車安全道路改善工程委託測設及監造工作 ","勞務","工程服務 ","1436488","1436488","112/10/30","112/10/30","南投縣－南投 ","否","","非中央政府辦理新臺幣一億元以上之公共工程 ","否"]
["116","南投縣政府 ","南投縣政府 ","行政院 ","「112年度消防局第一大隊廳舍修繕工程」委託規劃設計及監造服務 ","勞務","建築服務 ","367650","360297","112/09/26","112/10/03","南投縣－南投 ","否","","非中央政府辦理新臺幣一億元以上之公共工程,整修工程、拆除工程、疏濬工程、結構補強工程 ","否"]
["117","南投縣政府 ","南投縣政府 ","行政院 ","「112年度消防局水里分隊整修工程」委託規劃設計及監造服務 ","勞務","建築服務 ","222061","217620","112/10/12","112/10/23","南投縣－水里 ","否","","非中央政府辦理新臺幣一億元以上之公共工程,非受中央政府補助比率逾工程建造經費百分之五十且補助經費達新臺幣一億元以上之個案公共工程,整修工程、拆除工程、疏濬工程、結構補強工程 ","否"]
["118","南投縣政府 ","南投縣政府 ","行政院公共工程委員會 ","南投縣仁愛鄉清境國小2023年卡努風災復建工程」委託規劃設計及監造服務 ","勞務","建築服務 ","748560","733589","112/10/17","112/10/20","南投縣－仁愛 ","否","","非受中央政府補助比率逾工程建造經費百分之五十且補助經費達新臺幣一億元以上之個案公共工程,災後原地復建,整修工程、拆除工程、疏濬工程、結構補強工程 ","否"]
["119","南投縣政府 ","南投縣政府 ","行政院公共工程委員會 ","南投縣仁愛鄉廬山國小2023年卡努風災及操場等2件復建工程」委託規劃設計 ","勞務","建築服務 ","978474","968689","112/10/17","112/10/23","南投縣－仁愛 ","否","","非中央政府辦理新臺幣一億元以上之公共工程 ","否"]
["120","南投縣政府 ","南投縣政府 ","行政院公共工程委員會 ","「南投縣仁愛鄉法治國小2023年卡努風災復建工程」委託規劃設計及監造服務 ","勞務","建築服務 ","355266","348161","112/10/19","112/10/24","南投縣－仁愛 ","否","","非受中央政府補助比率逾工程建造經費百分之五十且補助經費達新臺幣一億元以上之個案公共工程,災後緊急處理、搶修、搶險,災後原地復建,整修工程、拆除工程、疏濬工程、結構補強工程 ","否"]
["121","南投縣政府 ","南投縣政府 ","行政院公共工程委員會 ","「南投縣仁愛鄉仁愛國中2023年卡努風災復建工程」委託規劃設計及監造服務 ","勞務","建築服務 ","209599","207503","112/10/17","112/10/23","南投縣－仁愛 ","否","","非受中央政府補助比率逾工程建造經費百分之五十且補助經費達新臺幣一億元以上之個案公共工程,災後原地復建,整修工程、拆除工程、疏濬工程、結構補強工程 ","否"]
["122","南投縣政府 ","南投縣政府 ","行政院公共工程委員會 ","「南投縣仁愛鄉都達國小2023年卡努風災復建工程」委託規劃設計及監造服務 ","勞務","建築服務 ","116100","113778","112/10/19","112/10/24","南投縣－仁愛 ","否","","非受中央政府補助比率逾工程建造經費百分之五十且補助經費達新臺幣一億元以上之個案公共工程,災後原地復建,整修工程、拆除工程、疏濬工程、結構補強工程 ","否"]
["123","南投縣政府 ","南投縣政府 ","行政院公共工程委員會 ","「南投縣仁愛鄉仁愛國小2023年卡努風災復建工程」委託規劃設計及監造服務 ","勞務","建築服務 ","749280","711816","112/10/19","112/10/24","南投縣－仁愛 ","否","","非中央政府辦理新臺幣一億元以上之公共工程,非受中央政府補助比率逾工程建造經費百分之五十且補助經費達新臺幣一億元以上之個案公共工程,災後原地復建,整修工程、拆除工程、疏濬工程、結構補強工程 ","否"]
["124","南投縣政府 ","南投縣政府 ","行政院公共工程委員會 ","「南投縣仁愛鄉力行國小翠巒分校駁坎修繕工程」委託規劃設計及監造服務 ","勞務","建築服務 ","239940","235141","112/10/19","112/10/25","南投縣－仁愛 ","否","","非受中央政府補助比率逾工程建造經費百分之五十且補助經費達新臺幣一億元以上之個案公共工程,災後原地復建,整修工程、拆除工程、疏濬工程、結構補強工程 ","否"]
["125","南投縣政府 ","南投縣政府 ","行政院公共工程委員會 ","112年7月杜蘇芮及8月卡努颱風-C1-107-埔里鎮投78線2K+992守城橋災修復建工程委託技術服務及地質探查工作 ","勞務","工程服務 ","14429200","14429200","112/10/25","112/10/27","南投縣－埔里 ","否","","災後原地復建 ","否"]
["126","南投縣政府 ","南投縣政府 ","行政院環境保護署 ","「112年度南投縣衛生局公廁修繕工程」委託規劃設計及監造服務 ","勞務","建築服務 ","348300","344817","112/10/19","112/10/23","南投縣－南投 ","否","","非中央政府辦理新臺幣一億元以上之公共工程 ","否"]
["127","南投縣政府 ","南投縣政府 ","行政院環境保護署 ","「112年度南投縣政府文化局公廁整修工程」委託規劃設計及監造服務 ","勞務","建築服務 ","189940","184242","112/10/24","112/10/27","南投縣－南投 ","否","","非中央政府辦理新臺幣一億元以上之公共工程,整修工程、拆除工程、疏濬工程、結構補強工程 ","否"]
["128","南投縣政府 ","南投縣政府 ","原住民族委員會 ","「原之驛-Ba-Bu樂園」工程委託規畫設計監造服務 ","勞務","建築服務 ","773850","766112","112/08/01","112/10/13","南投縣－名間 ","否","","災後緊急處理、搶修、搶險,整修工程、拆除工程、疏濬工程、結構補強工程 ","否"]
["129","南投縣政府 ","南投縣政府 ","教育部體育署 ","「112年度南投縣立網球場整修工程」委託規劃設計及監造服務 ","勞務","建築服務 ","1061060","1039838","112/10/03","112/10/04","南投縣－南投 ","否","","非中央政府辦理新臺幣一億元以上之公共工程,整修工程、拆除工程、疏濬工程、結構補強工程 ","否"]
["130","南投縣政府 ","南投縣政府 ","無 ","變更南投（含南崗地區）都市計畫(第二次通盤檢討)案暨變更南投（含南崗地區）(土地使用分區管制要點)細部計畫(第二次通盤檢討)案 ","勞務","都市計劃及景觀建築服務 ","12000000","11800000","112/08/04","112/10/20","南投縣－南投 ","否","","非受中央政府補助比率逾工程建造經費百分之五十且補助經費達新臺幣一億元以上之個案公共工程 ","否"]
["131","南投縣政府 ","南投縣政府 ","無 ","112年度建築物公共安全檢查抽複查作業 ","勞務","綜合工程服務 ","500000","500000","112/10/13","112/10/19","南投縣－全區 ","否","","非中央政府辦理新臺幣一億元以上之公共工程 ","否"]
["132","南投縣政府 ","南投縣政府 ","無 ","112年度南投縣政府縣政大樓B及C棟4樓整建工程委託規劃設計及監造服務 ","勞務","建築服務 ","1749250","1714265","112/10/19","112/10/26","南投縣－南投 ","否","","非中央政府辦理新臺幣一億元以上之公共工程 ","否"]
["133","南投縣政府 ","南投縣政府 ","無 ","擴大南崗工業區可行性評估及南投縣產業園區開發選址初步規劃委託技術服務案 ","勞務","都市計劃及景觀建築服務 ","4000000","3950000","112/09/21","112/10/04","南投縣－南投 ","否","","非中央政府辦理新臺幣一億元以上之公共工程 ","否"]
["134","南投縣政府 ","南投縣政府環境保護局 ","行政院環境保護署 ","南投縣立體育場公廁修繕工程委託設計監造服務工作 ","勞務","工程服務 ","1600050","1597449","112/10/19","112/10/23","南投縣－南投 ","否","","整修工程、拆除工程、疏濬工程、結構補強工程 ","否"]
["135","南投縣政府 ","南投縣埔里鎮公所 ","南投縣政府 "," 埔里鎮和平東路、中心路等路面改善工程-委託測設監造工作案 ","勞務","工程服務 ","1119545","1007591","112/10/17","112/10/17","南投縣－全區 ","否","","整修工程、拆除工程、疏濬工程、結構補強工程 ","否"]
["136","南投縣政府 ","南投縣埔里鎮公所 ","南投縣政府 ","「埔里鎮仁愛路及市區聯絡道路改善工程」委託設計及監造 ","勞務","工程服務 ","1025169","973911","112/10/31","112/10/31","南投縣－埔里 ","否","","整修工程、拆除工程、疏濬工程、結構補強工程 ","否"]
["137","南投縣政府 ","南投縣埔里鎮公所 ","南投縣政府 ","埔里鎮中山路三段、南昌街、東門及泰安里聯絡道路改善工程委託設計及監造 ","勞務","工程服務 ","1170070","1111567","112/10/31","112/10/31","南投縣－埔里 ","否","","整修工程、拆除工程、疏濬工程、結構補強工程 ","否"]
["138","南投縣政府 ","南投縣埔里鎮公所 ","無 ","「南投縣埔里鎮立第三納骨塔」- 委託測設及監造 ","勞務","建築服務 ","16949954","16916054","112/08/08","112/10/20","南投縣－全區 ","否","","非受中央政府補助比率逾工程建造經費百分之五十且補助經費達新臺幣一億元以上之個案公共工程","否"]
["139","南投縣政府 ","南投縣草屯鎮公所 ","內政部國土管理署 ","提升道路品質計畫(內政部)2.0-南投縣草屯鎮復興路及周邊聯絡道路改善工程-委託設計及監造 ","勞務","工程服務 ","955600","955600","112/10/19","112/10/19","南投縣－草屯 ","否","","非中央政府辦理新臺幣一億元以上之公共工程 ","否"]
["140","南投縣政府 ","南投縣草屯鎮公所 ","內政部營建署 ","草屯鎮和平街道路瓶頸路段拓寬改善工程-委託設計及監造 ","勞務","工程服務 ","1678000","1678000","112/10/17","112/10/18","南投縣－草屯 ","否","","非中央政府辦理新臺幣一億元以上之公共工程 ","否"]
["141","南投縣政府 ","南投縣草屯鎮公所 ","無 ","草屯鎮都市計劃區內市區道路路邊停車場調查及委託設計監造服務 ","勞務","工程服務 ","349000","349000","112/10/06","112/10/06","南投縣－草屯 ","否","","非中央政府辦理新臺幣一億元以上之公共工程,非受中央政府補助比率逾工程建造經費百分之五十且補助經費達新臺幣一億元以上之個案公共工程 ","否"]
["142","南投縣政府 ","南投縣竹山鎮公所 ","無 ","112南投縣竹山鎮市區道路排水改善工程委託設計監造服務 ","勞務","工程服務 ","988100","976520","112/10/26","112/10/31","南投縣－竹山 ","否","","非中央政府辦理新臺幣一億元以上之公共工程,非受中央政府補助比率逾工程建造經費百分之五十且補助經費達新臺幣一億元以上之個案公共工程,整修工程、拆除工程、疏濬工程、結構補強工程 ","否"]
["143","南投縣政府 ","南投縣集集鎮公所 ","經濟部水利署第四河川局 ","112年度集集鎮轄內道路排水改善工程-委託設計監造 ","勞務","工程服務 ","200502","184318","112/10/20","112/10/23","南投縣－集集 ","否","","整修工程、拆除工程、疏濬工程、結構補強工程 ","否"]
["144","南投縣政府 ","南投縣名間鄉公所 ","南投縣政府 ","南投縣名間鄉中正村道路品質改善工程委託技術服務 ","勞務","工程服務 ","1015363","979527","112/10/26","112/10/27","南投縣－名間 ","否","","非受中央政府補助比率逾工程建造經費百分之五十且補助經費達新臺幣一億元以上之個案公共工程 ","否"]
["145","南投縣政府 ","南投縣國姓鄉公所 ","行政院公共工程委員會 ","112年5月豪雨C2-001國姓鄉北山村種瓜巷第六鄰道路擋土牆災後復建工程委託設計監造技術服務 ","勞務","工程服務 ","431881","418924","112/10/02","112/10/02","南投縣－國姓 ","否","","災後原地復建 ","否"]
["146","南投縣政府 ","南投縣國姓鄉公所 ","行政院公共工程委員會 ","112年5月豪雨H3-035國姓鄉南港村南港路133-6旁邊坡崩塌災害復建工程委託規劃設計監造 ","勞務","工程服務 ","861050","835218","112/10/02","112/10/02","南投縣－國姓 ","否","","災後原地復建 ","否"]
["147","南投縣政府 ","南投縣水里鄉公所 ","內政部營建署 ","水里鄉農富路等四處提升道路品質改善工程委託設計及監造服務工作 ","勞務","工程服務 ","1015363","1015363","112/10/16","112/10/18","南投縣－水里 ","否","","整修工程、拆除工程、疏濬工程、結構補強工程 ","否"]
["148","南投縣政府 ","南投縣水里鄉公所 ","內政部營建署 ","水里鄉金龍路8巷等八處提升道路品質改善工程委託設計及監造服務工作 ","勞務","工程服務 ","1015363","1015363","112/10/16","112/10/18","南投縣－水里 ","否","","整修工程、拆除工程、疏濬工程、結構補強工程 ","否"]
["149","南投縣政府 ","南投縣立水里國民中學 ","教育部國民及學前教育署、南投縣政府 ","水里國中校園社區化改造計畫-設置學校社區共讀站工程委託規劃設計監造勞務採購案 ","勞務","建築服務 ","210000","205455","112/08/30","112/10/25","南投縣－水里 ","否","","整修工程、拆除工程、疏濬工程、結構補強工程 ","否"]
["150","南投縣政府 ","南投縣立南投國民中學 ","南投縣政府 ","112年度老舊廁所整修工程委託規劃設計監造案 ","勞務","建築服務 ","330000","330000","112/09/26","112/10/11","中部地區－全區 ","否","","整修工程、拆除工程、疏濬工程、結構補強工程 ","否"]
["151","南投縣政府 ","南投縣立宏仁國民中學 ","南投縣政府 ","112年度宏仁國中D棟北側老舊廁所整修工程委託設計監造技術服務 ","勞務","建築服務 ","377827","370270","112/10/02","112/10/04","南投縣－埔里 ","否","","整修工程、拆除工程、疏濬工程、結構補強工程 ","否"]
["152","南投縣政府 ","南投縣草屯鎮炎峰國民小學 ","南投縣政府 ","112年南投縣炎峰國小「校園社區化改造計畫之學校社區共讀站」委託規劃設計及監造服務勞務採購案 ","勞務","工程服務 ","198500","194000","112/10/26","112/10/30","中部地區－全區 ","否","","非中央政府辦理新臺幣一億元以上之公共工程 ","否"]
["153","南投縣政府 ","南投縣竹山鎮竹山國民小學 ","教育部 ","112年度竹山國民小學老舊廁所整修工程委託規劃設計及監造服務勞務採購案 ","勞務","建築服務 ","380000","372400","112/10/04","112/10/12","南投縣－竹山 ","否","","非中央政府辦理新臺幣一億元以上之公共工程 ","否"]
["154","南投縣政府 ","南投縣竹山鎮瑞竹國民小學 ","教育部國民及學前教育署 ","112年南投縣瑞竹國小 「校園社區化改造計畫之學校社區共讀站」委託 規劃設計及監造服務勞務採購案 ","勞務","工程服務 ","200000","200000","112/10/03","112/10/04","中部地區－全區 ","否","","非中央政府辦理新臺幣一億元以上之公共工程,非受中央政府補助比率逾工程建造經費百分之五十且補助經費達新臺幣一億元以上之個案公共工程 ","否"]
["155","南投縣政府 ","南投縣名間鄉弓鞋國民小學 ","教育部國民及學前教育署 ","弓鞋國小112年度「公立國民小學老舊廁所整修工程」委託規劃設計及監造服務 ","勞務","工程服務 ","280000","278000","112/10/11","112/10/17","中部地區－全區 ","否","","非中央政府辦理新臺幣一億元以上之公共工程 ","否"]
["156","南投縣政府 ","南投縣鹿谷鄉鳳凰國民小學 ","教育部 ","112年鳳凰國小「老舊廁所整修工程」委託規劃設計及監造服務採購案 ","勞務","建築服務 ","215000","215000","112/09/26","112/10/27","中部地區－全區 ","否","","整修工程、拆除工程、疏濬工程、結構補強工程 ","否"]
["157","南投縣政府 ","南投縣鹿谷鄉初鄉國民小學 ","教育部國民及學前教育署、南投縣政府 ","「112-113年度初鄉國小設置學校社區共讀站工程」委託規劃設計及監造服務勞務採購 ","勞務","工程服務 ","203388","200000","112/09/28","112/10/02","南投縣－鹿谷 ","否","","非中央政府辦理新臺幣一億元以上之公共工程 ","否"]
["158","南投縣政府 ","南投縣鹿谷鄉廣興國民小學 ","教育部 ","南投縣廣興國小運動操場及周邊設施整建計畫委託規劃設計及監造服務採購案 ","勞務","建築服務 ","752770","752770","112/10/02","112/10/05","南投縣－鹿谷 ","否","","整修工程、拆除工程、疏濬工程、結構補強工程 ","否"]
["159","南投縣政府 ","南投縣中寮鄉至誠國民小學 ","教育部國民及學前教育署 ","「112-113年度至誠國小設置學校社區共讀站工程」委託規劃設計及監造服務 ","勞務","工程服務 ","184042","184042","112/10/06","112/10/06","中部地區－全區 ","否","","整修工程、拆除工程、疏濬工程、結構補強工程 ","否"]
["160","南投縣政府 ","南投縣魚池鄉五城國民小學 ","教育部國民及學前教育署、南投縣政府 ","【「112-113年度五城國小設置學校社區共讀站工程」委託規劃設計及監造服務】採購案 ","勞務","建築服務 ","218000","204500","112/09/26","112/10/02","南投縣－魚池 ","否","","非受中央政府補助比率逾工程建造經費百分之五十且補助經費達新臺幣一億元以上之個案公共工程,整修工程、拆除工程、疏濬工程、結構補強工程 ","否"]
["161","南投縣政府 ","南投縣信義鄉信義國民小學 ","教育部 ","南投縣信義鄉信義國民小學112年度老舊廁所整修工程委託規劃設計監造案 ","勞務","工程服務 ","246845","246845","112/10/17","112/10/17","中部地區－全區 ","否","","非中央政府辦理新臺幣一億元以上之公共工程,非受中央政府補助比率逾工程建造經費百分之五十且補助經費達新臺幣一億元以上之個案公共工程,災後緊急處理、搶修、搶險,災後原地復建 ","否"]
["162","屏東縣政府 ","屏東縣政府 ","文化部文化資產局 ","歷史建築「屏東大武營區」因應計畫必要設施增設及基礎設施整合工程委託設計及監造 ","勞務","綜合工程服務 ","4095400","4050000","112/09/28","112/10/02","屏東縣－屏東 ","否","","非中央政府辦理新臺幣一億元以上之公共工程 ","否"]
["163","屏東縣政府 ","屏東縣政府 ","行政院農業委員會水土保持局 ","屏東縣三地門鄉德文社區舊派出所周邊景觀改善工程委託規劃設計暨監造技術服務 ","勞務","工程服務 ","343561","340289","112/09/28","112/10/02","屏東縣－三地門 ","否","","非中央政府辦理新臺幣一億元以上之公共工程,非受中央政府補助比率逾工程建造經費百分之五十且補助經費達新臺幣一億元以上之個案公共工程,災後緊急處理、搶修、搶險,災後原地復建,整修工程、拆除工程、疏濬工程、結構補強工程,規劃取得綠建築標章之建築工程 ","否"]
["164","屏東縣政府 ","屏東縣政府 ","行政院農業委員會水土保持局 ","屏東縣枋寮鄉新龍社區產業環境改善工程委託規劃設計暨監造技術服務 ","勞務","工程服務 ","550000","538000","112/10/24","112/10/27","屏東縣－枋寮 ","否","","非中央政府辦理新臺幣一億元以上之公共工程,非受中央政府補助比率逾工程建造經費百分之五十且補助經費達新臺幣一億元以上之個案公共工程 ","否"]
["165","屏東縣政府 ","屏東縣政府 ","無 ","「112年枋寮漁港港區及航道清疏工程(開口契約)」委託設計及監造技術服務 ","勞務","工程服務 ","700000","693000","112/10/26","112/10/27","屏東縣－枋寮 ","否","","災後緊急處理、搶修、搶險 ","否"]
["166","屏東縣政府 ","屏東縣政府 ","無 ","屏東縣林邊鄉崎峰國小老舊校舍拆除重建工程 ","工程","其他用途建築工程 ","148554171","148554171","112/10/06","112/10/11","屏東縣－林邊 ","否","","非受中央政府補助比率逾工程建造經費百分之五十且補助經費達新臺幣一億元以上之個案公共工程 ","否"]
["167","屏東縣政府 ","屏東縣政府 ","無 ","屏東高樹鄉及滿州鄉景區雙星計畫委託總體規劃及可行性服務案 ","勞務","工程服務 ","9900000","9700000","112/10/24","112/10/26","屏東縣－高樹,屏東縣－滿州 ","否","","非中央政府辦理新臺幣一億元以上之公共工程,非受中央政府補助比率逾工程建造經費百分之五十且補助經費達新臺幣一億元以上之個案公共工程,災後緊急處理、搶修、搶險,災後原地復建,整修工程、拆除工程、疏濬工程、結構補強工程,規劃取得綠建築標章之建築工程 ","否"]
["168","屏東縣政府 ","屏東縣政府 ","無 ","（112）屏東市中正路耶誕街道燈景專業服務採購案 ","勞務","建築服務 ","2500000","2470000","112/10/24","112/10/25","屏東縣－屏東 ","否","","非中央政府辦理新臺幣一億元以上之公共工程 ","否"]
["169","屏東縣政府 ","屏東縣政府警察局 ","無 ","112年度交通號誌新設工程開口契約委託監造技術服務第1次後續擴充 ","勞務","工程服務 ","1058386","1058386","112/10/11","112/10/20","屏東縣－全區 ","否","","整修工程、拆除工程、疏濬工程、結構補強工程 ","否"]
["170","屏東縣政府 ","屏東縣長治鄉公所 ","內政部營建署 ","「屏東縣長治鄉潭頭路等道路改善工程」-委託設計及監造技術服務 ","勞務","工程服務 ","386400","380880","112/10/24","112/10/25","屏東縣－長治 ","否","","整修工程、拆除工程、疏濬工程、結構補強工程 ","否"]
["171","屏東縣政府 ","屏東縣長治鄉公所 ","行政院農業委員會水土保持局 ","長治鄉德和村德和路及德榮村煙墩巷道路改善工程-委託設計監造技術服務 ","勞務","工程服務 ","294400","259700","112/10/12","112/10/16","屏東縣－長治 ","否","","整修工程、拆除工程、疏濬工程、結構補強工程 ","否"]
["172","屏東縣政府 ","屏東縣長治鄉公所 ","無 ","屏東縣長治鄉新潭村新民街128之31號旁道路排水改善工程-委託設計監造技術服務 ","勞務","工程服務 ","184700","161602","112/10/12","112/10/16","屏東縣－長治 ","否","","整修工程、拆除工程、疏濬工程、結構補強工程 ","否"]
["173","屏東縣政府 ","屏東縣麟洛鄉公所 ","無 ","「屏東縣麟洛鄉第一公墓第二納骨塔興辦事業計畫」委託專業服務 ","勞務","建築服務 ","600000","580000","112/10/24","112/10/25","屏東縣－麟洛 ","否","","整修工程、拆除工程、疏濬工程、結構補強工程 ","否"]
["174","屏東縣政府 ","屏東縣內埔鄉公所 ","內政部營建署 ","屏東縣內埔國小校園周邊暨行車安全道路改善計畫案委託設計監造技術服務 ","勞務","工程服務 ","659706","630679","112/09/19","112/10/19","屏東縣－內埔 ","否","","非受中央政府補助比率逾工程建造經費百分之五十且補助經費達新臺幣一億元以上之個案公共工程 ","否"]
["175","屏東縣政府 ","屏東縣內埔鄉公所 ","內政部營建署 ","屏東縣內埔鄉崇文國民小學校門暨通學步道整修工程案委託設計監造技術服務 ","勞務","工程服務 ","779569","744488","112/09/19","112/10/20","屏東縣－全區 ","否","","非受中央政府補助比率逾工程建造經費百分之五十且補助經費達新臺幣一億元以上之個案公共工程 ","否"]
["176","屏東縣政府 ","屏東縣內埔鄉公所 ","內政部營建署 ","屏東縣內埔國民中學校門暨通學步道整修工程計畫案委託設計監造技術服務 ","勞務","工程服務 ","1478460","1398000","112/09/19","112/10/19","屏東縣－內埔 ","否","","非受中央政府補助比率逾工程建造經費百分之五十且補助經費達新臺幣一億元以上之個案公共工程 ","否"]
["177","屏東縣政府 ","屏東縣內埔鄉公所 ","內政部營建署 ","(112)屏東縣內埔鄉內埔都市計畫區及周邊道路品質改善工程委託設計監造技術服務 ","勞務","工程服務 ","756505","718680","112/10/04","112/10/20","屏東縣－內埔 ","否","","非受中央政府補助比率逾工程建造經費百分之五十且補助經費達新臺幣一億元以上之個案公共工程 ","否"]
["178","屏東縣政府 ","屏東縣內埔鄉公所 ","內政部營建署 ","(112)屏東縣內埔鄉屏東科技大學周邊道路品質改善工程委託設計監造技術服務 ","勞務","工程服務 ","820687","771446","112/10/04","112/10/20","屏東縣－內埔 ","否","","非受中央政府補助比率逾工程建造經費百分之五十且補助經費達新臺幣一億元以上之個案公共工程 ","否"]
["179","屏東縣政府 ","屏東縣枋寮鄉公所 ","行政院農業委員會水土保持局臺南分局 ","「枋寮鄉太源村中程路(北段)社區農路改善工程」委託設計暨監造技術服務 ","勞務","工程服務 ","315000","249288","112/10/12","112/10/12","屏東縣－枋寮 ","否","","整修工程、拆除工程、疏濬工程、結構補強工程 ","否"]
["180","屏東縣政府 ","屏東縣枋寮鄉公所 ","無 ","「112年枋寮鄉殯葬園區美化改善工程」委託設計暨監造技術服務 ","勞務","工程服務 ","366801","327360","112/10/26","112/10/26","屏東縣－枋寮 ","否","","整修工程、拆除工程、疏濬工程、結構補強工程 ","否"]
["181","屏東縣政府 ","屏東縣林邊鄉公所 ","屏東縣政府 ","112-林邊鄉河堤亭架興建工程委託設計監造 ","勞務","工程服務 ","341948","324851","112/10/19","112/10/25","屏東縣－林邊 ","否","","非受中央政府補助比率逾工程建造經費百分之五十且補助經費達新臺幣一億元以上之個案公共工程 ","否"]
["182","屏東縣政府 ","屏東縣琉球鄉公所 ","內政部營建署 ","【屏東縣琉球鄉琉球國中通學環境改善工程】委託設計監造服務 ","勞務","工程服務 ","1704960","1599120","112/09/27","112/10/02","屏東縣－琉球 ","否","","非中央政府辦理新臺幣一億元以上之公共工程 ","否"]
["183","屏東縣政府 ","屏東縣琉球鄉公所 ","內政部營建署 ","【屏東縣琉球鄉全德國小通學環境改善工程】委託設計監造服務 ","勞務","工程服務 ","1937250","1795500","112/09/27","112/10/02","屏東縣－琉球 ","否","","非中央政府辦理新臺幣一億元以上之公共工程 ","否"]
["184","屏東縣政府 ","屏東縣車城鄉公所 ","農業部農村發展及水土保持署 ","「車城鄉保力村福德宮旁等道路改善工程」委託設計監造技術服務 ","勞務","工程服務 ","357000","340000","112/10/20","112/10/23","屏東縣－車城 ","否","","整修工程、拆除工程、疏濬工程、結構補強工程 ","否"]
["185","屏東縣政府 ","屏東縣滿州鄉公所 ","原住民族委員會 ","長樂村長樂部落往屏156鄉道聯絡道路改善工程委託設計監造技術服務 ","勞務","工程服務 ","1479693","1450000","112/10/12","112/10/12","屏東縣－滿州 ","否","","整修工程、拆除工程、疏濬工程、結構補強工程 ","否"]
["186","屏東縣政府 ","屏東縣春日鄉公所 ","原住民族委員會 ","112年度原住民族地方通行語及傳統名稱標示補助計畫勞務採購案 ","勞務","綜合工程服務 ","700000","698000","112/10/27","112/10/27","屏東縣－春日 ","否","","非受中央政府補助比率逾工程建造經費百分之五十且補助經費達新臺幣一億元以上之個案公共工程","否"]
["187","屏東縣政府 ","屏東縣牡丹鄉公所 ","無 ","牡丹鄉第六、第七及第九公墓舊墓更新興辦事業計畫暨水保計畫委託技術服務勞務採購案 ","勞務","綜合工程服務 ","3000000","3000000","112/10/17","112/10/19","屏東縣－全區 ","否","","非中央政府辦理新臺幣一億元以上之公共工程 ","否"]
["188","屏東縣政府 ","屏東縣立至正國民中學 ","教育部國民及學前教育署 ","「海葵颱風災損水溝修復工程」委託設計監造技術服務採購 ","勞務","工程服務 ","305721","305721","112/10/19","112/10/24","屏東縣－屏東 ","否","","非中央政府辦理新臺幣一億元以上之公共工程 ","否"]
["189","屏東縣政府 ","屏東縣屏東市海豐國民小學 ","屏東縣政府 ","112年度海豐國小教學大樓老舊廁所整修工程委託設計監造技術服務 ","勞務","建築服務 ","281350","281350","112/10/31","112/10/31","南部地區－全區 ","否","","整修工程、拆除工程、疏濬工程、結構補強工程 ","否"]
["190","屏東縣政府 ","屏東縣林邊鄉竹林國民小學 ","屏東縣政府 ","屏東縣竹林國小113年學校社區共讀站委託規劃設計監造技術服務 ","勞務","工程服務 ","205000","205000","112/10/25","112/10/25","屏東縣－林邊 ","否","","非中央政府辦理新臺幣一億元以上之公共工程 ","否"]
["191","苗栗縣政府 ","苗栗縣政府 ","無 ","「112年度苗栗縣寬頻管道設施維修工程」委託監造（開口契約）技術服務工作後續擴充 ","勞務","綜合工程服務 ","318000","318000","112/09/18","112/10/12","苗栗縣－全區 ","否","","非中央政府辦理新臺幣一億元以上之公共工程,非受中央政府補助比率逾工程建造經費百分之五十且補助經費達新臺幣一億元以上之個案公共工程,整修工程、拆除工程、疏濬工程、結構補強工程 ","否"]
["192","苗栗縣政府 ","苗栗縣政府 ","無 ","苗栗縣身心障礙發展中心廁所改善工程(地下1樓至地上3樓)委託規劃設計監造案 ","勞務","建築服務 ","584457","566923","112/10/06","112/10/06","苗栗縣－全區 ","否","","非中央政府辦理新臺幣一億元以上之公共工程 ","否"]
["193","苗栗縣政府 ","苗栗縣政府 ","無 ","台61線房裡交流道(增設北出、南入匝道工程)可行性研究修訂作業 ","勞務","工程服務 ","1620000","1568700","112/09/27","112/10/02","全部地區－全區 ","否","","非中央政府辦理新臺幣一億元以上之公共工程,非受中央政府補助比率逾工程建造經費百分之五十且補助經費達新臺幣一億元以上之個案公共工程 ","否"]
["194","苗栗縣政府 ","苗栗縣政府 ","無 ","「頭份市頭份大橋改善工程」委託技術服務工作(第一次變更設計) ","勞務","工程服務 ","95359","93452","112/10/04","112/10/11","全部地區－全區 ","否","","整修工程、拆除工程、疏濬工程、結構補強工程 ","否"]
["195","苗栗縣政府 ","苗栗縣政府 ","無 ","112年度前瞻基礎建設計畫、宜居部落建設計畫等中央補助計畫委託規劃設計監造（開口契約）後續擴充 ","勞務","工程服務 ","3849556","3849556","112/10/04","112/10/11","全部地區－全區 ","否","","非中央政府辦理新臺幣一億元以上之公共工程 ","否"]
["196","苗栗縣政府 ","苗栗縣政府 ","無 ","112年度苗栗縣竹南鎮等4鄉鎮轄內縣鄉道改善、小型及其他公共工程橋梁工程災害復建工程委託設計監造（開口契約第1區）技術服務後擴 ","勞務","工程服務 ","5553703","5553703","112/10/04","112/10/11","全部地區－全區 ","否","","非受中央政府補助比率逾工程建造經費百分之五十且補助經費達新臺幣一億元以上之個案公共工程 ","否"]
["197","苗栗縣政府 ","苗栗縣政府 ","無 ","112年苗栗縣公館鄉等5鄉鎮轄內縣鄉道改善小型及其他公共工程橋梁工程災害復建工程委託設計監造（開口契約第4區）技術服務工作後擴 ","勞務","工程服務 ","5553703","5553703","112/10/25","112/10/27","全部地區－全區 ","否","","災後緊急處理、搶修、搶險,災後原地復建 ","否"]
["198","苗栗縣政府 ","苗栗縣政府 ","無 ","112年度苗栗縣南龍區漁會轄內漁港各項漁業設施改善相關工程(含災害復建工程)委託規劃、設計及監造技術服務工作開口契約後續擴充 ","勞務","工程服務 ","867248","867248","112/10/30","112/10/31","全部地區－全區 ","否","","非中央政府辦理新臺幣一億元以上之公共工程 ","否"]
["199","苗栗縣政府 ","苗栗縣政府 ","農業部漁業署 ","112年通霄漁港東側漁具整補場興建工程委託規劃設計及後續擴充監造技術服務 ","勞務","建築服務 ","1100000","1065500","112/10/04","112/10/11","全部地區－全區 ","否","","非中央政府辦理新臺幣一億元以上之公共工程 ","否"]
["200","苗栗縣政府 ","苗栗縣動物保護防疫所 ","農業部 ","苗栗縣動物收容所犬舍延伸戶外運動場第一期設計監造工作 ","勞務","工程服務 ","210000","200000","112/10/12","112/10/16","苗栗縣－銅鑼 ","否","","非中央政府辦理新臺幣一億元以上之公共工程 ","否"]
["201","苗栗縣政府 ","苗栗縣苗栗市公所 ","台灣中油股份有限公司探採事業部 ","「苗栗市清華公園遮陽設施設置計畫」委託設計監造技術服務 ","勞務","工程服務 ","251135","246112","112/10/25","112/10/30","北部地區－全區 ","否","","非中央政府辦理新臺幣一億元以上之公共工程,非受中央政府補助比率逾工程建造經費百分之五十且補助經費達新臺幣一億元以上之個案公共工程 ","否"]
["202","苗栗縣政府 ","苗栗縣苗栗市公所 ","無 ","112苗栗市國華路(橫車路口至至公路口)人行空間改善工程委託設計及監造技術服務案 ","勞務","工程服務 ","2881666","2737503","112/10/20","112/10/26","苗栗縣－苗栗 ","否","","非中央政府辦理新臺幣一億元以上之公共工程 ","否"]
["203","苗栗縣政府 ","苗栗縣苑裡鎮公所 ","交通部公路總局 ","苗栗縣鄉道苗45線1K+350-4K+215及苗47線4K+560-9K+560(苑裡鎮)路面改善工程委託規劃設計暨監造技術服務 ","勞務","工程服務 ","1843949","1659554","112/09/26","112/10/02","苗栗縣－苑裡 ","否","","非中央政府辦理新臺幣一億元以上之公共工程 ","否"]
["204","苗栗縣政府 ","苗栗縣苑裡鎮公所 ","苗栗縣政府、經濟部 ","「苗栗縣苑裡鎮苑裡公有零售市場」 拆除重建統包工程 ","工程","其他用途建築工程 ","240000000","240000000","112/10/25","112/10/27","苗栗縣－苑裡 ","否","","災後原地復建,整修工程、拆除工程、疏濬工程、結構補強工程 ","否"]
["205","苗栗縣政府 ","苗栗縣通霄鎮公所 ","台灣中油股份有限公司探採事業部 ","通霄鎮梅南里13鄰AC路面改善工程-委託規劃、設計及監造 ","勞務","工程服務 ","155466","130591","112/10/12","112/10/13","苗栗縣－通霄 ","否","","整修工程、拆除工程、疏濬工程、結構補強工程 ","否"]
["206","苗栗縣政府 ","苗栗縣通霄鎮公所 ","交通部公路總局 ","苗栗縣鄉道苗36線0K＋700-4K＋548（通霄鎮）路面改善工程委託規劃、設計及監造 ","勞務","工程服務 ","1583570","1564940","112/10/17","112/10/19","苗栗縣－通霄 ","否","","非中央政府辦理新臺幣一億元以上之公共工程 ","否"]
["207","苗栗縣政府 ","苗栗縣後龍鎮公所 ","交通部公路總局 ","苗栗縣後龍鎮大山國小校園周邊暨行車安全道路改善計畫委託設計監造 ","勞務","工程服務 ","1651018","1601487","112/10/04","112/10/05","苗栗縣－後龍 ","否","","非受中央政府補助比率逾工程建造經費百分之五十且補助經費達新臺幣一億元以上之個案公共工程 ","否"]
["208","苗栗縣政府 ","苗栗縣公館鄉公所 ","內政部 ","苗栗縣公館鄉五谷村鄰里道路改善工程委託設計監造技術服務 ","勞務","工程服務 ","865644","848331","112/10/17","112/10/20","苗栗縣－公館 ","否","","整修工程、拆除工程、疏濬工程、結構補強工程 ","否"]
["209","苗栗縣政府 ","苗栗縣銅鑼鄉公所 ","無 ","變更銅鑼都市計畫（第五次通盤檢討）案 ","勞務","都市計劃及景觀建築服務 ","4500000","4500000","112/10/24","112/10/26","苗栗縣－銅鑼 ","否","","非中央政府辦理新臺幣一億元以上之公共工程 ","否"]
["210","苗栗縣政府 ","苗栗縣南庄鄉公所 ","無 ","112年南庄鄉野溪除草及水保設施維護(開口合約) ","勞務","工程服務 ","700000","690000","112/10/12","112/10/12","苗栗縣－南庄 ","否","","非中央政府辦理新臺幣一億元以上之公共工程 ","否"]
["211","苗栗縣政府 ","苗栗縣南庄鄉公所 ","無 ","112年度南庄鄉各村小型改善工程(委託設計、監造) ","勞務","工程服務 ","415020","406866","112/10/27","112/10/30","苗栗縣－南庄 ","否","","非中央政府辦理新臺幣一億元以上之公共工程 ","否"]
["212","苗栗縣政府 ","苗栗縣南庄鄉公所 ","無 ","112年度南庄鄉迫切小型改善工程(委託設計、監造) ","勞務","工程服務 ","863457","824029","112/10/27","112/10/30","苗栗縣－南庄 ","否","","非中央政府辦理新臺幣一億元以上之公共工程 ","否"]
["213","苗栗縣政府 ","苗栗縣西湖鄉公所 ","內政部營建署 ","112年度西湖鄉五湖村九份社區周邊道路品質提升計畫委託設計及監造 ","勞務","綜合工程服務 ","1146396","1126907","112/10/25","112/10/26","苗栗縣－西湖 ","否","","非受中央政府補助比率逾工程建造經費百分之五十且補助經費達新臺幣一億元以上之個案公共工程","否"]
["214","苗栗縣政府 ","苗栗縣泰安鄉公所 ","苗栗縣政府 ","112年度泰安鄉原住民族地區簡易自來水系統營運計畫(開口合約) ","勞務","工程服務 ","1700000","1320000","112/09/27","112/10/04","苗栗縣－泰安 ","否","","災後緊急處理、搶修、搶險,災後原地復建 ","否"]
["215","苗栗縣政府 ","苗栗縣泰安鄉公所 ","無 ","112年度苗栗縣泰安鄉路燈維修開口契約 ","勞務","工程服務 ","1500000","1305000","112/09/27","112/10/04","苗栗縣－泰安 ","否","","非受中央政府補助比率逾工程建造經費百分之五十且補助經費達新臺幣一億元以上之個案公共工程 ","否"]
["216","苗栗縣政府 ","苗栗縣頭份市公所 ","無 ","頭份生命紀念館增設櫃位工程委託設計監造技術服務 ","勞務","工程服務 ","3855117","3835841","112/10/12","112/10/13","苗栗縣－頭份 ","否","","非受中央政府補助比率逾工程建造經費百分之五十且補助經費達新臺幣一億元以上之個案公共工程 ","否"]
["217","苗栗縣政府 ","苗栗縣立興華高級中學 ","苗栗縣政府 ","苗栗縣立興華高中「新建活動中心運動專用櫸木地板工程」委託技術服務勞務採購案 ","勞務","建築服務 ","619396","611481","112/09/12","112/10/02","苗栗縣－全區 ","否","","非中央政府辦理新臺幣一億元以上之公共工程 ","否"]
["218","苗栗縣政府 ","苗栗縣立公館國民中學 ","苗栗縣政府、客家委員會 ","112年度公館國中演藝廳規劃設計監造服務 ","勞務","建築服務 ","298549","298549","112/10/06","112/10/13","北部地區－全區 ","否","","非中央政府辦理新臺幣一億元以上之公共工程 ","否"]
["219","苗栗縣政府 ","苗栗縣立公館國民中學 ","教育部 ","112年度苗栗縣公館國中運動操場及周邊設施整建工程規劃設計監造 ","勞務","工程服務 ","857455","685964","112/08/31","112/10/24","北部地區－全區 ","否","","非中央政府辦理新臺幣一億元以上之公共工程 ","否"]
["220","苗栗縣政府 ","苗栗縣立建國國民中學 ","教育部 ","112年公立國民中小學老舊廁所整修工程技術服務勞務採購案 ","勞務","建築服務 ","439458","439458","112/10/18","112/10/20","中部地區－全區 ","否","","非中央政府辦理新臺幣一億元以上之公共工程,非受中央政府補助比率逾工程建造經費百分之五十且補助經費達新臺幣一億元以上之個案公共工程 ","否"]
["221","苗栗縣政府 ","苗栗縣通霄鎮烏眉國民小學 ","苗栗縣政府 ","112年度充實設施設備-校園地坪改善暨學校中廊廊道修復及排水改善工程委託技術服務勞務採購案(規劃設計) ","勞務","工程服務 ","270000","261900","112/10/31","112/10/31","苗栗縣－全區 ","否","","非中央政府辦理新臺幣一億元以上之公共工程,非受中央政府補助比率逾工程建造經費百分之五十且補助經費達新臺幣一億元以上之個案公共工程 ","是"]
["222","苗栗縣政府 ","苗栗縣苑裡鎮客庄國民小學 ","教育部國民及學前教育署 ","客庄國小112年度C棟大樓老舊廁所整修工程委託規劃設計監造勞務採購案 ","勞務","工程服務 ","349676","342682","112/10/13","112/10/13","苗栗縣－全區 ","已依規定納入辦理節能減碳檢核 ","規劃設計階段納入辦理節能減碳檢核 ","","否"]
["223","苗栗縣政府 ","苗栗縣頭份市信德國民小學 ","教育部國民及學前教育署 ","112年信德國小校舍內外油漆工程委託規劃設計監造技術服務 ","勞務","建築服務 ","385033","381182","112/10/06","112/10/06","苗栗縣－全區 ","否","","整修工程、拆除工程、疏濬工程、結構補強工程 ","否"]
["224","桃園市政府 ","桃園市立圖書館 ","無 ","桃園市立圖書館總館會計室空間提升工程委託設計及監造技術服務案 ","勞務","工程服務 ","260000","234000","112/10/18","112/10/18","桃園市－桃園區 ","否","","非中央政府辦理新臺幣一億元以上之公共工程 ","否"]
["225","桃園市政府 ","桃園市立楊梅高級中等學校 ","桃園市政府教育局 ","桃園市楊梅高中無障礙電梯工程委託規劃設計暨監造技術服務採購案 ","勞務","建築服務 ","286769","272431","112/10/05","112/10/12","桃園市－楊梅區 ","否","","非中央政府辦理新臺幣一億元以上之公共工程,非受中央政府補助比率逾工程建造經費百分之五十且補助經費達新臺幣一億元以上之個案公共工程 ","否"]
["226","桃園市政府 ","桃園市立內壢高級中等學校 ","桃園市政府教育局 ","綜合體育館整修工程委託技術服務案 ","勞務","工程服務 ","835000","835000","112/10/27","112/10/27","桃園市－中壢區 ","否","","非中央政府辦理新臺幣一億元以上之公共工程 ","否"]
["227","桃園市政府 ","桃園市立中興國民中學 ","桃園市政府教育局 ","藝術樓東側廁所整修工程委託規劃設計監造技術服務採購 ","勞務","建築服務 ","253700","253700","112/10/13","112/10/17","桃園市－全區 ","否","","非中央政府辦理新臺幣一億元以上之公共工程 ","否"]
["228","桃園市政府 ","桃園市立內壢國民中學 ","無 ","演藝廳設備改善工程委託規劃設計監造採購案 ","勞務","工程服務 ","244912","244912","112/10/12","112/10/16","桃園市－全區 ","否","","整修工程、拆除工程、疏濬工程、結構補強工程 ","否"]
["229","桃園市政府 ","桃園市立平南國民中學 ","桃園市政府教育局 ","側棟及後棟中間廁所整修工程規劃設計 ","勞務","建築服務 ","224000","224000","112/10/12","112/10/17","桃園市－平鎮區 ","否","","非中央政府辦理新臺幣一億元以上之公共工程 ","否"]
["230","桃園市政府 ","桃園市立竹圍國民中學 ","無 ","112年品德樓東側老舊廁所整修工程-委託規劃設計監造技術服務案 ","勞務","工程服務 ","180297","180297","112/10/05","112/10/05","桃園市－大園區 ","否","","整修工程、拆除工程、疏濬工程、結構補強工程 ","否"]
["231","桃園市政府 ","桃園市桃園區慈文國民小學 ","教育部國民及學前教育署 ","112年度公立國民中小學老舊廁所整修工程(北棟西)技術服務採購 ","勞務","工程服務 ","286573","286573","112/10/13","112/10/17","桃園市－桃園區 ","否","","整修工程、拆除工程、疏濬工程、結構補強工程 ","否"]
["232","桃園市政府 ","桃園市中壢區中正國民小學 ","桃園市政府教育局 ","112年度改善校園環境-冷氣設置局部電力改善工程委託規劃設計監造服務 ","勞務","工程服務 ","425494","425494","112/10/12","112/10/12","桃園市－中壢區 ","否","","非中央政府辦理新臺幣一億元以上之公共工程,非受中央政府補助比率逾工程建造經費百分之五十且補助經費達新臺幣一億元以上之個案公共工程 ","否"]
["233","桃園市政府 ","桃園市八德區大安國民小學 ","教育部體育署 ","「112年度運動操場及周邊設施整建工程」委託規劃設計暨監造技術服務 ","勞務","建築服務 ","638938","638938","112/10/03","112/10/03","桃園市－八德區 ","否","","非中央政府辦理新臺幣一億元以上之公共工程 ","否"]
["234","桃園市政府 ","桃園市蘆竹區南崁國民小學 ","教育部國民及學前教育署 ","博習樓廁所整修工程之委託設計監造服務 ","勞務","工程服務 ","599427","593251","112/09/27","112/10/06","桃園市－全區 ","否","","整修工程、拆除工程、疏濬工程、結構補強工程 ","否"]
["235","桃園市政府 ","桃園市大園區內海國民小學 ","無 ","「內海國小校舍屋頂防水改善工程」設計監造委託技術服務案 ","勞務","工程服務 ","294184","294184","112/10/19","112/10/19","桃園市－大園區 ","否","","非中央政府辦理新臺幣一億元以上之公共工程,非受中央政府補助比率逾工程建造經費百分之五十且補助經費達新臺幣一億元以上之個案公共工程,災後原地復建 ","否"]
["236","桃園市政府 ","桃園市復興區三民國民小學 ","桃園市政府教育局 ","運動操場及周邊設施整建工程委託規劃設計監造技術服務 ","勞務","工程服務 ","314500","314500","112/10/17","112/10/19","桃園市－復興區 ","否","","非中央政府辦理新臺幣一億元以上之公共工程 ","否"]
["237","桃園市政府 ","桃園市政府工務局 ","無 ","桃園都會區大眾捷運系統桃園青線暨周邊土地整合發展委託可行性研究服務(略) ","勞務","綜合工程服務 ","18000000","17460000","112/10/06","112/10/23","桃園市－中壢區,桃園市－桃園區,桃園市－大園區,桃園市－蘆竹區 ","否","","非受中央政府補助比率逾工程建造經費百分之五十且補助經費達新臺幣一億元以上之個案公共工程 ","否"]
["238","桃園市政府 ","桃園市政府新建工程處 ","無 ","「桃園市大溪區內柵國民小學北棟校舍拆除重建工程(後續工程)」委託案專案管理(不含監造)技術服務 ","勞務","建築服務 ","940853","937184","112/10/12","112/10/23","桃園市－大溪區 ","否","","非中央政府辦理新臺幣一億元以上之公共工程 ","否"]
["239","桃園市政府 ","桃園市政府環境保護局 ","無 ","桃園市東門溪水質淨化現地處理設施規劃設計計畫 ","勞務","工程服務 ","12600000","12600000","112/09/21","112/10/04","桃園市－桃園區 ","已依規定納入辦理節能減碳檢核 ","規劃設計階段納入辦理節能減碳檢核 ","","否"]
["240","桃園市政府 ","桃園市政府環境清潔稽查大隊 ","無 ","桃園市桃園區會稽垃圾掩埋場水土保持計畫及其相關作業委託技術服務 ","勞務","工程服務 ","2000000","1995000","112/09/28","112/10/04","桃園市－桃園區 ","否","","非受中央政府補助比率逾工程建造經費百分之五十且補助經費達新臺幣一億元以上之個案公共工程 ","否"]
["241","桃園市政府 ","桃園市政府水務局 ","無 ","桃園市龜山區(大坪頂地區)污水下水道系統第二期第1次修正實施計畫委託專業服務案 ","勞務","工程服務 ","1490000","1490000","112/10/11","112/10/13","桃園市－桃園區 ","否","","非中央政府辦理新臺幣一億元以上之公共工程 ","否"]
["242","桃園市政府 ","桃園市政府水務局 ","無 ","大嵙崁清淤輸送系統工程(0k+000~1k+000) ","工程","水道、海港、水壩及其他水利工程 ","133796368","114777000","112/10/05","112/10/19","桃園市－大溪區 ","已依規定納入辦理節能減碳檢核 ","規劃設計階段納入辦理節能減碳檢核 ","","否"]
["243","桃園市政府 ","桃園市政府觀光旅遊局 ","無 ","溪口部落觀光環境營造計畫工程設計委託技術服務(後續擴充監造) ","勞務","工程服務 ","448228","448000","112/10/18","112/10/18","桃園市－復興區 ","否","","非中央政府辦理新臺幣一億元以上之公共工程 ","否"]
["244","桃園市政府 ","桃園市政府消防局 ","無 ","搜救犬舍暨特搜大隊與第一搜救救助分隊遷建工程委託規劃設計及監造技術服務 ","勞務","建築服務 ","6722177","6700000","112/09/11","112/10/06","桃園市－八德區 ","否","","非中央政府辦理新臺幣一億元以上之公共工程 ","否"]
["245","桃園市政府 ","桃園市政府文化局 ","客家委員會 ","「市定古蹟新屋范姜祖堂景觀及排水改善工程」委託監造技術服務案 ","勞務","建築服務 ","830000","810000","112/10/18","112/10/20","桃園市－新屋區 ","否","","整修工程、拆除工程、疏濬工程、結構補強工程 ","否"]
["246","桃園市政府 ","桃園市桃園區公所 ","無 ","變更南崁新市鎮都市計畫(中埔段31地號及33地號使用分區部分調整)委託服務 ","勞務","都市計劃及景觀建築服務 ","1800000","1680000","112/10/18","112/10/19","桃園市－桃園區 ","否","","非中央政府辦理新臺幣一億元以上之公共工程 ","否"]
["247","桃園市政府 ","桃園市平鎮區公所 ","無 ","112年度平鎮區鄉村道路植栽修剪養護工作(開口合約) ","勞務","綜合工程服務 ","1499552","1137299","112/10/12","112/10/13","桃園市－平鎮區 ","否","","非中央政府辦理新臺幣一億元以上之公共工程,非受中央政府補助比率逾工程建造經費百分之五十且補助經費達新臺幣一億元以上之個案公共工程 ","否"]
["248","桃園市政府 ","桃園市蘆竹區公所 ","無 ","113年度水利建設委託規劃設計及監造技術服務 ","勞務","工程服務 ","2480000","2480000","112/10/12","112/10/16","桃園市－蘆竹區 ","否","","非受中央政府補助比率逾工程建造經費百分之五十且補助經費達新臺幣一億元以上之個案公共工程,整修工程、拆除工程、疏濬工程、結構補強工程 ","否"]
["249","桃園市政府 ","桃園市龍潭區公所 ","無 ","龍潭區八德段1224地號等12筆土地德湖街既有道路改善工程委託監造技術服務案 ","勞務","工程服務 ","2470890","2470890","112/10/05","112/10/06","桃園市－龍潭區 ","否","","非受中央政府補助比率逾工程建造經費百分之五十且補助經費達新臺幣一億元以上之個案公共工程 ","否"]
["250","桃園市政府 ","桃園市復興區公所 ","無 ","桃園市復興區112年度前山公共建設工程及災害復建工程委託設計監造技術服務 ","勞務","工程服務 ","6705800","6585095","112/09/21","112/10/05","桃園市－復興區 ","否","","災後原地復建,整修工程、拆除工程、疏濬工程、結構補強工程 ","否"]
["251","桃園市政府 ","桃園市復興區公所 ","無 ","桃園市復興區112年度中山公共建設工程及災害復建工程委託設計監造技術服務 ","勞務","工程服務 ","6225100","6113048","112/09/21","112/10/11","桃園市－復興區 ","否","","災後原地復建,整修工程、拆除工程、疏濬工程、結構補強工程 ","否"]
["252","桃園市政府 ","桃園市復興區公所 ","無 ","桃園市復興區112年度後山公共建設工程及災害復建工程委託設計監造技術服務 ","勞務","工程服務 ","6169700","6058645","112/09/21","112/10/13","桃園市－復興區 ","否","","災後原地復建,整修工程、拆除工程、疏濬工程、結構補強工程 ","否"]
["253","海洋委員會 ","海洋委員會海巡署艦隊分署 ","無 ","「恆春海巡隊營舍新建工程委託監造及環境監測技術服務案」第4次契約變更 ","勞務","建築服務 ","5745600","5740000","112/10/13","112/10/17","屏東縣－恆春 ","否","","規劃取得綠建築標章之建築工程 ","否"]
["254","財政部 ","臺灣菸酒股份有限公司 ","無 ","北部營業處中和營業所危老重建可行性評估委託專業服務案 ","勞務","建築服務 ","950000","920000","112/10/04","112/10/05","新北市－中和區 ","否","","非中央政府辦理新臺幣一億元以上之公共工程 ","否"]
["255","財政部 ","臺灣銀行股份有限公司 ","無 ","市定古蹟臺灣銀行委託調查研究、修復及再利用計畫 ","勞務","建築服務 ","2880000","2880000","112/10/23","112/10/24","臺北市－全區 ","否","","非中央政府辦理新臺幣一億元以上之公共工程 ","否"]
["256","財政部 ","臺灣銀行股份有限公司 ","無 ","行員訓練所宿舍及餐廳整修工程規劃設計監造技術服務 ","勞務","建築服務 ","1408800","1408800","112/10/11","112/10/11","臺北市－士林區 ","否","","非中央政府辦理新臺幣一億元以上之公共工程 ","否"]
["257","財政部 ","臺灣土地銀行股份有限公司 ","無 ","和平大樓六樓不斷電系統維護 ","勞務","工程服務 ","499958","480000","112/10/17","112/10/17","臺北市－大安區 ","否","","非中央政府辦理新臺幣一億元以上之公共工程,非受中央政府補助比率逾工程建造經費百分之五十且補助經費達新臺幣一億元以上之個案公共工程 ","否"]
["258","財政部 ","臺灣土地銀行股份有限公司 ","無 ","台中分行管有行舍外牆及景觀整修工程委託設計及監造 ","勞務","建築服務 ","392000","390000","112/10/17","112/10/17","臺中市－西區 ","否","","整修工程、拆除工程、疏濬工程、結構補強工程 ","否"]
["259","高雄市政府 ","高雄市政府教育局 ","教育部國民及學前教育署 ","高雄市鳳山區文中13非營利幼兒園新建工程 ","工程","教育用建築工程 ","116975564","113500000","112/10/03","112/10/23","高雄市－鳳山區 ","否","","非中央政府辦理新臺幣一億元以上之公共工程 ","否"]
["260","高雄市政府 ","高雄市立社會教育館 ","無 ","「中庭演講廳銜接廊道新建工程」委託監造及簽證勞務採購 ","勞務","建築服務 ","255000","250000","112/10/02","112/10/02","高雄市－小港區 ","否","","非中央政府辦理新臺幣一億元以上之公共工程,非受中央政府補助比率逾工程建造經費百分之五十且補助經費達新臺幣一億元以上之個案公共工程 ","否"]
["261","高雄市政府 ","高雄市立三民高級中學 ","內政部營建署 ","112年通學步道改善工程委託規劃設計監造服務 ","勞務","工程服務 ","967173","967173","112/09/23","112/10/16","高雄市－三民區 ","否","","非受中央政府補助比率逾工程建造經費百分之五十且補助經費達新臺幣一億元以上之個案公共工程 ","否"]
["262","高雄市政府 ","高雄市立三民高級中學 ","教育部體育署 ","112年網球場整建工程委託規劃設計監造服務 ","勞務","工程服務 ","461137","461137","112/10/13","112/10/16","高雄市－三民區 ","否","","非受中央政府補助比率逾工程建造經費百分之五十且補助經費達新臺幣一億元以上之個案公共工程 ","否"]
["263","高雄市政府 ","高雄市立楠梓特殊學校 ","教育部國民及學前教育署 ","112年度無障礙電梯整修工程委託設計規劃暨監造 ","勞務","建築服務 ","235204","235000","112/09/22","112/10/24","高雄市－全區 ","否","","整修工程、拆除工程、疏濬工程、結構補強工程 ","否"]
["264","高雄市政府 ","高雄市立旗津國民中學 ","教育部國民及學前教育署 ","112年活動中心老舊廁所整修委託規劃設計監造服務 ","勞務","建築服務 ","305831","305831","112/10/02","112/10/20","高雄市－全區 ","否","","整修工程、拆除工程、疏濬工程、結構補強工程 ","否"]
["265","高雄市政府 ","高雄市立大仁國民中學 ","教育部國民及學前教育署 ","大仁國中綜合大樓老舊廁所整修工程委託規劃設計監造技術服務 ","勞務","工程服務 ","249000","239302","112/09/26","112/10/26","高雄市－全區 ","否","","非中央政府辦理新臺幣一億元以上之公共工程,整修工程、拆除工程、疏濬工程、結構補強工程 ","否"]
["266","高雄市政府 ","高雄市立翠屏國民中小學 ","無 ","高雄市楠梓區翠屏國民中小學通學道暨交通設施改善計畫-委託規劃、設計暨監造技術服務 ","勞務","建築服務 ","459604","459604","112/09/28","112/10/23","高雄市－楠梓區 ","否","","非中央政府辦理新臺幣一億元以上之公共工程 ","否"]
["267","高雄市政府 ","高雄市立龍肚國民中學 ","教育部國民及學前教育署 ","學校社區共讀站工程委託規劃設計監造 ","勞務","工程服務 ","182400","182400","112/09/27","112/10/05","高雄市－美濃區 ","否","","非中央政府辦理新臺幣一億元以上之公共工程,非受中央政府補助比率逾工程建造經費百分之五十且補助經費達新臺幣一億元以上之個案公共工程,整修工程、拆除工程、疏濬工程、結構補強工程 ","否"]
["268","高雄市政府 ","高雄市旗津區中洲國民小學 ","高雄市政府(99年12月25日改制) ","辦理PU跑道整修工程委託規劃設計監造服務 ","勞務","工程服務 ","529155","529155","112/10/25","112/10/27","高雄市－旗津區 ","否","","非中央政府辦理新臺幣一億元以上之公共工程 ","否"]
["269","高雄市政府 ","高雄市苓雅區中正國民小學 ","高雄市政府教育局 ","112年度忠孝樓及信義樓西棟外牆整修工程委託設計監造技術服務 ","勞務","綜合工程服務 ","970000","970000","112/10/12","112/10/16","高雄市－苓雅區 ","否","","整修工程、拆除工程、疏濬工程、結構補強工程 ","否"]
["270","高雄市政府 ","高雄市左營區舊城國民小學 ","教育部國民及學前教育署 ","112年度慈愛樓老舊廁所整修工程委託設計監造技術服務 ","勞務","工程服務 ","193805","193805","112/09/07","112/10/06","高雄市－全區 ","否","","整修工程、拆除工程、疏濬工程、結構補強工程 ","否"]
["271","高雄市政府 ","高雄市三民區莊敬國民小學 ","高雄市政府教育局 ","校園周邊暨行車安全道路改善計畫-高雄市三民區莊敬國小大昌路及大園街通學道改善工程計畫-委託規劃設計監造技術服務 ","勞務","工程服務 ","530294","530294","112/07/24","112/10/18","高雄市－三民區 ","否","","非中央政府辦理新臺幣一億元以上之公共工程 ","否"]
["272","高雄市政府 ","高雄市楠梓區加昌國民小學 ","無 ","高雄市加昌國小壽民路與智群路通學步道改善工程委託規          劃設計監造技術服務 ","勞務","建築服務 ","688000","680000","112/08/04","112/10/19","高雄市－楠梓區 ","否","","非中央政府辦理新臺幣一億元以上之公共工程 ","否"]
["273","高雄市政府 ","高雄市三民區河濱國民小學 ","高雄市政府教育局、內政部營建署 ","高雄市三民區河濱國民小學通學道暨交通設施改善計畫-委託規劃、設計暨監造技術服務 ","勞務","綜合工程服務 ","469606","469000","112/09/14","112/10/02","南部地區－全區 ","否","","非中央政府辦理新臺幣一億元以上之公共工程,非受中央政府補助比率逾工程建造經費百分之五十且補助經費達新臺幣一億元以上之個案公共工程 ","否"]
["274","高雄市政府 ","高雄市三民區陽明國民小學 ","教育部國民及學前教育署 ","誠正樓老舊廁所整建工程委託規畫設計監造 ","勞務","建築服務 ","572592","572592","112/09/21","112/10/04","高雄市－三民區 ","否","","整修工程、拆除工程、疏濬工程、結構補強工程 ","否"]
["275","高雄市政府 ","高雄市大寮區中庄國民小學 ","教育部國民及學前教育署 ","中庄國小A棟西側廁所改建工程委託規畫設計監造勞務採購 ","勞務","工程服務 ","419205","419205","112/09/08","112/10/03","南部地區－全區 ","否","","非中央政府辦理新臺幣一億元以上之公共工程 ","否"]
["276","高雄市政府 ","高雄市大樹區九曲國民小學 ","高雄市政府教育局 ","112年度九曲國小運動操場及周邊設施整建工程委託規畫設計暨監造技術服務案 ","勞務","工程服務 ","620010","620010","112/10/04","112/10/25","高雄市－大樹區 ","否","","非受中央政府補助比率逾工程建造經費百分之五十且補助經費達新臺幣一億元以上之個案公共工程","否"]
["277","高雄市政府 ","高雄市岡山區前峰國民小學 ","高雄市政府教育局 ","一、\t高雄市岡山區前峰國民小學「柳橋西路一段2巷」通學步道新設工程-委託規劃設計監造技術服務 ","勞務","工程服務 ","697103","697103","112/08/30","112/10/23","高雄市－全區 ","否","","非受中央政府補助比率逾工程建造經費百分之五十且補助經費達新臺幣一億元以上之個案公共工程","否"]
["278","高雄市政府 ","高雄市岡山區前峰國民小學 ","教育部體育署 ","前峰國小運動場及周邊設施整建計畫-委託規劃設計監造技術服務  ","勞務","工程服務 ","886000","886000","112/09/01","112/10/23","高雄市－全區 ","否","","整修工程、拆除工程、疏濬工程、結構補強工程 ","否"]
["279","高雄市政府 ","高雄市燕巢區安招國民小學 ","教育部國民及學前教育署 ","112年社區共讀站委託規劃設計監造技術服務 ","勞務","建築服務 ","198938","196246","112/10/04","112/10/11","南部地區－全區 ","否","","整修工程、拆除工程、疏濬工程、結構補強工程 ","否"]
["280","高雄市政府 ","高雄市路竹區大社國民小學 ","教育部體育署 ","綜合球場整建工程委託規劃設計監造技術服務 ","勞務","工程服務 ","249160","240000","112/10/24","112/10/24","高雄市－路竹區 ","否","","非中央政府辦理新臺幣一億元以上之公共工程,非受中央政府補助比率逾工程建造經費百分之五十且補助經費達新臺幣一億元以上之個案公共工程,整修工程、拆除工程、疏濬工程、結構補強工程 ","否"]
["281","高雄市政府 ","高雄市大樹區姑山國民小學 ","教育部國民及學前教育署 ","113年度校園社區化改造計畫-學校社區共讀站工程委託規劃設計暨監造技術服務 ","勞務","工程服務 ","200000","200000","112/10/11","112/10/13","南部地區－全區 ","否","","非中央政府辦理新臺幣一億元以上之公共工程 ","否"]
["282","高雄市政府 ","高雄市政府工務局 ","無 ","中油研發專區園區南路道路開闢工程 ","工程","快速道路(不含高架快速道路), 街道, 馬路, 鐵路及機場跑道 ","644109000","644109000","112/10/06","112/10/18","高雄市－楠梓區 ","否","","非受中央政府補助比率逾工程建造經費百分之五十且補助經費達新臺幣一億元以上之個案公共工程 ","否"]
["283","高雄市政府 ","高雄市政府工務局 ","無 ","高雄市六龜區高133線道路重建工程 ","工程","橋樑, 高架快速道路, 隧道及地鐵 ","620785883","618618969","112/10/17","112/10/30","高雄市－六龜區 ","已依規定納入辦理節能減碳檢核 ","規劃設計階段納入辦理節能減碳檢核 ","","否"]
["284","高雄市政府 ","高雄市政府工務局新建工程處 ","無 ","高雄市岡山區大鵬九村社會住宅新建統包工程委託耐震特別監督技術服務 ","勞務","建築服務 ","19440000","19440000","112/10/03","112/10/11","高雄市－岡山區 ","否","","非受中央政府補助比率逾工程建造經費百分之五十且補助經費達新臺幣一億元以上之個案公共工程 ","否"]
["285","高雄市政府 ","高雄市政府工務局道路養護工程處 ","無 ","「112年度高雄市橋梁及人行天橋等定期、特別及相關檢測工作」品質查證(QA)委託服務案 ","勞務","工程服務 ","270000","269000","112/10/24","112/10/25","高雄市－全區 ","否","","非中央政府辦理新臺幣一億元以上之公共工程,非受中央政府補助比率逾工程建造經費百分之五十且補助經費達新臺幣一億元以上之個案公共工程 ","否"]
["286","高雄市政府 ","高雄市政府工務局道路養護工程處 ","無 ","112年度旗美等6區道路及附屬設施緊急搶修及改善工程委託設計監造技術服務案(開口契約) ","勞務","綜合工程服務 ","4000000","3728814","112/10/19","112/10/23","高雄市－旗山區,高雄市－美濃區,高雄市－六龜區,高雄市－內門區,高雄市－杉林區,高雄市－甲仙區 ","否","","非中央政府辦理新臺幣一億元以上之公共工程,非受中央政府補助比率逾工程建造經費百分之五十且補助經費達新臺幣一億元以上之個案公共工程 ","否"]
["287","高雄市政府 ","高雄市政府工務局公園處 ","無 ","111年度全市鄰里公園及遊戲場新闢及改造工程委託規劃設計及監造技術服務案(開口契約)(第一標)-第1次後續擴充契約變更 ","勞務","工程服務 ","1200000","1200000","112/09/28","112/10/04","高雄市－全區 ","已依規定納入辦理節能減碳檢核 ","計畫提報核定階段納入辦理節能減碳檢核 ","","否"]
["288","高雄市政府 ","高雄市政府警察局刑事警察大隊 ","無 ","「涉案車輛監控查緝網系統」設備拆除勞務採購案 ","勞務","綜合工程服務 ","580000","540000","112/10/18","112/10/24","高雄市－全區 ","否","","非受中央政府補助比率逾工程建造經費百分之五十且補助經費達新臺幣一億元以上之個案公共工程 ","否"]
["289","高雄市政府 ","高雄市政府環境保護局 ","無 ","112年各區清潔隊環保設施重置計畫工程委託設計監造 ","勞務","建築服務 ","1929579","1736621","112/10/17","112/10/18","高雄市－苓雅區,高雄市－鼓山區,高雄市－仁武區,高雄市－湖內區,高雄市－鳳山區,高雄市－大樹區,高雄市－內門區 ","否","","非中央政府辦理新臺幣一億元以上之公共工程,非受中央政府補助比率逾工程建造經費百分之五十且補助經費達新臺幣一億元以上之個案公共工程 ","否"]
["290","高雄市政府 ","高雄市政府地政局土地開發處 ","無 ","「大寮都市計畫(鳳林四路以西國軍眷村土地)細部計畫環境影響說明書」環境影響差異分析報告委託技術服務-第1次變更 ","勞務","都市計劃及景觀建築服務 ","167000","161000","112/09/28","112/10/18","高雄市－大寮區 ","否","","非中央政府辦理新臺幣一億元以上之公共工程 ","否"]
["291","高雄市政府 ","高雄市政府水利局 ","無 ","113年度高雄市三民等3區排水設施維護及清疏工程委託設計監造 ","勞務","工程服務 ","5195000","4976810","112/10/17","112/10/18","高雄市－三民區,高雄市－楠梓區,高雄市－左營區 ","否","","非受中央政府補助比率逾工程建造經費百分之五十且補助經費達新臺幣一億元以上之個案公共工程 ","否"]
["292","高雄市政府 ","高雄市政府水利局 ","經濟部水利署 ","燕巢區筆秀排水護岸整治工程委託監造服務案 ","勞務","工程服務 ","6404000","6301536","112/10/27","112/10/30","高雄市－燕巢區 ","否","","非受中央政府補助比率逾工程建造經費百分之五十且補助經費達新臺幣一億元以上之個案公共工程 ","否"]
["293","高雄市政府 ","高雄市政府文化局 ","無 ","高雄市鹽埕區公園路鋼拱橋整修工程委託規劃設計監造服務案 ","勞務","工程服務 ","525800","525800","112/09/28","112/10/06","高雄市－鼓山區 ","否","","整修工程、拆除工程、疏濬工程、結構補強工程 ","否"]
["294","高雄市政府 ","高雄市政府文化局 ","無 ","112年鳳山黃埔新村眷舍因應計畫工程委託規劃設計監造技術服務案 ","勞務","建築服務 ","1900000","1900000","112/10/24","112/10/31","高雄市－鳳山區 ","否","","非中央政府辦理新臺幣一億元以上之公共工程,非受中央政府補助比率逾工程建造經費百分之五十且補助經費達新臺幣一億元以上之個案公共工程,整修工程、拆除工程、疏濬工程、結構補強工程 ","否"]
["295","高雄市政府 ","高雄市政府文化局 ","無 ","國定古蹟原日本海軍鳳山無線電信所（第二階段前鳳山新村十巷）容積調配都市計畫變更委託技術服務採購案 ","勞務","都市計劃及景觀建築服務 ","1480000","1480000","112/10/25","112/10/26","高雄市－苓雅區 ","否","","非受中央政府補助比率逾工程建造經費百分之五十且補助經費達新臺幣一億元以上之個案公共工程 ","否"]
["296","高雄市政府 ","高雄市政府海洋局 ","農業部漁業署 ","興達養殖漁業生產區大湖埤排水二中排改善工程委託監造服務 ","勞務","工程服務 ","4902484","4583823","112/10/25","112/10/30","高雄市－路竹區 ","否","","整修工程、拆除工程、疏濬工程、結構補強工程 ","否"]
["297","高雄市政府 ","高雄市仁武區公所 ","無 ","113年度仁武區公共工程委託設計及監造技術服務案(開口契約) ","勞務","工程服務 ","1495000","1495000","112/10/06","112/10/25","高雄市－仁武區 ","否","","非中央政府辦理新臺幣一億元以上之公共工程,非受中央政府補助比率逾工程建造經費百分之五十且補助經費達新臺幣一億元以上之個案公共工程 ","否"]
["298","國立故宮博物院 ","國立故宮博物院 ","無 ","「山洞庫房、隧道整建及戰備坑道安全調查評估規劃」委託技術服務案 ","勞務","工程服務 ","1490000","1486600","112/10/19","112/10/23","臺北市－士林區 ","否","","非中央政府辦理新臺幣一億元以上之公共工程 ","否"]
["299","國防部 ","國防部 ","無 ","「汀洲院區手術室暨供應中心整修工程」委託規劃設計及監造技術服務 ","勞務","綜合工程服務 ","10345000","8658870","112/09/28","112/10/11","北部地區－全區 ","否","","非中央政府辦理新臺幣一億元以上之公共工程 ","否"]
["300","國防部 ","國防部 ","無 ","高雄林園二橋及鳳鼻頭新建工程 ","工程","其他用途建築工程 ","127371000","127300000","112/09/01","112/10/16","高雄市－全區 ","否","","整修工程、拆除工程、疏濬工程、結構補強工程 ","否"]
["301","國防部 ","國防部軍醫局 ","無 ","房屋及設施修繕委託規劃設計及監造技術服務（開口契約） ","勞務","工程服務 ","6600000","6600000","112/08/16","112/10/03","臺中市－太平區 ","已依規定納入辦理節能減碳檢核 ","規劃設計階段納入辦理節能減碳檢核 ","","否"]
["302","國防部 ","國防部陸軍司令部 ","無 ","長安營區二級廠新建工程委託專案管理(含監造)技術服務案 ","勞務","綜合工程服務 ","4463300","4428360","112/09/22","112/10/16","新竹縣－湖口 ","否","","非中央政府辦理新臺幣一億元以上之公共工程 ","否"]
["303","國防部 ","國防部陸軍司令部 ","無 ","112-113年度計畫性暨非計畫性工程委託規劃設計暨監造技術服務(開口契約) ","勞務","綜合工程服務 ","5900000","5900000","112/09/25","112/10/03","北部地區－全區,苗栗縣－全區 ","否","","非受中央政府補助比率逾工程建造經費百分之五十且補助經費達新臺幣一億元以上之個案公共工程 ","否"]
["304","國防部 ","國防部陸軍司令部 ","無 ","合理冒險場新建工程委託專案管理暨監造技術服務 ","勞務","綜合工程服務 ","3066000","3066000","112/09/26","112/10/06","宜蘭縣－宜蘭 ","否","","非中央政府辦理新臺幣一億元以上之公共工程 ","否"]
["305","國防部 ","國防部海軍司令部 ","無 ","海軍澎湖地區設施整修工程委託設計技術服務共同供應契約 ","勞務","綜合工程服務 ","9900000","9900000","112/10/17","112/10/20","離島地區－全區 ","否","","整修工程、拆除工程、疏濬工程、結構補強工程 ","是"]
["306","國防部 ","國防部空軍司令部 ","無 ","官兵集團結婚活動佈置 ","勞務","綜合工程服務 ","1296219","1296219","112/10/04","112/10/12","新竹市－全區 ","否","","非中央政府辦理新臺幣一億元以上之公共工程 ","否"]
["307","國防部 ","國防醫學院 ","無 ","水源營區丁區職務宿舍第2期整修工程委託規劃設計及監造技術服務 ","勞務","綜合工程服務 ","1406000","1406000","112/10/19","112/10/25","北部地區－全區 ","否","","整修工程、拆除工程、疏濬工程、結構補強工程 ","否"]
["308","國防部 ","國防部資通電軍指揮部 ","無 "," 「臺北市士林地區兵舍改善工程」委託規劃、設計及監造技術服務案 ","勞務","綜合工程服務 ","2351206","2351206","112/10/05","112/10/11","北部地區－全區 ","否","","整修工程、拆除工程、疏濬工程、結構補強工程 ","否"]
["309","國防部 ","國防部資通電軍指揮部 ","無 ","「高雄市苓雅地區兵舍改善工程」委託規劃、設計及監造技術服務案 ","勞務","綜合工程服務 ","1364611","1364611","112/10/05","112/10/11","南部地區－全區 ","否","","整修工程、拆除工程、疏濬工程、結構補強工程 ","否"]
["310","國防部 ","國防部資通電軍指揮部 ","無 ","「花蓮地區兵舍改善工程」委託規劃、設計及監造技術服務案 ","勞務","綜合工程服務 ","1241287","1241287","112/10/05","112/10/11","東部地區－全區 ","否","","整修工程、拆除工程、疏濬工程、結構補強工程 ","否"]
["311","國防部 ","國防部資通電軍指揮部 ","無 ","「龍岡地區兵舍改善工程」委託規劃、設計及監造技術服務案 ","勞務","綜合工程服務 ","2789008","2789008","112/10/05","112/10/11","北部地區－全區 ","否","","整修工程、拆除工程、疏濬工程、結構補強工程 ","否"]
["312","國防部 ","國防部資通電軍指揮部 ","無 ","「新社地區兵舍改善工程」委託規劃、設計及監造技術服務案 ","勞務","綜合工程服務 ","1679088","1679088","112/10/05","112/10/11","中部地區－全區 ","否","","整修工程、拆除工程、疏濬工程、結構補強工程 ","否"]
["313","國防部 ","國防部資通電軍指揮部 ","無 ","「臺中北屯地區生活設施改善工程」委託規劃、設計及監造技術服務案 ","勞務","綜合工程服務 ","1981233","1981233","112/09/26","112/10/11","臺中市－北屯區 ","否","","整修工程、拆除工程、疏濬工程、結構補強工程 ","否"]
["314","國軍退除役官兵輔導委員會 ","臺北榮民總醫院 ","無 ","B電荷遷移暨介壽堂、技警宿舍等各變電站老舊電力設備汰換委託規劃設計監造技術服務 ","勞務","綜合工程服務 ","1499000","1435500","112/10/20","112/10/20","臺北市－北投區 ","否","","非中央政府辦理新臺幣一億元以上之公共工程 ","否"]
["315","國軍退除役官兵輔導委員會 ","臺北榮民總醫院 ","無 ","「三門診7樓眼科門診前置檢查區隔間工程」委託規劃、設計及監造技術服務案 ","勞務","工程服務 ","265995","265995","112/10/04","112/10/05","臺北市－北投區 ","否","","整修工程、拆除工程、疏濬工程、結構補強工程 ","否"]
["316","國軍退除役官兵輔導委員會 ","臺中榮民總醫院 ","無 ","臺中榮民總醫院醫護宿舍大樓及科技大樓興辦計畫委託技術服務案 ","勞務","建築服務 ","2000000","2000000","112/10/23","112/10/31","臺中市－西屯區 ","否","","規劃取得綠建築標章之建築工程 ","否"]
["317","國軍退除役官兵輔導委員會 ","臺中榮民總醫院嘉義分院 ","衛生福利部 ","臺中榮民總醫院灣橋分院鹿滿院區長照大樓統包工程 ","工程","其他用途建築工程 ","436544481","436544481","112/10/13","112/10/23","嘉義縣－竹崎 ","否","","規劃取得綠建築標章之建築工程 ","否"]
["318","國軍退除役官兵輔導委員會 ","高雄榮民總醫院 ","無 ","健康照護大樓後續建築工程技術服務 ","勞務","建築服務 ","754707","679236","112/09/19","112/10/04","南部地區－全區 ","否","","非中央政府辦理新臺幣一億元以上之公共工程 ","否"]
["319","國軍退除役官兵輔導委員會 ","屏東榮民總醫院 ","無 ","龍泉分院B棟3F、5F改建工程委託設計監造技術服務案 ","勞務","建築服務 ","4493970","4493970","112/10/12","112/10/19","屏東縣－內埔 ","否","","非中央政府辦理新臺幣一億元以上之公共工程,非受中央政府補助比率逾工程建造經費百分之五十且補助經費達新臺幣一億元以上之個案公共工程 ","否"]
["320","國家科學及技術委員會 ","國家科學及技術委員會中部科學園區管理局 ","無 ","二林園區警察服務大樓室內裝修工程委託設計監造技術服務 ","勞務","工程服務 ","1051798","1015498","112/10/19","112/10/27","彰化縣－二林 ","否","","整修工程、拆除工程、疏濬工程、結構補強工程 ","否"]
["321","國家發展委員會 ","國家發展委員會 ","無 ","中興新村多房間職務宿舍(第1階段)改善工程 ","工程","其他用途建築工程 ","112139343","112000000","112/10/02","112/10/30","南投縣－南投 ","否","","整修工程、拆除工程、疏濬工程、結構補強工程 ","否"]
["322","基隆市政府 ","基隆市政府 ","行政院環境保護署 ","基隆市原住民會館廁所更新工程規劃設計及監造委託技術服務 ","勞務","工程服務 ","457784","452000","112/09/28","112/10/02","基隆市－中正區 ","否","","非中央政府辦理新臺幣一億元以上之公共工程 ","否"]
["323","基隆市政府 ","基隆市政府 ","無 ","基隆嶼公共設施(卡努颱風)災後復建工程委託設計監造技術服務 ","勞務","工程服務 ","1485000","1460000","112/10/06","112/10/13","北部地區－全區 ","否","","災後原地復建 ","否"]
["324","基隆市政府 ","基隆市政府 ","無 ","基隆市112年度標誌標線、號誌及路側設備等交通設施設置與維護工程委託監造技術服務案(第二次後擴) ","勞務","綜合工程服務 ","317085","317000","112/10/24","112/10/27","基隆市－全區 ","否","","非中央政府辦理新臺幣一億元以上之公共工程 ","否"]
["325","基隆市政府 ","基隆市環境保護局 ","行政院環境保護署 ","基隆市環境保護局辦公廳舍耐震補強規劃設計監造技術服務 ","勞務","工程服務 ","588236","550000","112/10/13","112/10/17","基隆市－信義區 ","否","","整修工程、拆除工程、疏濬工程、結構補強工程 ","否"]
["326","基隆市政府 ","基隆市環境保護局 ","無 ","前瞻水環境工程整體鑑定報告 ","勞務","工程服務 ","1250000","1230000","112/10/20","112/10/24","基隆市－全區 ","否","","非中央政府辦理新臺幣一億元以上之公共工程 ","否"]
["327","基隆市政府 ","基隆市環境保護局 ","無 ","前瞻水環境工程整體鑑定報告 ","勞務","工程服務 ","1250000","1230000","112/10/20","112/10/24","基隆市－全區 ","否","","非中央政府辦理新臺幣一億元以上之公共工程 ","否"]
["328","基隆市政府 ","基隆市七堵區公所 ","基隆市政府 ","112A08七堵區區民活動中心附設社區健康中心委託規劃設計監造技術服務案 ","勞務","工程服務 ","708805","700000","112/10/23","112/10/23","基隆市－七堵區 ","否","","非中央政府辦理新臺幣一億元以上之公共工程,非受中央政府補助比率逾工程建造經費百分之五十且補助經費達新臺幣一億元以上之個案公共工程 ","否"]
["329","教育部 ","國立自然科學博物館 ","無 ","「科普跨域素養教室建置」委託規劃設計監造案 ","勞務","工程服務 ","609847","605000","112/10/20","112/10/27","臺中市－北區 ","否","","整修工程、拆除工程、疏濬工程、結構補強工程 ","否"]
["330","教育部 ","國立自然科學博物館 ","無 ","科博館雅園、話茶餐廳空間改造-後續擴充 ","勞務","工程服務 ","488503","488503","112/10/13","112/10/19","臺中市－北區 ","否","","非中央政府辦理新臺幣一億元以上之公共工程,整修工程、拆除工程、疏濬工程、結構補強工程 ","否"]
["331","教育部 ","國立臺灣大學 ","無 ","國立臺灣大學學生宿舍統包工程 ","工程","教育用建築工程 ","4332024245","4332024245","112/09/28","112/10/30","臺北市－大安區 ","否","","規劃取得綠建築標章之建築工程 ","否"]
["332","教育部 ","國立臺灣大學 ","無 ","戲劇系及植物病理與微生物學系系館緊急修復計畫勞務採購 ","勞務","建築服務 ","320000","260000","112/10/03","112/10/12","臺北市－大安區 ","否","","整修工程、拆除工程、疏濬工程、結構補強工程 ","否"]
["333","教育部 ","國立臺灣大學 ","無 ","國立臺灣大學植微系學新館810及815實驗室整修工程委託技術服務 ","勞務","建築服務 ","172354","168000","112/10/19","112/10/24","臺北市－大安區 ","否","","整修工程、拆除工程、疏濬工程、結構補強工程 ","否"]
["334","教育部 ","國立清華大學 ","無 ","材料實驗館及材科科技館頂樓防水工程委託規劃設計暨監造技術服務 ","勞務","建築服務 ","517259","510000","112/10/04","112/10/05","北部地區－全區 ","否","","整修工程、拆除工程、疏濬工程、結構補強工程 ","否"]
["335","教育部 ","國立清華大學 ","無 ","112年「森林機車停車場改善工程」委託設計監造服務案 ","勞務","工程服務 ","699552","699000","112/10/20","112/10/23","新竹市－全區 ","否","","整修工程、拆除工程、疏濬工程、結構補強工程 ","否"]
["336","教育部 ","國立清華大學 ","無 ","生醫學院華生演講廳空調系統汰舊換新工程委託規劃設計及監造技術服務案 ","勞務","工程服務 ","308031","304000","112/10/04","112/10/13","新竹市－東區 ","否","","非中央政府辦理新臺幣一億元以上之公共工程 ","否"]
["337","教育部 ","國立中央大學 ","無 ","行政大樓鋁窗更新委託設計監造技術服務 ","勞務","工程服務 ","511870","500000","112/09/26","112/10/16","桃園市－中壢區 ","否","","整修工程、拆除工程、疏濬工程、結構補強工程 ","否"]
["338","教育部 ","國立臺灣師範大學 ","無 ","英語學系期刊室空間環境改善工程委託技術服務 ","勞務","建築服務 ","291784","291000","112/10/16","112/10/16","臺北市－大安區 ","否","","非受中央政府補助比率逾工程建造經費百分之五十且補助經費達新臺幣一億元以上之個案公共工程,整修工程、拆除工程、疏濬工程、結構補強工程 ","否"]
["339","教育部 ","國立成功大學 ","無 ","醫學院生醫卓群大樓空橋變更使用委託規劃設計監造服務 ","勞務","建築服務 ","341000","341000","112/10/25","112/10/30","臺南市－東區 ","否","","整修工程、拆除工程、疏濬工程、結構補強工程 ","否"]
["340","教育部 ","國立東華大學 ","無 ","112年度建築物公共安全檢查簽證及申報作業 ","勞務","建築服務 ","1005442","613319","112/08/08","112/10/12","東部地區－全區 ","否","","非中央政府辦理新臺幣一億元以上之公共工程 ","否"]
["341","教育部 ","國立體育大學 ","無 ","二期學生宿舍外牆立面防水及鋁門窗整修工程委託規劃、設計暨監造技術服務 ","勞務","建築服務 ","1843050","1806189","112/10/17","112/10/25","桃園市－龜山區 ","否","","整修工程、拆除工程、疏濬工程、結構補強工程 ","否"]
["342","教育部 ","國立臺北大學 ","無 ","112年臺北校區自強大樓整修工程 ","工程","其他裝修工程 ","146406698","137841704","112/09/14","112/10/13","臺北市－中山區 ","否","","整修工程、拆除工程、疏濬工程、結構補強工程 ","否"]
["343","教育部 ","國立嘉義大學 ","農業部 ","三界埔苗圃林業展示館整修工程委託設計監造案 ","勞務","建築服務 ","450738","435000","112/10/06","112/10/16","嘉義縣－水上 ","否","","非中央政府辦理新臺幣一億元以上之公共工程,非受中央政府補助比率逾工程建造經費百分之五十且補助經費達新臺幣一億元以上之個案公共工程 ","否"]
["344","教育部 ","國立基隆高級中學 ","教育部國民及學前教育署 ","科學館、明德樓、體育館及學生宿舍周邊排水系統改善工程委託設計監造服務 ","勞務","工程服務 ","438133","400000","112/10/06","112/10/06","基隆市－暖暖區 ","否","","非中央政府辦理新臺幣一億元以上之公共工程,整修工程、拆除工程、疏濬工程、結構補強工程 ","否"]
["345","教育部 ","國立員林高級中學 ","內政部營建署 ","校園通學步道改善工程委託規劃設計監造技術服務採購案 ","勞務","工程服務 ","552886","541773","112/09/15","112/10/04","彰化縣－員林 ","否","","非中央政府辦理新臺幣一億元以上之公共工程 ","否"]
["346","教育部 ","國立北港高級中學 ","教育部體育署 ","PKSH-112C11 112年戶外籃球場地整建工程－委託規劃設計及監造技術服務採購 ","勞務","建築服務 ","272350","256243","112/10/20","112/10/25","雲林縣－北港 ","否","","整修工程、拆除工程、疏濬工程、結構補強工程 ","否"]
["347","教育部 ","國立屏東女子高級中學 ","教育部 ","新建風雨球場工程委託規劃設計監造技術服務 ","勞務","建築服務 ","2355502","2355502","112/10/17","112/10/18","屏東縣－屏東 ","否","","非中央政府辦理新臺幣一億元以上之公共工程 ","否"]
["348","教育部 ","國立北門高級農工職業學校 ","教育部體育署 ","112年度修整運動場地-籃排綜合球場及網球場修繕工程委託規劃設計監造技術服務 ","勞務","建築服務 ","676451","574983","112/10/20","112/10/23","臺南市－佳里區 ","否","","非中央政府辦理新臺幣一億元以上之公共工程,整修工程、拆除工程、疏濬工程、結構補強工程 ","否"]
["349","教育部 ","國立北斗高級家事商業職業學校 ","無 ","校園排水系統工程委託設計監造技術服務案 ","勞務","工程服務 ","240000","237000","112/09/27","112/10/03","彰化縣－北斗 ","否","","非中央政府辦理新臺幣一億元以上之公共工程,非受中央政府補助比率逾工程建造經費百分之五十且補助經費達新臺幣一億元以上之個案公共工程 ","否"]
["350","教育部 ","國立臺灣藝術大學 ","無 ","「美術大樓1至3樓廁所整修及建物滲漏水修繕工程」委託規劃設計及監造技術服務 ","勞務","工程服務 ","391889","391889","112/10/03","112/10/17","新北市－板橋區 ","否","","整修工程、拆除工程、疏濬工程、結構補強工程 ","否"]
["351","教育部 ","國立臺南大學附屬高級中學 ","無 ","112年圖資大樓階梯教室殘響改善規劃及施作 ","勞務","建築服務 ","998300","970000","112/10/30","112/10/30","臺南市－永康區 ","否","","整修工程、拆除工程、疏濬工程、結構補強工程 ","否"]
["352","教育部 ","國立屏東大學 ","無 ","「112年民生校區教學科技館一樓視訊會議室改建工程」委託設計監造技術服務 ","勞務","工程服務 ","644118","610000","112/10/13","112/10/24","南部地區－全區 ","否","","整修工程、拆除工程、疏濬工程、結構補強工程 ","否"]
["353","教育部 ","國立陽明交通大學 ","無 ","光復校區綜合一館二樓教室建置工程委託監造技術服務案 ","勞務","工程服務 ","372924","370000","112/10/13","112/10/16","新竹市－全區 ","否","","整修工程、拆除工程、疏濬工程、結構補強工程 ","否"]
["354","教育部 ","國立陽明交通大學附設醫院 ","無 ","重大儀器建置室內裝修申請及簽證代辦服務 ","勞務","建築服務 ","468300","460000","112/10/02","112/10/02","宜蘭縣－宜蘭 ","否","","整修工程、拆除工程、疏濬工程、結構補強工程 ","否"]
["355","連江縣政府 ","連江縣政府 ","無 ","介壽商場整體開發評估規劃案 ","勞務","建築服務 ","1200000","1200000","112/10/06","112/10/23","連江縣－南竿 ","否","","非中央政府辦理新臺幣一億元以上之公共工程,非受中央政府補助比率逾工程建造經費百分之五十且補助經費達新臺幣一億元以上之個案公共工程,規劃取得綠建築標章之建築工程 ","否"]
["356","連江縣政府 ","連江縣政府 ","無 ","連江縣東引鄉東引西段、莒光鄉大坪段、莒光鄉青帆段社會住宅新建工程專案管理（含監造）技術服務案 ","勞務","工程服務 ","20036232","19936051","112/10/20","112/10/25","連江縣－莒光,連江縣－東引 ","否","","規劃取得綠建築標章之建築工程 ","否"]
["357","連江縣政府 ","連江縣立中正國民中小學 ","連江縣交通旅遊局、教育部、交通部公路總局 ","連江縣立中正國民中小學國中部綜合教學樓拆除重建暨公共地下停車場統包工程委託專案管理(含監造)技術服務案 ","勞務","建築服務 ","14033000","14033000","112/09/28","112/10/03","連江縣－南竿 ","已依規定納入辦理節能減碳檢核 ","規劃設計階段納入辦理節能減碳檢核 ","","否"]
["358","連江縣政府 ","連江縣立敬恆國民中小學 ","教育部 ","112年度老舊廁所整修工程(國小教室北側1F-3F )委託規劃設計監造案 ","勞務","工程服務 ","343018","341000","112/10/04","112/10/16","連江縣－莒光 ","否","","非中央政府辦理新臺幣一億元以上之公共工程 ","否"]
["359","連江縣政府 ","連江縣衛生福利局 ","衛生福利部 ","連江縣莒光鄉西莒衛生所宿舍新建工程規劃設計監造(含鑽探)委託技術服務案 ","勞務","建築服務 ","2900000","2865200","112/10/18","112/10/31","連江縣－莒光 ","否","","非受中央政府補助比率逾工程建造經費百分之五十且補助經費達新臺幣一億元以上之個案公共工程 ","否"]
["360","勞動部 ","勞動部 ","無 ","志清大樓高壓設備暨其他電氣設備改善工程委託設計監造技術服務案 ","勞務","工程服務 ","1110000","1110000","112/10/20","112/10/30","臺北市－中山區 ","否","","非中央政府辦理新臺幣一億元以上之公共工程,整修工程、拆除工程、疏濬工程、結構補強工程 ","否"]
["361","勞動部 ","勞動部勞動力發展署桃竹苗分署 ","無 ","冷凍空調裝修乙級檢定場第二站及第三站及訓練用設備汰換委託設計及監造服務案 ","勞務","綜合工程服務 ","940952","903314","112/10/12","112/10/12","桃園市－楊梅區 ","否","","非中央政府辦理新臺幣一億元以上之公共工程 ","否"]
["362","雲林縣政府 ","雲林縣政府 ","無 ","斗六糖廠竹創基地景觀營造計畫委託規劃設計契約變更 ","勞務","都市計劃及景觀建築服務 ","532126","510000","112/10/02","112/10/02","雲林縣－斗六 ","否","","非中央政府辦理新臺幣一億元以上之公共工程,非受中央政府補助比率逾工程建造經費百分之五十且補助經費達新臺幣一億元以上之個案公共工程 ","否"]
["363","雲林縣政府 ","雲林縣政府 ","無 ","雲林縣歷史建築西螺張廖家廟-崇遠堂風水景觀重現工程委託監造 ","勞務","綜合工程服務 ","128000","120000","112/10/12","112/10/12","雲林縣－西螺 ","否","","非中央政府辦理新臺幣一億元以上之公共工程,非受中央政府補助比率逾工程建造經費百分之五十且補助經費達新臺幣一億元以上之個案公共工程 ","否"]
["364","雲林縣政府 ","雲林縣政府 ","無 ","布袋戲文化園區改善工程委託設計監造服務案 ","勞務","綜合工程服務 ","1251000","1244700","112/10/13","112/10/20","雲林縣－虎尾 ","否","","整修工程、拆除工程、疏濬工程、結構補強工程 ","否"]
["365","雲林縣政府 ","雲林縣政府 ","無 ","雲林縣113年縣鄉道路面改善、搶修、路容、交通及挖掘回鋪工程委託設計監造服務案 ","勞務","綜合工程服務 ","19677600","19677600","112/10/24","112/10/26","雲林縣－全區 ","否","","非中央政府辦理新臺幣一億元以上之公共工程 ","是"]
["366","雲林縣政府 ","雲林縣政府 ","無 ","斗六糖廠竹創基地景觀營造計畫委託監造 ","勞務","工程服務 ","2019306","1990000","112/10/02","112/10/03","雲林縣－斗六 ","否","","非中央政府辦理新臺幣一億元以上之公共工程,非受中央政府補助比率逾工程建造經費百分之五十且補助經費達新臺幣一億元以上之個案公共工程 ","否"]
["367","雲林縣政府 ","雲林縣政府 ","經濟部水利署中區水資源分署 ","雲林縣湖山水庫人文生態暨遺址教育展示館新建工程公共藝術設置計畫案 ","勞務","建築服務 ","1000000","1000000","112/10/13","112/10/17","雲林縣－古坑 ","否","","非中央政府辦理新臺幣一億元以上之公共工程,非受中央政府補助比率逾工程建造經費百分之五十且補助經費達新臺幣一億元以上之個案公共工程 ","否"]
["368","雲林縣政府 ","雲林縣政府 ","農業部 ","雲林縣肉品市場整建工程(含112年建構肉品批發市場現代化屠宰及冷鏈設施設備計畫) ","工程","其他用途建築工程 ","1517220991","1517220991","112/10/26","112/10/27","雲林縣－虎尾 ","否","","非受中央政府補助比率逾工程建造經費百分之五十且補助經費達新臺幣一億元以上之個案公共工程,整修工程、拆除工程、疏濬工程、結構補強工程 ","否"]
["369","雲林縣政府 ","雲林縣北港鎮公所 ","雲林縣政府 ","「北港鎮劉厝社區活動中心環境改善工程」委託規劃設計監造 ","勞務","工程服務 ","441000","427770","112/10/19","112/10/23","雲林縣－北港 ","否","","非中央政府辦理新臺幣一億元以上之公共工程 ","否"]
["370","雲林縣政府 ","雲林縣古坑鄉公所 ","行政院環境保護署 ","古坑鄉水碓社區活動中心暨荷苞桐花公園公廁改善工程委託設計監造工作 ","勞務","工程服務 ","251481","188611","112/09/11","112/10/06","雲林縣－古坑 ","否","","整修工程、拆除工程、疏濬工程、結構補強工程 ","否"]
["371","雲林縣政府 ","雲林縣古坑鄉公所 ","無 ","112年度古坑鄉公有路燈系統節能專案工程委託設計監造工作 ","勞務","工程服務 ","1179636","943709","112/07/20","112/10/20","雲林縣－古坑 ","否","","非受中央政府補助比率逾工程建造經費百分之五十且補助經費達新臺幣一億元以上之個案公共工程 ","否"]
["372","雲林縣政府 ","雲林縣古坑鄉公所 ","無 ","112年古坑鄉公共設施改善工程(開口契約)委託設計監造工作 ","勞務","工程服務 ","176027","158424","112/09/11","112/10/06","雲林縣－古坑 ","否","","非中央政府辦理新臺幣一億元以上之公共工程 ","否"]
["373","雲林縣政府 ","雲林縣古坑鄉公所 ","雲林縣政府 ","古坑鄉雲220線(1K+500-1K+620)道路復建工程委託設計監造工作 ","勞務","工程服務 ","681906","654630","112/09/11","112/10/06","雲林縣－古坑 ","否","","災後原地復建 ","否"]
["374","雲林縣政府 ","雲林縣古坑鄉公所 ","雲林縣政府 ","雲209線道路(8K+024~9K+323)改善工程委託設計監造工作 ","勞務","工程服務 ","605889","545300","112/09/11","112/10/06","雲林縣－古坑 ","否","","非受中央政府補助比率逾工程建造經費百分之五十且補助經費達新臺幣一億元以上之個案公共工程 ","否"]
["375","雲林縣政府 ","雲林縣古坑鄉公所 ","嘉義縣政府 ","112年度湖山水庫水質水量保護區水源保育與回饋計畫-草嶺村簡易自來水修繕工程委託設計監造工作 ","勞務","工程服務 ","1183469","1088791","112/09/22","112/10/19","雲林縣－古坑 ","否","","非受中央政府補助比率逾工程建造經費百分之五十且補助經費達新臺幣一億元以上之個案公共工程,整修工程、拆除工程、疏濬工程、結構補強工程 ","否"]
["376","雲林縣政府 ","雲林縣莿桐鄉公所 ","雲林縣政府 ","莿桐鄉五華、四合等村排水溝改善工程委託規劃設計監造技術服務案 ","勞務","工程服務 ","408750","387730","112/10/03","112/10/11","雲林縣－莿桐 ","否","","整修工程、拆除工程、疏濬工程、結構補強工程 ","否"]
["377","雲林縣政府 ","雲林縣二崙鄉公所 ","無 ","雲林縣二崙鄉公所埤塘第二納骨塔及管理員室興辦事業計畫暨用地變更許可委託案 ","勞務","建築服務 ","1000000","916000","112/09/28","112/10/03","雲林縣－二崙 ","否","","非中央政府辦理新臺幣一億元以上之公共工程,非受中央政府補助比率逾工程建造經費百分之五十且補助經費達新臺幣一億元以上之個案公共工程 ","否"]
["378","雲林縣政府 ","雲林縣二崙鄉公所 ","雲林縣政府 ","二崙鄉雲29線道路改善工程設計監造 ","勞務","工程服務 ","467250","132699","112/10/12","112/10/24","雲林縣－二崙 ","否","","非中央政府辦理新臺幣一億元以上之公共工程,非受中央政府補助比率逾工程建造經費百分之五十且補助經費達新臺幣一億元以上之個案公共工程 ","否"]
["379","雲林縣政府 ","雲林縣東勢鄉公所 ","交通部觀光局 ","雲林縣東勢鄉觀光節點空間指標導覽系統串聯改善計畫委託規劃設計監造工作 ","勞務","工程服務 ","315000","300000","112/10/25","112/10/26","雲林縣－東勢 ","否","","非受中央政府補助比率逾工程建造經費百分之五十且補助經費達新臺幣一億元以上之個案公共工程 ","否"]
["380","雲林縣政府 ","雲林縣臺西鄉公所 ","無 ","台西鄉路燈設施普查暨資料校核 ","勞務","工程服務 ","2100000","2030000","112/10/17","112/10/24","雲林縣－臺西 ","否","","非受中央政府補助比率逾工程建造經費百分之五十且補助經費達新臺幣一億元以上之個案公共工程 ","否"]
["381","雲林縣政府 ","雲林縣口湖鄉公所 ","雲林縣政府 ","口湖鄉水井村渠道改善工程委託設計監造 ","勞務","工程服務 ","480600","432540","112/10/19","112/10/20","雲林縣－口湖 ","否","","整修工程、拆除工程、疏濬工程、結構補強工程 ","否"]
["382","雲林縣政府 ","雲林縣水林鄉公所 ","無 ","112年度水林鄉轄內道路、景觀及其他等公共工程委託規劃設計監造開口契約(後續擴充) ","勞務","工程服務 ","4000000","4000000","112/09/27","112/10/12","雲林縣－水林 ","否","","非中央政府辦理新臺幣一億元以上之公共工程,非受中央政府補助比率逾工程建造經費百分之五十且補助經費達新臺幣一億元以上之個案公共工程 ","是"]
["383","雲林縣政府 ","雲林縣立莿桐國民中學 ","雲林縣政府 ","南棟教學大樓西側廁所整修計畫委託規劃設計監造勞務採購案 ","勞務","工程服務 ","375773","375773","112/10/06","112/10/13","中部地區－全區 ","否","","非中央政府辦理新臺幣一億元以上之公共工程 ","否"]
["384","雲林縣政府 ","雲林縣立西螺國民中學 ","雲林縣政府 ","「112年高級中等以下學校運動操場及周邊設施整建工程」委託設計監造服務 ","勞務","工程服務 ","1156303","1144923","112/10/12","112/10/20","雲林縣－西螺 ","否","","非中央政府辦理新臺幣一億元以上之公共工程 ","否"]
["385","雲林縣政府 ","雲林縣立水林國民中學 ","無 ","水林國中教學大樓廁所整修工程委託規劃設計監造勞務採購 ","勞務","工程服務 ","410000","410000","112/10/12","112/10/20","南部地區－全區 ","否","","非中央政府辦理新臺幣一億元以上之公共工程 ","否"]
["386","雲林縣政府 ","雲林縣立大埤國民中學 ","雲林縣政府 ","111年度大埤國中老舊校舍拆除重建工程 ","工程","教育用建築工程 ","241880000","241800000","112/09/25","112/10/02","中部地區－全區 ","已依規定納入辦理節能減碳檢核 ","計畫提報核定階段納入辦理節能減碳檢核;規劃設計階段納入辦理節能減碳檢核 ","","是"]
["387","雲林縣政府 ","雲林縣立東仁國民中學 ","雲林縣政府 ","東仁國中運動操場及周邊設施整建工程委託設計監造技術服務案 ","勞務","工程服務 ","805678","803000","112/10/04","112/10/06","雲林縣－虎尾 ","否","","非中央政府辦理新臺幣一億元以上之公共工程 ","否"]
["388","雲林縣政府 ","雲林縣斗六市鎮東國民小學 ","雲林縣政府 ","鎮東國小北棟東側一樓幼兒園廁所及北棟一樓西側廁所整修工程委託設計與監造服務案 ","勞務","工程服務 ","161558","161558","112/09/28","112/10/02","雲林縣－全區 ","否","","整修工程、拆除工程、疏濬工程、結構補強工程 ","否"]
["389","雲林縣政府 ","雲林縣古坑鄉水碓國民小學 ","雲林縣政府 ","水碓國小112年度教學行政大樓廁所整建委託規劃設計監造技術服務勞務採購 ","勞務","建築服務 ","187679","187679","112/10/25","112/10/26","雲林縣－古坑 ","否","","非中央政府辦理新臺幣一億元以上之公共工程 ","否"]
["390","雲林縣政府 ","雲林縣斗南鎮斗南國民小學 ","雲林縣政府 ","斗南國小活動中心周圍地坪鋪面及排水改善工程委託規畫設計監造案 ","勞務","工程服務 ","354580","354580","112/10/11","112/10/12","雲林縣－斗南 ","否","","非中央政府辦理新臺幣一億元以上之公共工程,非受中央政府補助比率逾工程建造經費百分之五十且補助經費達新臺幣一億元以上之個案公共工程,整修工程、拆除工程、疏濬工程、結構補強工程 ","否"]
["391","雲林縣政府 ","雲林縣斗南鎮石龜國民小學 ","雲林縣政府 ","雲林縣石龜國小籃網球場整建工程委託規劃設計及監造服務採購案 ","勞務","工程服務 ","226220","226220","112/10/23","112/10/24","雲林縣－全區 ","否","","整修工程、拆除工程、疏濬工程、結構補強工程 ","否"]
["392","雲林縣政府 ","雲林縣莿桐鄉僑和國民小學 ","教育部國民及學前教育署、雲林縣政府 ","僑和國小辦理公立國民中小學老舊廁所整修工程計畫委託規劃設計監造技術服務 ","勞務","建築服務 ","177113","177113","112/10/04","112/10/12","雲林縣－莿桐 ","否","","非中央政府辦理新臺幣一億元以上之公共工程,整修工程、拆除工程、疏濬工程、結構補強工程 ","否"]
["393","雲林縣政府 ","雲林縣虎尾鎮大屯國民小學 ","教育部國民及學前教育署 ","公立國民中小學老舊廁所整修工程委託設計監造技術服務採購案 ","勞務","建築服務 ","253857","253857","112/10/25","112/10/26","雲林縣－虎尾 ","否","","整修工程、拆除工程、疏濬工程、結構補強工程 ","否"]
["394","雲林縣政府 ","雲林縣虎尾鎮廉使國民小學 ","教育部國民及學前教育署 ","廉使國小112年廁所整建計畫委託規劃設計監造案 ","勞務","建築服務 ","288000","288000","112/10/11","112/10/16","雲林縣－虎尾 ","否","","非中央政府辦理新臺幣一億元以上之公共工程 ","否"]
["395","雲林縣政府 ","雲林縣虎尾鎮廉使國民小學 ","教育部國民及學前教育署 ","廉使國小112年綜合球場整建工程委託規劃設計監造案 ","勞務","建築服務 ","210000","210000","112/10/18","112/10/24","雲林縣－虎尾 ","否","","整修工程、拆除工程、疏濬工程、結構補強工程 ","否"]
["396","雲林縣政府 ","雲林縣西螺鎮文昌國民小學 ","雲林縣政府 ","雲林縣文昌國小老舊廁所整修工程規劃設計監造技術服務勞務採購案 ","勞務","綜合工程服務 ","156277","156277","112/10/12","112/10/18","中部地區－全區 ","否","","整修工程、拆除工程、疏濬工程、結構補強工程 ","否"]
["397","雲林縣政府 ","雲林縣西螺鎮安定國民小學 ","雲林縣政府 ","雲林縣安定國小112年度綜合球場整建工程委託規劃設計監造勞務採購 ","勞務","工程服務 ","195000","195000","112/10/26","112/10/26","中部地區－全區 ","否","","非受中央政府補助比率逾工程建造經費百分之五十且補助經費達新臺幣一億元以上之個案公共工程,整修工程、拆除工程、疏濬工程、結構補強工程 ","否"]
["398","雲林縣政府 ","雲林縣麥寮鄉麥寮國民小學 ","教育部國民及學前教育署 ","麥寮國小辦理公立國民中小學老舊廁所整修工程-委託規劃設計監造技術服務案 ","勞務","工程服務 ","296345","296345","112/10/23","112/10/24","雲林縣－全區 ","否","","整修工程、拆除工程、疏濬工程、結構補強工程 ","否"]
["399","雲林縣政府 ","雲林縣麥寮鄉麥寮國民小學 ","雲林縣政府 ","麥寮國小綜合球場新建工程-委託規劃設計監造技術服務案 ","勞務","建築服務 ","547988","547988","112/10/23","112/10/24","雲林縣－麥寮 ","否","","整修工程、拆除工程、疏濬工程、結構補強工程 ","否"]
["400","雲林縣政府 ","雲林縣北港鎮東榮國民小學 ","教育部體育署 ","東榮國小跑道、跳遠沙坑及跑道周邊整建工程-委託規劃設計監造服務案 ","勞務","工程服務 ","592115","592115","112/10/20","112/10/20","雲林縣－北港 ","否","","非中央政府辦理新臺幣一億元以上之公共工程 ","否"]
["401","雲林縣政府 ","雲林縣四湖鄉飛沙國民小學 ","雲林縣政府 ","老舊廁所整修工程委託設計監造技術服務案 ","勞務","建築服務 ","193825","193825","112/10/25","112/10/31","雲林縣－四湖 ","否","","非中央政府辦理新臺幣一億元以上之公共工程,非受中央政府補助比率逾工程建造經費百分之五十且補助經費達新臺幣一億元以上之個案公共工程,整修工程、拆除工程、疏濬工程、結構補強工程 ","否"]
["402","雲林縣政府 ","雲林縣四湖鄉林厝國民小學 ","雲林縣政府 ","112年度老舊廁所整修工程委託設計監造技術服務 ","勞務","建築服務 ","174502","174000","112/10/25","112/10/26","雲林縣－四湖 ","否","","整修工程、拆除工程、疏濬工程、結構補強工程 ","否"]
["403","雲林縣政府 ","雲林縣口湖鄉口湖國民小學 ","雲林縣政府 ","口湖國小老舊廁所整修工程委託設計監造技術服務 ","勞務","工程服務 ","251275","251275","112/10/16","112/10/17","雲林縣－口湖 ","否","","整修工程、拆除工程、疏濬工程、結構補強工程 ","否"]
["404","雲林縣政府 ","雲林縣水林鄉尖山國民小學 ","教育部國民及學前教育署、雲林縣政府 ","尖山國小112年度公立國民中小學老舊廁所整修工程委託規劃設計監造技術服務案 ","勞務","建築服務 ","245377","245377","112/10/06","112/10/12","雲林縣－水林 ","否","","整修工程、拆除工程、疏濬工程、結構補強工程 ","否"]
["405","雲林縣政府 ","雲林縣斗六市雲林國民小學 ","雲林縣政府 ","112年校舍牆面磁磚整修工程委託規劃設計監造技術服務 ","勞務","工程服務 ","1096662","1060000","112/10/06","112/10/20","雲林縣－斗六 ","否","","非中央政府辦理新臺幣一億元以上之公共工程 ","否"]
["406","雲林縣政府 ","雲林縣水林鄉水燦林國民小學 ","雲林縣政府 ","水燦林國小老舊廁所整修工程委託設計監造技術服務 ","勞務","建築服務 ","702409","702409","112/10/20","112/10/20","雲林縣－水林 ","否","","整修工程、拆除工程、疏濬工程、結構補強工程 ","否"]
["407","新北市政府 ","新北市立明德高級中學 ","新北市政府教育局 ","新北市立明德高級中學112年度改善無障礙校園環境(新建無障礙電梯)委託技術服務 ","勞務","建築服務 ","474755","474755","112/10/04","112/10/04","北部地區－全區 ","否","","整修工程、拆除工程、疏濬工程、結構補強工程 ","否"]
["408","新北市政府 ","新北市立明德高級中學 ","新北市政府教育局 ","新北市立明德高級中學體健館柔道訓練場館改善工程委託技術服務 ","勞務","建築服務 ","225731","225731","112/10/24","112/10/24","北部地區－全區 ","否","","整修工程、拆除工程、疏濬工程、結構補強工程 ","否"]
["409","新北市政府 ","新北市立鶯歌國民中學 ","新北市政府教育局 ","臨鶯桃路圍牆(路基牆面)整修工程委託技術服務採購 ","勞務","建築服務 ","497555","497555","112/10/20","112/10/30","新北市－鶯歌區 ","否","","非中央政府辦理新臺幣一億元以上之公共工程,非受中央政府補助比率逾工程建造經費百分之五十且補助經費達新臺幣一億元以上之個案公共工程,整修工程、拆除工程、疏濬工程、結構補強工程 ","否"]
["410","新北市政府 ","新北市立土城國民中學 ","教育部體育署、新北市政府教育局 ","太陽能光電風雨球場地坪改善工程委託技術服務 ","勞務","工程服務 ","278828","273251","112/10/11","112/10/13","北部地區－全區 ","否","","整修工程、拆除工程、疏濬工程、結構補強工程 ","否"]
["411","新北市政府 ","新北市立林口國民中學 ","新北市政府教育局 ","109年度靜謙樓廁所整修工程委託技術服務第1次契約變更 ","勞務","工程服務 ","69015","69015","112/10/19","112/10/23","北部地區－全區 ","否","","非中央政府辦理新臺幣一億元以上之公共工程,非受中央政府補助比率逾工程建造經費百分之五十且補助經費達新臺幣一億元以上之個案公共工程 ","否"]
["412","新北市政府 ","新北市立漳和國民中學 ","教育部 ","新北市立漳和國民中學和平樓廁所改善工程委託技術服務 ","勞務","建築服務 ","577000","577000","112/10/03","112/10/04","新北市－中和區 ","否","","整修工程、拆除工程、疏濬工程、結構補強工程 ","否"]
["413","新北市政府 ","新北市立中正國民中學 ","新北市政府教育局 ","「至善樓及德馨樓屋頂防水隔熱工程」委託設計監造技術服務採購案-契約變更 ","勞務","工程服務 ","184153","184153","112/10/04","112/10/11","新北市－土城區 ","否","","非中央政府辦理新臺幣一億元以上之公共工程 ","否"]
["414","新北市政府 ","新北市立育林國民中學 ","新北市政府教育局 ","112-113年度校園社區改造計畫-設置學校社區共讀站工程委託設計監造技術服務案 ","勞務","工程服務 ","203646","203646","112/10/06","112/10/11","新北市－樹林區 ","否","","非中央政府辦理新臺幣一億元以上之公共工程 ","否"]
["415","新北市政府 ","新北市立桃子腳國民中小學 ","教育部 ","新北市立桃子腳國民中小學AB棟老舊廁所整修工程委託技術服務 ","勞務","建築服務 ","675738","675738","112/09/28","112/10/06","新北市－全區 ","已依規定納入辦理節能減碳檢核 ","規劃設計階段納入辦理節能減碳檢核 ","","否"]
["416","新北市政府 ","新北市鶯歌區鶯歌國民小學 ","新北市政府教育局、文化部文化資產局 ","新北市歷史建築鶯歌國小舊校舍修復及再利用工程規劃設計暨因應計畫 ","勞務","建築服務 ","2164000","2164000","112/10/24","112/10/31","北部地區－全區 ","否","","整修工程、拆除工程、疏濬工程、結構補強工程 ","否"]
["417","新北市政府 ","新北市淡水區屯山國民小學 ","新北市政府教育局 ","屯山國小摘星樓老舊廁所整修工程委託技術服務（第1次招標） ","勞務","工程服務 ","231733","231733","112/09/22","112/10/03","新北市－淡水區 ","否","","非中央政府辦理新臺幣一億元以上之公共工程 ","否"]
["418","新北市政府 ","新北市三重區三重國民小學 ","教育部國民及學前教育署、新北市政府教育局 ","112年崇德樓老舊廁所整修工程委託技術服務 ","勞務","建築服務 ","694321","694321","112/10/13","112/10/16","新北市－三重區 ","否","","整修工程、拆除工程、疏濬工程、結構補強工程 ","否"]
["419","新北市政府 ","新北市板橋區莒光國民小學 ","教育部體育署、新北市政府教育局 ","風雨操場及周邊運動場地坪整修工程委託技術服務 ","勞務","工程服務 ","303961","303961","112/10/03","112/10/06","新北市－板橋區 ","否","","非中央政府辦理新臺幣一億元以上之公共工程,整修工程、拆除工程、疏濬工程、結構補強工程 ","否"]
["420","新北市政府 ","新北市中和區復興國民小學 ","教育部 ","前棟校舍5-8號老舊廁所整修工程委託技術服務 ","勞務","工程服務 ","498249","498249","112/10/16","112/10/24","北部地區－全區 ","否","","整修工程、拆除工程、疏濬工程、結構補強工程 ","否"]
["421","新北市政府 ","新北市新莊區光華國民小學 ","教育部國民及學前教育署 ","四維樓東西側廁所整修工程委託技術服務 ","勞務","建築服務 ","878554","878554","112/10/02","112/10/03","新北市－新莊區 ","否","","非中央政府辦理新臺幣一億元以上之公共工程 ","否"]
["422","新北市政府 ","新北市土城區土城國民小學 ","新北市政府教育局 ","112年度附設幼兒園無障礙環境暨安全設施改善工程委託技術服務 ","勞務","工程服務 ","176300","176300","112/10/25","112/10/30","新北市－土城區 ","否","","非中央政府辦理新臺幣一億元以上之公共工程 ","否"]
["423","新北市政府 ","新北市三重區集美國民小學 ","無 ","新北市集美國小五樓戶外廣場地坪整修工程委託設計監造服務案 ","勞務","工程服務 ","165220","165220","112/10/03","112/10/04","北部地區－全區 ","否","","非中央政府辦理新臺幣一億元以上之公共工程 ","否"]
["424","新北市政府 ","新北市三峽區介壽國民小學 ","新北市政府教育局 ","112學年度附設幼兒園增設2歲專班教室整修工程委託技術服務勞務採購(監造部分) ","勞務","建築服務 ","222857","222857","112/06/30","112/10/31","新北市－三峽區 ","否","","非中央政府辦理新臺幣一億元以上之公共工程,整修工程、拆除工程、疏濬工程、結構補強工程 ","否"]
["425","新北市政府 ","新北市汐止區長安國民小學 ","教育部國民及學前教育署 ","新北市長安國小向陽樓暨晴藝樓廁所整修工程委託技術服務 ","勞務","工程服務 ","240054","240054","112/09/19","112/10/11","新北市－汐止區 ","否","","非受中央政府補助比率逾工程建造經費百分之五十且補助經費達新臺幣一億元以上之個案公共工程 ","否"]
["426","新北市政府 ","新北市汐止區北港國民小學 ","教育部國民及學前教育署 ","新北市汐止區北港國民小學新大樓4-5樓暨專科教室大樓1-3樓廁所整修工程委託技術服務採購案 ","勞務","建築服務 ","275575","275575","112/09/28","112/10/02","北部地區－全區 ","否","","非中央政府辦理新臺幣一億元以上之公共工程,整修工程、拆除工程、疏濬工程、結構補強工程 ","否"]
["427","新北市政府 ","新北市政府採購處 ","交通部公路總局 ","三重區信義公園停車場新建工程 ","工程","其他用途建築工程 ","455804076","455800000","112/09/08","112/10/06","新北市－三重區 ","否","","規劃取得綠建築標章之建築工程 ","否"]
["428","新北市政府 ","新北市政府採購處 ","行政院農業委員會漁業署 ","112年龍洞漁港防波堤改善工程設計工作 ","勞務","工程服務 ","1620000","1571400","112/09/27","112/10/02","新北市－貢寮區 ","否","","非中央政府辦理新臺幣一億元以上之公共工程,非受中央政府補助比率逾工程建造經費百分之五十且補助經費達新臺幣一億元以上之個案公共工程 ","否"]
["429","新北市政府 ","新北市政府採購處 ","無 ","「112~113年度抽水站及水門土木設施改善工程」委託技術服務(設計、監造) ","勞務","工程服務 ","7292927","6797008","112/09/25","112/10/05","新北市－全區 ","否","","非中央政府辦理新臺幣一億元以上之公共工程,非受中央政府補助比率逾工程建造經費百分之五十且補助經費達新臺幣一億元以上之個案公共工程,整修工程、拆除工程、疏濬工程、結構補強工程 ","否"]
["430","新北市政府 ","新北市政府採購處 ","無 ","112年新北市轄內橋梁耐震能力提升工程委託監造技術服務案 ","勞務","綜合工程服務 ","3716220","3716220","112/09/25","112/10/12","新北市－板橋區,新北市－汐止區,新北市－三重區 ","否","","整修工程、拆除工程、疏濬工程、結構補強工程 ","否"]
["431","新北市政府 ","新北市政府採購處 ","無 ","新北市瑞芳地政事務所暨瑞芳區衛生所辦公廳舍興建工程委託設計及施工監造技術服務 ","勞務","建築服務 ","17599658","17599658","112/09/28","112/10/06","新北市－瑞芳區 ","否","","規劃取得綠建築標章之建築工程 ","否"]
["432","新北市政府 ","新北市政府警察局樹林分局 ","文化部文化資產局 ","新北市歷史建築樹林日式警察宿舍修復工程委託規劃設計（含因應計畫）技術服務案 ","勞務","建築服務 ","1242000","1242000","112/09/27","112/10/06","新北市－樹林區 ","否","","整修工程、拆除工程、疏濬工程、結構補強工程 ","否"]
["433","新北市政府 ","新北市政府環境保護局 ","無 ","五股區清潔隊停車場改善暨辦公廳舍新建工程委託技術服務-第1次契約變更 ","勞務","工程服務 ","340049","340049","112/10/04","112/10/06","北部地區－全區 ","否","","整修工程、拆除工程、疏濬工程、結構補強工程 ","否"]
["434","新北市政府 ","新北市政府經濟發展局 ","經濟部工業局 ","新北國際AI+智慧園區入口智能環境監控設施設置計畫委託技術服務案 ","勞務","工程服務 ","785441","769732","112/10/12","112/10/20","新北市－板橋區,新北市－林口區 ","否","","非中央政府辦理新臺幣一億元以上之公共工程 ","否"]
["435","新北市政府 ","新北市政府市場處 ","無 ","111年度新北市公有零售市場及攤集場(區)水電設備改善工程委託設計監造技術服務(開口契約)-第2次契約變更(後續擴充) ","勞務","工程服務 ","1690664","1690664","112/09/26","112/10/02","新北市－全區 ","否","","非中央政府辦理新臺幣一億元以上之公共工程 ","否"]
["436","新北市政府 ","新北市政府高灘地工程管理處 ","無 ","111年度新北市高灘地水電設施維護修繕工程委託設計及監造技術服務第1次契約變更 ","勞務","工程服務 ","769736","769736","112/09/28","112/10/04","新北市－全區 ","否","","非中央政府辦理新臺幣一億元以上之公共工程 ","否"]
["437","新北市政府 ","新北市政府高灘地工程管理處 ","無 ","110年度新北市高灘地園區河岸景觀（一區）工作評估、規劃及設計委託技術服務後續擴充 ","勞務","工程服務 ","3000000","3000000","112/10/06","112/10/19","新北市－全區 ","否","","非中央政府辦理新臺幣一億元以上之公共工程 ","否"]
["438","新北市政府 ","新北市政府農業局 ","無 ","111~112年度新北市天然災害緊急搶修復建工程及農業工程委託設計監造工作(第一區)第一次變更設計 ","勞務","工程服務 ","4200000","4200000","112/08/02","112/10/03","新北市－全區 ","否","","非受中央政府補助比率逾工程建造經費百分之五十且補助經費達新臺幣一億元以上之個案公共工程,災後緊急處理、搶修、搶險 ","否"]
["439","新北市政府 ","新北市政府農業局 ","無 ","111~112年度新北市天然災害緊急搶修復建工程及農業工程委託設計監造工作(第二區)第一次變更設計 ","勞務","工程服務 ","4200000","4200000","112/08/02","112/10/03","新北市－全區 ","否","","非受中央政府補助比率逾工程建造經費百分之五十且補助經費達新臺幣一億元以上之個案公共工程,災後緊急處理、搶修、搶險 ","否"]
["440","新北市政府 ","新北市政府農業局 ","無 ","111~112年度新北市天然災害緊急搶修復建工程及農業工程委託設計監造工作(第三區)後續擴充 ","勞務","工程服務 ","1000000","1000000","112/08/02","112/10/02","新北市－全區 ","否","","非受中央政府補助比率逾工程建造經費百分之五十且補助經費達新臺幣一億元以上之個案公共工程,災後緊急處理、搶修、搶險 ","否"]
["441","新北市政府 ","新北市政府農業局 ","無 ","111~112年度新北市天然災害緊急搶修復建工程及農業工程委託設計監造工作(第三區)第一次變更設計 ","勞務","工程服務 ","4200000","4200000","112/08/02","112/10/03","新北市－全區 ","否","","非受中央政府補助比率逾工程建造經費百分之五十且補助經費達新臺幣一億元以上之個案公共工程,災後緊急處理、搶修、搶險 ","否"]
["442","新北市政府 ","新北市政府農業局 ","無 ","111~112年度新北市天然災害緊急搶修復建工程及農業工程委託設計監造工作(第四區)後續擴充 ","勞務","工程服務 ","1000000","1000000","112/08/02","112/10/03","新北市－全區 ","否","","非受中央政府補助比率逾工程建造經費百分之五十且補助經費達新臺幣一億元以上之個案公共工程,災後緊急處理、搶修、搶險 ","否"]
["443","新北市政府 ","新北市政府農業局 ","無 ","111~112年度新北市天然災害緊急搶修復建工程及農業工程委託設計監造工作(第四區)第一次變更設計 ","勞務","工程服務 ","4200000","4200000","112/08/02","112/10/03","新北市－全區 ","否","","非受中央政府補助比率逾工程建造經費百分之五十且補助經費達新臺幣一億元以上之個案公共工程,災後緊急處理、搶修、搶險 ","否"]
["444","新北市政府 ","新北市政府農業局 ","無 ","111~112年度新北市天然災害緊急搶修復建工程及農業工程委託設計監造工作(第六區)第一次變更設計 ","勞務","工程服務 ","4200000","4200000","112/08/02","112/10/06","新北市－全區 ","否","","非受中央政府補助比率逾工程建造經費百分之五十且補助經費達新臺幣一億元以上之個案公共工程,災後緊急處理、搶修、搶險 ","否"]
["445","新北市政府 ","新北市政府農業局 ","無 ","111~112年度新北市天然災害緊急搶修復建工程及農業工程委託設計監造工作(第八區)後續擴充 ","勞務","工程服務 ","1000000","1000000","112/08/02","112/10/06","新北市－全區 ","否","","非受中央政府補助比率逾工程建造經費百分之五十且補助經費達新臺幣一億元以上之個案公共工程,災後緊急處理、搶修、搶險 ","否"]
["446","新北市政府 ","新北市政府農業局 ","無 ","111~112年度新北市天然災害緊急搶修復建工程及農業工程委託設計監造工作(第八區)第一次變更設計 ","勞務","工程服務 ","4200000","4200000","112/08/02","112/10/06","新北市－全區 ","否","","非受中央政府補助比率逾工程建造經費百分之五十且補助經費達新臺幣一億元以上之個案公共工程,災後緊急處理、搶修、搶險 ","否"]
["447","新北市政府 ","新北市政府農業局 ","無 ","新北市中和動物之家空間優化改善工程委託設計及監造技術服務 ","勞務","工程服務 ","2372619","2194673","112/10/18","112/10/25","北部地區－全區 ","否","","整修工程、拆除工程、疏濬工程、結構補強工程 ","否"]
["448","新北市政府 ","新北市政府城鄉發展局 ","無 ","「新北市中正橋派出所及青年社會住宅工程委託專案管理技術服務」契約變更（第1次） ","勞務","建築服務 ","2109180","2109180","112/09/23","112/10/05","新北市－永和區 ","否","","規劃取得綠建築標章之建築工程 ","否"]
["449","新北市政府 ","新北市政府城鄉發展局 ","無 ","「新北市三峽、新店、土城區三處社會住宅新建工程委託專案管理及監造技術服務」契約變更（第2次） ","勞務","建築服務 ","7564090","7560000","112/09/26","112/10/12","新北市－新店區,新北市－土城區,新北市－三峽區 ","否","","規劃取得綠建築標章之建築工程 ","否"]
["450","新北市政府 ","新北市政府觀光旅遊局 ","無 ","「新北市112年至113年度觀光景點及登山步道修繕工程(開口契約)設計監造委託技術服務」第一次契約變更(後續擴充) ","勞務","綜合工程服務 ","2658091","2618220","112/10/12","112/10/31","新北市－全區 ","否","","非受中央政府補助比率逾工程建造經費百分之五十且補助經費達新臺幣一億元以上之個案公共工程,整修工程、拆除工程、疏濬工程、結構補強工程 ","否"]
["451","新北市政府 ","新北市政府消防局 ","無 ","特搜大隊、第六大隊、汐止分隊暨市民活動中心共構興建工程 ","工程","其他用途建築工程 ","427237134","427237134","112/09/21","112/10/13","新北市－汐止區 ","已依規定納入辦理節能減碳檢核 ","規劃設計階段納入辦理節能減碳檢核 ","","否"]
["452","新北市政府 ","新北市政府文化局 ","無 ","新北市立美術館室內裝修暨設備工程 ","工程","其他裝修工程 ","120297442","120297199","112/09/19","112/10/12","新北市－鶯歌區 ","否","","非受中央政府補助比率逾工程建造經費百分之五十且補助經費達新臺幣一億元以上之個案公共工程 ","否"]
["453","新北市政府 ","新北市政府客家事務局 ","無 ","新北市客家文化園區戶外廣場電力改善工程委託設計監造服務案 ","勞務","工程服務 ","181315","181315","112/10/12","112/10/17","新北市－三峽區 ","否","","非中央政府辦理新臺幣一億元以上之公共工程 ","否"]
["454","新北市政府 ","新北市政府青年局 ","無 ","板橋區新民街6巷宿舍空間活化可行性評估委託服務案 ","勞務","建築服務 ","480000","480000","112/09/20","112/10/11","新北市－板橋區 ","否","","非中央政府辦理新臺幣一億元以上之公共工程,非受中央政府補助比率逾工程建造經費百分之五十且補助經費達新臺幣一億元以上之個案公共工程 ","否"]
["455","新北市政府 ","新北市三重區公所 ","無 ","110年度三重區公有建築物室內設施修繕、裝修等改善工程委託設計監造技術服務(開口合約)(契約變更) ","勞務","工程服務 ","29492","29050","112/10/13","112/10/17","新北市－三重區 ","否","","整修工程、拆除工程、疏濬工程、結構補強工程 ","否"]
["456","新北市政府 ","新北市永和區公所 ","無 ","新北市永和區博愛市民活動中心增建無障礙電梯工程委託技術服務 ","勞務","工程服務 ","471104","471104","112/10/04","112/10/06","北部地區－全區 ","否","","非中央政府辦理新臺幣一億元以上之公共工程 ","否"]
["457","新北市政府 ","新北市新莊區公所 ","無 ","新北市新莊區公所丹鳳庵耐震補強工程委託技術服務 ","勞務","工程服務 ","290650","290650","112/10/04","112/10/04","新北市－新莊區 ","否","","非中央政府辦理新臺幣一億元以上之公共工程,非受中央政府補助比率逾工程建造經費百分之五十且補助經費達新臺幣一億元以上之個案公共工程,整修工程、拆除工程、疏濬工程、結構補強工程 ","否"]
["458","新北市政府 ","新北市三峽區公所 ","無 ","新北市三峽區成福市民活動中心耐震補強工程委託設計監造技術服務-第1次變更設計暨後續擴充 ","勞務","工程服務 ","119048","119048","112/10/26","112/10/27","新北市－三峽區 ","否","","非中央政府辦理新臺幣一億元以上之公共工程 ","否"]
["459","新北市政府 ","新北市淡水區公所 ","無 ","新北市淡水區義山里清潔隊作業廠區改善工程設計監造技術服務案 ","勞務","工程服務 ","1215599","1154819","112/10/17","112/10/18","新北市－淡水區 ","否","","整修工程、拆除工程、疏濬工程、結構補強工程 ","否"]
["460","新北市政府 ","新北市瑞芳區公所 ","無 ","112年度瑞芳區經建類第1次委託設計監造技術服務暨步道巡檢作業(開口合約)第2次變更 ","勞務","工程服務 ","87258","87258","112/09/22","112/10/05","新北市－全區 ","否","","非中央政府辦理新臺幣一億元以上之公共工程 ","否"]
["461","新北市政府 ","新北市瑞芳區公所 ","無 ","112年度瑞芳區經建類第1次委託設計監造技術服務暨步道巡檢作業(開口合約)第2次變更 ","勞務","工程服務 ","17521","17521","112/10/12","112/10/18","新北市－全區 ","否","","非中央政府辦理新臺幣一億元以上之公共工程 ","否"]
["462","新北市政府 ","新北市瑞芳區公所 ","無 ","112年度新北市瑞芳區全區公共建設委託設計監造技術服務(第1區)開口合約第2次變更 ","勞務","工程服務 ","376185","376185","112/09/26","112/10/05","新北市－全區 ","否","","災後緊急處理、搶修、搶險 ","否"]
["463","新北市政府 ","新北市瑞芳區公所 ","無 ","112年度新北市瑞芳區全區公共建設委託設計監造技術服務(第1區)開口合約第1次變更 ","勞務","工程服務 ","609713","609713","112/09/26","112/10/05","新北市－全區 ","否","","災後緊急處理、搶修、搶險 ","否"]
["464","新北市政府 ","新北市瑞芳區公所 ","新北市政府水利局 ","112年度新北市瑞芳區全區公共建設委託設計監造技術服務(第1區)第1次變更 ","勞務","工程服務 ","76716","76716","112/10/12","112/10/31","新北市－瑞芳區 ","否","","非中央政府辦理新臺幣一億元以上之公共工程 ","否"]
["465","新北市政府 ","新北市五股區公所 ","新北市政府 ","五股區孝恩納骨堂4樓骨櫃拆除重建工程暨成功市民活動中心電梯增設委託設計監造技術服務 ","勞務","工程服務 ","1025600","1025600","112/09/26","112/10/04","新北市－五股區 ","否","","非中央政府辦理新臺幣一億元以上之公共工程 ","否"]
["466","新北市政府 ","新北市坪林區公所 ","新北市政府水利局 ","112年坪林區無自來水地區簡易自來水(含延管)工程改善計畫案設計、結算、監造技術服務開口契約(第1次後續擴充) ","勞務","工程服務 ","245000","245000","112/09/26","112/10/19","新北市－坪林區 ","否","","非中央政府辦理新臺幣一億元以上之公共工程 ","否"]
["467","新北市政府 ","新北市三芝區公所 ","無 ","新北市三芝區112年度轄內道路養護及改善工程(路平專案開口合約)委託設計監造服務第二次契約變更-後續擴充 ","勞務","工程服務 ","128577","128577","112/10/06","112/10/18","新北市－三芝區 ","否","","非受中央政府補助比率逾工程建造經費百分之五十且補助經費達新臺幣一億元以上之個案公共工程 ","否"]
["468","新北市政府 ","新北市三芝區公所 ","無 ","新北市三芝區113年度土木工程及補助型案件工程(開口合約)委託設計監造服務 ","勞務","工程服務 ","2693537","2606076","112/10/11","112/10/16","新北市－三芝區 ","否","","非受中央政府補助比率逾工程建造經費百分之五十且補助經費達新臺幣一億元以上之個案公共工程 ","否"]
["469","新北市政府 ","新北市三芝區公所 ","無 ","新北市三芝區113年度轄內道路養護及改善工程(路平專案開口合約)委託設計監造服務 ","勞務","工程服務 ","1424646","1381907","112/10/20","112/10/27","新北市－三芝區 ","否","","非受中央政府補助比率逾工程建造經費百分之五十且補助經費達新臺幣一億元以上之個案公共工程 ","否"]
["470","新北市政府 ","新北市三芝區公所 ","無 ","新北市三芝區112年公園綠地廣場及道路綠美化相關設施修繕工程(開口 合約)委託設計監造服務案第一次契約變更-後續擴充 ","勞務","工程服務 ","127001","127001","112/10/03","112/10/18","新北市－三芝區 ","否","","非受中央政府補助比率逾工程建造經費百分之五十且補助經費達新臺幣一億元以上之個案公共工程 ","否"]
["471","新北市政府 ","新北市雙溪區公所 ","無 ","新北市雙溪區111年度災害復建工程委託設計監造案第1次後續擴充 ","勞務","工程服務 ","520132","520132","112/09/28","112/10/02","新北市－雙溪區 ","否","","災後原地復建 ","否"]
["472","新北市政府 ","新北市雙溪區公所 ","無 ","新北市雙溪區公所災害復建工程及道路附屬設施改善等工程委託設計監造案 ","勞務","工程服務 ","5206984","4712321","112/10/26","112/10/27","新北市－雙溪區 ","否","","非中央政府辦理新臺幣一億元以上之公共工程,災後原地復建 ","否"]
["473","新北市政府 ","新北市烏來區公所 ","無 ","烏來區烏來老街道路鋪面及排水改善工程委託技術服務案 ","勞務","工程服務 ","927194","927194","112/10/23","112/10/24","新北市－全區 ","否","","整修工程、拆除工程、疏濬工程、結構補強工程 ","否"]
["474","新北市政府 ","新北市烏來區公所 ","無 ","新北市烏來吊橋顯示屏及周邊燈光照明改善工程委託技術服務案 ","勞務","綜合工程服務 ","890108","890108","112/10/26","112/10/27","北部地區－全區 ","否","","整修工程、拆除工程、疏濬工程、結構補強工程 ","否"]
["475","新北市政府 ","新北市土城區公所 ","新北市政府綠美化環境景觀處 ","新北市土城區綜合體育場客家特色景觀營造工程委託設計監造技術服務 ","勞務","工程服務 ","1197000","1184379","112/10/26","112/10/26","新北市－土城區 ","否","","非中央政府辦理新臺幣一億元以上之公共工程,非受中央政府補助比率逾工程建造經費百分之五十且補助經費達新臺幣一億元以上之個案公共工程,整修工程、拆除工程、疏濬工程、結構補強工程 ","否"]
["476","新北市政府 ","新北市汐止區公所 ","無 ","111年度汐止區道路側溝測量調查服務-第1次後續擴充 ","勞務","工程服務 ","1920000","1920000","112/10/11","112/10/27","新北市－汐止區 ","否","","非中央政府辦理新臺幣一億元以上之公共工程,非受中央政府補助比率逾工程建造經費百分之五十且補助經費達新臺幣一億元以上之個案公共工程 ","否"]
["477","新北市政府 ","新北市樹林區公所 ","無 ","樹林區全區道路附屬設施人本環境改善工程委託設計監造技術服務第2次契約後續擴充 ","勞務","工程服務 ","2102755","2102755","112/10/18","112/10/25","新北市－樹林區 ","否","","整修工程、拆除工程、疏濬工程、結構補強工程 ","否"]
["478","新北市政府 ","新北市樹林區公所 ","無 ","新北市樹林區112年度全區道路及道路橋樑附屬設施改善工程委託設計監造技術服務(後續擴充) ","勞務","工程服務 ","4200000","4200000","112/10/13","112/10/23","新北市－樹林區 ","否","","整修工程、拆除工程、疏濬工程、結構補強工程 ","否"]
["479","新北市政府 ","新北市樹林區公所 ","無 ","樹林區112年公共設施維護改善工程委託設計監造技術服務(後續擴充113年) ","勞務","工程服務 ","766682","766682","112/09/22","112/10/20","新北市－樹林區 ","否","","整修工程、拆除工程、疏濬工程、結構補強工程 ","否"]
["480","新北市政府 ","新北市樹林區公所 ","新北市政府民政局 ","新北市樹林區彭福國小銀髮俱樂部暨文健站裝修工程委託設計監造服務(第1次變更設計) ","勞務","建築服務 ","58820","58820","112/10/06","112/10/23","新北市－樹林區 ","否","","整修工程、拆除工程、疏濬工程、結構補強工程 ","否"]
["481","新竹市政府 ","新竹市政府 ","內政部營建署 ","新竹市中華路四段(中山路口)至中華路六段(內湖路口)道路環境改善工程委託規劃設計服務第一次契約變更..詳附加說明 ","勞務","綜合工程服務 ","7148434","7141140","112/09/21","112/10/04","新竹市－香山區 ","已依規定納入辦理節能減碳檢核 ","規劃設計階段納入辦理節能減碳檢核 ","","否"]
["482","新竹市政府 ","新竹市政府 ","內政部營建署 ","新竹市污水下水道系統公道五路分支管網及用戶接管工程暨指定地區-2 ","工程","水管及排水設施鋪設工程 ","188800000","181800000","112/10/19","112/10/30","新竹市－東區 ","已依規定納入辦理節能減碳檢核 ","規劃設計階段納入辦理節能減碳檢核 ","","否"]
["483","新竹市政府 ","新竹市政府 ","客家委員會 ","新竹市立香山綜合運動場新建風雨球場工程委託監造技術服務案 ","勞務","工程服務 ","2479408","2472541","112/10/26","112/10/30","新竹市－香山區 ","否","","非中央政府辦理新臺幣一億元以上之公共工程 ","否"]
["484","新竹市政府 ","新竹市政府 ","教育部體育署 ","「新竹市立棒球場興建工程委託專案管理(含監造)技術服務案」第五次契約變更(新增價格議價)  ","勞務","綜合工程服務 ","9009041","8852063","112/10/03","112/10/26","新竹市－北區 ","否","","規劃取得綠建築標章之建築工程 ","否"]
["485","新竹市政府 ","新竹市政府 ","無 ","永恆之丘改善工程委託規劃設計技術服務案 ","勞務","建築服務 ","455686","452495","112/10/06","112/10/20","新竹市－香山區 ","否","","非中央政府辦理新臺幣一億元以上之公共工程 ","否"]
["486","新竹市政府 ","新竹市政府 ","農業部漁業署 ","112年新竹漁港基本設施及公共設施修繕工程委託設計開口契約 ","勞務","工程服務 ","1000000","976000","112/09/26","112/10/02","新竹市－北區 ","否","","整修工程、拆除工程、疏濬工程、結構補強工程 ","否"]
["487","新竹市政府 ","新竹市政府 ","數位發展部資通安全署 ","新竹市政府112年度電腦機房機電工程委託規劃設計監造案 ","勞務","建築服務 ","2200280","2105982","112/10/19","112/10/23","新竹市－北區 ","否","","非中央政府辦理新臺幣一億元以上之公共工程 ","否"]
["488","新竹市政府 ","新竹市環境保護局 ","行政院環境保護署 ","新竹市廚餘堆肥處理廠新建工程委託規劃、設計及監造計畫 ","勞務","建築服務 ","2000000","1960700","112/10/04","112/10/16","新竹市－全區 ","否","","非中央政府辦理新臺幣一億元以上之公共工程,非受中央政府補助比率逾工程建造經費百分之五十且補助經費達新臺幣一億元以上之個案公共工程 ","否"]
["489","新竹市政府 ","新竹市消防局 ","無 ","第二大隊辦公駐地搬遷改善工程委託規劃設計監造技術服務第一次變更契約 ","勞務","工程服務 ","376907","376907","112/10/27","112/10/30","新竹市－全區 ","否","","非中央政府辦理新臺幣一億元以上之公共工程,非受中央政府補助比率逾工程建造經費百分之五十且補助經費達新臺幣一億元以上之個案公共工程 ","否"]
["490","新竹市政府 ","新竹市文化局 ","無 ","「新竹市學租大樓藝文空間暨周邊景觀改善工程委託規劃設計監造(含變更使用執照)技術服務案」第一次契約變更 ","勞務","建築服務 ","1392888","1386419","112/09/21","112/10/03","新竹市－全區 ","否","","非中央政府辦理新臺幣一億元以上之公共工程 ","否"]
["491","新竹市政府 ","新竹市北區區公所 ","新竹市政府 ","西安街道路排水溝改善工程委託規劃設計監造 ","勞務","工程服務 ","317500","309800","112/10/03","112/10/12","新竹市－北區 ","否","","非中央政府辦理新臺幣一億元以上之公共工程,非受中央政府補助比率逾工程建造經費百分之五十且補助經費達新臺幣一億元以上之個案公共工程 ","否"]
["492","新竹市政府 ","新竹市立培英國民中學 ","新竹市政府 ","112年度公立國民中小學老舊廁所整修計畫委託設計監造 ","勞務","建築服務 ","590000","590000","112/10/17","112/10/20","北部地區－全區 ","否","","整修工程、拆除工程、疏濬工程、結構補強工程 ","否"]
["493","新竹市政府 ","新竹市北區北門國民小學 ","新竹市政府 ","新竹市北門國小112年籃球場與躲避球場整建工程委託規劃設計監造技術服務 ","勞務","工程服務 ","282236","282000","112/10/02","112/10/02","北部地區－全區 ","否","","整修工程、拆除工程、疏濬工程、結構補強工程 ","否"]
["494","新竹市政府 ","新竹市東區竹蓮國民小學 ","新竹市政府 ","竹蓮國小學校園周邊人行通道暨行車安全道路改善工程委託規劃設計監造技術服務 ","勞務","工程服務 ","1627060","1561978","112/09/26","112/10/02","新竹市－全區 ","否","","非中央政府辦理新臺幣一億元以上之公共工程 ","否"]
["495","新竹市政府 ","新竹市東區建功國民小學 ","新竹市政府 ","新竹市建功國小112-113年度設置學校社區共讀站室內裝修工程委託規劃設計服務 ","勞務","建築服務 ","279657","279657","112/09/20","112/10/02","新竹市－東區 ","否","","整修工程、拆除工程、疏濬工程、結構補強工程 ","否"]
["496","新竹市政府 ","新竹市香山區朝山國民小學 ","新竹市政府 ","朝山國小通學步道改善工程委託規劃設計監造勞務採購 ","勞務","工程服務 ","1653522","1653522","112/10/16","112/10/17","新竹市－香山區 ","已依規定納入辦理節能減碳檢核 ","規劃設計階段納入辦理節能減碳檢核 ","","否"]
["497","新竹市政府 ","新竹市香山區虎林國民小學 ","新竹市政府 ","新竹市虎林國小附設幼兒園整建工程委託規劃設計監造技術服務 ","勞務","建築服務 ","367734","360000","112/10/13","112/10/13","新竹市－香山區 ","否","","非中央政府辦理新臺幣一億元以上之公共工程,非受中央政府補助比率逾工程建造經費百分之五十且補助經費達新臺幣一億元以上之個案公共工程 ","否"]
["498","新竹縣政府 ","新竹縣政府 ","內政部營建署 ","國立陽明交通大學六家校區周邊人行環境改善工程委託設計監造技術服務 ","勞務","工程服務 ","5418107","5302309","112/10/26","112/10/27","新竹縣－竹北 ","否","","非中央政府辦理新臺幣一億元以上之公共工程,非受中央政府補助比率逾工程建造經費百分之五十且補助經費達新臺幣一億元以上之個案公共工程 ","否"]
["499","新竹縣政府 ","新竹縣政府 ","交通部公路總局 ","縣道120線23K+640~24K+850道路拓寬改善工程 ","工程","其他土木工程 ","309000000","308880000","112/10/11","112/10/12","新竹縣－橫山 ","已依規定納入辦理節能減碳檢核 ","規劃設計階段納入辦理節能減碳檢核 ","","否"]
["500","新竹縣政府 ","新竹縣政府 ","無 ","112年新竹縣政府工商大樓使用執照變更勞務採購案 ","勞務","建築服務 ","712928","623050","112/10/24","112/10/24","新竹縣－竹北 ","否","","整修工程、拆除工程、疏濬工程、結構補強工程 ","否"]
["501","新竹縣政府 ","新竹縣政府 ","無 ","竹東綜合行政中心新建工程委託設計監造技術服務案 ","勞務","建築服務 ","45370000","44916300","112/10/19","112/10/24","新竹縣－竹東 ","否","","非受中央政府補助比率逾工程建造經費百分之五十且補助經費達新臺幣一億元以上之個案公共工程 ","否"]
["502","新竹縣政府 ","新竹縣新埔鎮公所 ","無 ","112年新埔鎮公共設施暨排水工程(開口契約)-委託設計監造 ","勞務","工程服務 ","1200000","1200000","112/10/17","112/10/19","新竹縣－新埔 ","否","","非中央政府辦理新臺幣一億元以上之公共工程 ","否"]
["503","新竹縣政府 ","新竹縣新埔鎮公所 ","無 ","新埔鎮資源回收場及垃圾轉運區興辦事業之水土保持計畫技術服務勞務採購案 ","勞務","工程服務 ","910000","880000","112/10/25","112/10/26","新竹縣－全區 ","否","","非中央政府辦理新臺幣一億元以上之公共工程 ","否"]
["504","新竹縣政府 ","新竹縣竹東鎮公所 ","內政部 ","新竹縣竹東鎮光明路人本環境建置工程委託規劃設計及監造技術服務 ","勞務","工程服務 ","900000","882000","112/10/03","112/10/11","新竹縣－竹東 ","否","","非中央政府辦理新臺幣一億元以上之公共工程 ","否"]
["505","新竹縣政府 ","新竹縣竹東鎮公所 ","內政部 ","新竹縣竹東鎮竹東高中及上舘國小通學步道建置工程委託規劃設計及監造技術服務 ","勞務","工程服務 ","750000","750000","112/10/03","112/10/11","新竹縣－竹東 ","否","","非中央政府辦理新臺幣一億元以上之公共工程 ","否"]
["506","新竹縣政府 ","新竹縣新豐鄉公所 ","無 ","112年新豐鄉管路挖掘修復工程(開口契約)委託設計監造技術服務案 ","勞務","工程服務 ","303555","291304","112/09/28","112/10/04","新竹縣－新豐 ","否","","非中央政府辦理新臺幣一億元以上之公共工程,非受中央政府補助比率逾工程建造經費百分之五十且補助經費達新臺幣一億元以上之個案公共工程 ","否"]
["507","新竹縣政府 ","新竹縣新豐鄉公所 ","新竹縣政府 ","112年度新豐鄉0521豪大雨災害復建工程委託設計監造技術服務案 ","勞務","工程服務 ","810200","788425","112/10/06","112/10/13","新竹縣－新豐 ","否","","災後原地復建 ","否"]
["508","新竹縣政府 ","新竹縣竹北市公所 ","內政部營建署 ","新竹縣竹北市文田街及仁愛國中周邊人行步道改善工程委託設計監造技術服務 ","勞務","工程服務 ","3517000","3376320","112/10/11","112/10/16","新竹縣－竹北 ","否","","非受中央政府補助比率逾工程建造經費百分之五十且補助經費達新臺幣一億元以上之個案公共工程 ","否"]
["509","新竹縣政府 ","新竹縣竹北市公所 ","無 ","竹北市公11、公12公園地坪改善工程委託設計監造案 ","勞務","工程服務 ","877500","810000","112/10/12","112/10/12","新竹縣－竹北 ","否","","非中央政府辦理新臺幣一億元以上之公共工程 ","否"]
["510","新竹縣政府 ","新竹縣竹北市公所 ","無 ","竹北市縣華、停15及斗星停車場鋪面改善工程委託設計監造案 ","勞務","工程服務 ","660000","638000","112/10/18","112/10/23","新竹縣－竹北 ","否","","非中央政府辦理新臺幣一億元以上之公共工程,非受中央政府補助比率逾工程建造經費百分之五十且補助經費達新臺幣一億元以上之個案公共工程 ","否"]
["511","新竹縣政府 ","新竹縣竹北市公所 ","無 ","竹北市公所二樓廳舍整修工程委託設計監造服務案 ","勞務","工程服務 ","550000","538268","112/10/18","112/10/18","新竹縣－竹北 ","否","","整修工程、拆除工程、疏濬工程、結構補強工程 ","否"]
["512","新竹縣政府 ","新竹縣竹東鎮大同國民小學 ","新竹縣政府 ","112年度新竹縣大同國小勤學樓老舊廁所整修工程 委託設計監造專業技術服務採購 ","勞務","建築服務 ","428774","428774","112/10/17","112/10/17","新竹縣－竹東 ","否","","非中央政府辦理新臺幣一億元以上之公共工程,整修工程、拆除工程、疏濬工程、結構補強工程 ","否"]
["513","新竹縣政府 ","新竹縣竹東鎮員崠國民小學 ","教育部國民及學前教育署 ","112年度員崠國小A、C棟老舊廁所整修工程委託規畫設計監造服務 ","勞務","工程服務 ","268723","268700","112/10/06","112/10/06","北部地區－全區 ","否","","非中央政府辦理新臺幣一億元以上之公共工程,非受中央政府補助比率逾工程建造經費百分之五十且補助經費達新臺幣一億元以上之個案公共工程 ","否"]
["514","新竹縣政府 ","新竹縣寶山鄉雙溪國民小學 ","新竹縣政府 ","新竹縣雙溪國小112年度運動設施(球場)整建計畫-綜合球場整建工程委託規劃設計監造 ","勞務","建築服務 ","369595","333828","112/10/03","112/10/03","新竹縣－全區 ","否","","非中央政府辦理新臺幣一億元以上之公共工程,非受中央政府補助比率逾工程建造經費百分之五十且補助經費達新臺幣一億元以上之個案公共工程,整修工程、拆除工程、疏濬工程、結構補強工程 ","否"]
["515","新竹縣政府 ","新竹縣竹北市竹仁國民小學 ","新竹縣政府教育局 ","新竹縣竹北市竹仁國民小學老舊廁所整修工程(D棟、B棟廁所改善工程)委託規劃設計及監造技術服務採購 ","勞務","工程服務 ","398845","398845","112/10/02","112/10/02","新竹縣－竹北 ","否","","整修工程、拆除工程、疏濬工程、結構補強工程 ","否"]
["516","新竹縣政府 ","新竹縣竹北市新社國民小學 ","新竹縣政府教育局 ","新竹縣新社國民小學112年度校園周邊暨行車安全道路改善計畫-工程委託規劃設計監造勞務採購 ","勞務","工程服務 ","1791347","1786800","112/09/27","112/10/03","北部地區－全區 ","否","","整修工程、拆除工程、疏濬工程、結構補強工程 ","否"]
["517","經濟部 ","經濟部智慧財產局 ","無 ","「組織改造辦公廳舍整修工程」規劃設計、室內裝修許可申辦及監造採購案 ","勞務","建築服務 ","300000","270000","112/10/05","112/10/06","臺北市－大安區 ","否","","非受中央政府補助比率逾工程建造經費百分之五十且補助經費達新臺幣一億元以上之個案公共工程 ","否"]
["518","經濟部 ","經濟部水利署北區水資源局 ","無 ","石門水庫防汛庫房與物品資材場新建工程 ","工程","倉儲及工業建築工程 ","179568047","176700000","112/09/27","112/10/03","桃園市－大溪區 ","已依規定納入辦理節能減碳檢核 ","規劃設計階段納入辦理節能減碳檢核 ","","否"]
["519","經濟部 ","台灣電力股份有限公司雲林區營業處 ","無 ","雲林區營業處112年丙工區配電外線工程 ","工程","電力工程 ","165000000","146000000","112/09/27","112/10/19","雲林縣－土庫,雲林縣－北港,雲林縣－水林,雲林縣－口湖,雲林縣－四湖,雲林縣－元長 ","已依規定納入辦理節能減碳檢核 ","規劃設計階段納入辦理節能減碳檢核 ","","否"]
["520","經濟部 ","台灣電力股份有限公司林口發電廠 ","無 ","警用槍械室及裝備室裝修工作 ","勞務","建築服務 ","1240000","1184728","112/10/17","112/10/20","新北市－林口區 ","否","","非中央政府辦理新臺幣一億元以上之公共工程 ","否"]
["521","經濟部 ","台灣電力股份有限公司嘉南供電區營運處 ","無 ","112~113年度嘉義段轄內停電礙掃及點檢工作 ","勞務","工程服務 ","9681000","9324000","112/10/12","112/10/17","南投縣－全區,嘉義市－全區,嘉義縣－全區,雲林縣－全區,臺南市－全區 ","否","","非中央政府辦理新臺幣一億元以上之公共工程 ","否"]
["522","經濟部 ","台灣電力股份有限公司輸變電工程處中區施工處 ","無 ","宜梧R/S暨屋外模組化工程土建設計技術服務工作 ","勞務","建築服務 ","6405000","6090000","112/10/06","112/10/13","雲林縣－口湖 ","否","","規劃取得綠建築標章之建築工程 ","否"]
["523","經濟部 ","台灣電力股份有限公司輸變電工程處南區施工處 ","無 ","345kV興達~南科線(A標)」暨「台南地區線路」工程規劃設計技術服務工作 ","勞務","工程服務 ","220500000","220395000","112/10/12","112/10/17","臺南市－全區 ","已依規定納入辦理節能減碳檢核 ","規劃設計階段納入辦理節能減碳檢核 ","","否"]
["524","經濟部 ","台灣電力股份有限公司輸變電工程處北區施工處 ","無 ","萬隆二期變電所新建工程多目標使用技術服務 ","勞務","工程服務 ","8910000","8485714","112/09/27","112/10/06","臺北市－文山區 ","否","","非中央政府辦理新臺幣一億元以上之公共工程 ","否"]
["525","經濟部 ","台灣電力股份有限公司輸變電工程處北區施工處 ","無 ","161kV週美~潭美管路統包工程 ","工程","電力工程 ","1307500000","1306800000","112/10/02","112/10/27","臺北市－信義區,臺北市－內湖區,臺北市－南港區 ","否","","非中央政府辦理新臺幣一億元以上之公共工程 ","否"]
["526","經濟部 ","台灣電力股份有限公司輸變電工程處北區施工處 ","無 ","大安變電所相關345kV電纜線路規劃設計及監造技術服務工作第8次變更協議 ","勞務","工程服務 ","41041422","40930000","112/10/05","112/10/26","臺北市－大安區 ","否","","災後緊急處理、搶修、搶險 ","否"]
["527","經濟部 ","台灣電力股份有限公司再生能源處 ","無 ","再生能源處展示間、會客暨駐外人員臨時辦公室及哺乳室裝修工作 ","勞務","工程服務 ","1491000","1415505","112/09/22","112/10/02","臺中市－梧棲區 ","否","","非中央政府辦理新臺幣一億元以上之公共工程,非受中央政府補助比率逾工程建造經費百分之五十且補助經費達新臺幣一億元以上之個案公共工程,整修工程、拆除工程、疏濬工程、結構補強工程 ","否"]
["528","經濟部 ","台灣中油股份有限公司 ","無 ","竹北加油站管線汰換工作 ","勞務","工程服務 ","20844486","18250000","112/10/27","112/10/31","新竹縣－全區 ","否","","非中央政府辦理新臺幣一億元以上之公共工程 ","否"]
["529","經濟部 ","台灣中油股份有限公司 ","無 ","112-113年台南處供油中心輸儲及機電設備零星修護工作 ","勞務","綜合工程服務 ","9960416","9650000","112/10/20","112/10/23","臺南市－全區,其他－其他 ","否","","非中央政府辦理新臺幣一億元以上之公共工程 ","否"]
["530","經濟部 ","台灣中油股份有限公司 ","無 ","A10601大林石化油品儲運中心等綜合零星設計工作(112) ","勞務","工程服務 ","6389012","5456886","112/09/28","112/10/03","高雄市－全區,其他－其他 ","否","","非中央政府辦理新臺幣一億元以上之公共工程 ","否"]
["531","經濟部 ","台灣中油股份有限公司 ","無 ","海管室112年度永安至通霄海管外部檢測工作 ","勞務","綜合工程服務 ","49112406","30985416","112/10/23","112/10/25","其他－其他 ","否","","非中央政府辦理新臺幣一億元以上之公共工程,非受中央政府補助比率逾工程建造經費百分之五十且補助經費達新臺幣一億元以上之個案公共工程 ","否"]
["532","經濟部 ","台灣中油股份有限公司 ","無 ","林園廠新建軟碳製程工場出流管制計畫作業工作 ","勞務","綜合工程服務 ","1580650","874780","112/10/16","112/10/23","高雄市－林園區 ","否","","整修工程、拆除工程、疏濬工程、結構補強工程 ","否"]
["533","經濟部 ","台灣中油股份有限公司液化天然氣工程處 ","無 ","L10501計畫台中廠至通霄站36吋陸上輸氣管線工程B段第3次契約變更 ","工程","長程管線, 通訊及電線(纜) ","112444026","112400000","112/10/04","112/10/17","臺中市－全區 ","否","","為111年8月前核定案件，毋須辦理節能減碳檢核","否"]
["534","經濟部 ","台灣中油股份有限公司石化事業部 ","無 ","林園石化廠供水工場冷卻水塔檢修工作（第二次追加） ","勞務","綜合工程服務 ","396621","396621","112/10/20","112/10/25","高雄市－全區,其他－其他 ","否","","非中央政府辦理新臺幣一億元以上之公共工程 ","否"]
["535","經濟部 ","台灣中油股份有限公司天然氣事業部北區營業處 ","無 ","內湖配氣站至八堵配氣站10吋天然氣管線IP檢測工作(第一次變更) ","勞務","工程服務 ","3306996","3197097","112/10/04","112/10/27","北部地區－全區 ","否","","非中央政府辦理新臺幣一億元以上之公共工程,非受中央政府補助比率逾工程建造經費百分之五十且補助經費達新臺幣一億元以上之個案公共工程 ","否"]
["536","經濟部 ","台灣中油股份有限公司天然氣事業部北區營業處 ","無 ","苗供26吋一期陸管三義鄉水美街路段管線遷移可行性評估工作 ","勞務","工程服務 ","4797345","2633000","112/09/20","112/10/12","苗栗縣－全區 ","否","","非中央政府辦理新臺幣一億元以上之公共工程,非受中央政府補助比率逾工程建造經費百分之五十且補助經費達新臺幣一億元以上之個案公共工程 ","否"]
["537","經濟部 ","台灣中油股份有限公司探採事業部 ","無 ","麗園兒童休閒育樂設施規劃設計監造委託技術服務 ","勞務","建築服務 ","961580","790000","112/10/04","112/10/04","其他－其他 ","否","","非中央政府辦理新臺幣一億元以上之公共工程 ","否"]
["538","經濟部 ","台灣中油股份有限公司探採事業部 ","無 ","注儲處處本部生活用自來水塔雜項執照申請委託技術服務 ","勞務","建築服務 ","1218650","1050000","112/09/23","112/10/18","苗栗縣－通霄 ","否","","非中央政府辦理新臺幣一億元以上之公共工程 ","否"]
["539","經濟部 ","台灣中油股份有限公司探採事業部 ","無 ","注儲處備勤宿舍隔間整修設計繪圖及變更用途使用執照申請委託技術服務 ","勞務","工程服務 ","980000","861000","112/09/26","112/10/12","苗栗縣－通霄 ","否","","非中央政府辦理新臺幣一億元以上之公共工程 ","否"]
["540","經濟部 ","台灣自來水股份有限公司第一區管理處 ","無 ","大華橋旁1000mm水管橋工程委託設計及監造技術服務 ","勞務","綜合工程服務 ","9395000","9120000","112/10/26","112/10/27","基隆市－七堵區 ","否","","非中央政府辦理新臺幣一億元以上之公共工程 ","否"]
["541","經濟部 ","台灣自來水股份有限公司第三區管理處 ","無 ","關西淨水場廢水處理設備(設計及監造)委託技術服務(變更1) ","勞務","建築服務 ","2105716","2021488","112/10/18","112/10/26","新竹縣－關西 ","否","","非受中央政府補助比率逾工程建造經費百分之五十且補助經費達新臺幣一億元以上之個案公共工程 ","否"]
["542","經濟部 ","台灣自來水股份有限公司第三區管理處 ","無 "," 第三區管理處湖口所營業辦公廳新建工程設計及監造委託技術服務 ","勞務","建築服務 ","4464000","4420000","112/09/28","112/10/04","新竹縣－湖口 ","否","","非中央政府辦理新臺幣一億元以上之公共工程 ","否"]
["543","經濟部 ","台灣自來水股份有限公司第六區管理處 ","無 ","111-112年南化暨鏡面水庫蓄水域整治調查規劃設計委託技術服務第一次後續擴充續約(契約變更) ","勞務","工程服務 ","523550","523550","112/10/03","112/10/04","臺南市－南化區 ","否","","非中央政府辦理新臺幣一億元以上之公共工程 ","否"]
["544","經濟部 ","台灣自來水股份有限公司中區工程處 ","無 ","嘉興淨水場二期統包工程 ","工程","其他安裝工程 ","116739000","108119000","112/10/06","112/10/13","彰化縣－芬園 ","已依規定納入辦理節能減碳檢核 ","計畫提報核定階段納入辦理節能減碳檢核 ","","否"]
["545","經濟部 ","經濟部水利署南區水資源分署 ","無 ","112~113年度曾文水庫躉船設計及監造服務 ","勞務","工程服務 ","1000000","887600","112/10/12","112/10/18","嘉義縣－大埔 ","否","","非中央政府辦理新臺幣一億元以上之公共工程 ","否"]
["546","經濟部 ","經濟部水利署南區水資源分署 ","無 ","高 屏溪流域抗旱井改善及新鑿水井工程設計 ","勞務","工程服務 ","1480000","1380000","112/10/12","112/10/27","高雄市－大樹區 ","否","","整修工程、拆除工程、疏濬工程、結構補強工程 ","否"]
["547","經濟部 ","經濟部水利署第七河川分署 ","無 ","澎湖縣池東及尖山海堤整體環境改善工程委託設計監造技術服務 ","勞務","工程服務 ","4000000","3760000","112/10/17","112/10/19","澎湖縣－全區 ","已依規定納入辦理節能減碳檢核 ","規劃設計階段納入辦理節能減碳檢核 ","","否"]
["548","農業部 ","農業部林業及自然保育署 ","無 ","臺灣林業產創育成基地-戶外苗圃培育區及教學行政區細部規劃委託服務 ","勞務","建築服務 ","1499000","1476090","112/09/28","112/10/06","臺北市－中正區,新竹縣－竹東 ","否","","規劃取得綠建築標章之建築工程 ","否"]
["549","農業部 ","農業部林業及自然保育署臺中分署 ","無 ","113年度林業保育署臺中分署(東勢-谷關各流域集水區)工程委託規劃設計及監造技術服務 ","勞務","工程服務 ","3834606","3834606","112/10/18","112/10/19","臺中市－和平區 ","否","","災後緊急處理、搶修、搶險 ","否"]
["550","農業部 ","農業部林業及自然保育署南投分署 ","無 ","113-114年度卡努風災林業署南投分署轄(埔里仁愛魚池地區)工程委託設計及監造技術服務 ","勞務","工程服務 ","4104000","4104000","112/09/21","112/10/11","南投縣－埔里,南投縣－仁愛,南投縣－魚池 ","否","","非中央政府辦理新臺幣一億元以上之公共工程 ","否"]
["551","農業部 ","農業部林業及自然保育署南投分署 ","無 ","113-114年合歡山遊樂區工程委託規劃設計及監造技術服務 ","勞務","工程服務 ","2983673","2983673","112/09/26","112/10/03","南投縣－仁愛,花蓮縣－秀林 ","否","","非中央政府辦理新臺幣一億元以上之公共工程 ","否"]
["552","農業部 ","農業部林業及自然保育署嘉義分署 ","無 ","阿里山力行山莊整修建物評估及先期規劃技術服務 ","勞務","建築服務 ","2500000","2500000","112/10/26","112/10/30","嘉義縣－阿里山 ","否","","非中央政府辦理新臺幣一億元以上之公共工程,非受中央政府補助比率逾工程建造經費百分之五十且補助經費達新臺幣一億元以上之個案公共工程 ","否"]
["553","農業部 ","農業部林業及自然保育署花蓮分署 ","無 ","113-114年「長良林道8k~21k改善工程等委託設計監造」 ","勞務","工程服務 ","3980000","3940200","112/10/27","112/10/31","花蓮縣－萬榮,花蓮縣－卓溪 ","否","","非中央政府辦理新臺幣一億元以上之公共工程 ","否"]
["554","農業部 ","農業部林業及自然保育署宜蘭分署 ","無 ","112-113年度宜蘭分署育樂工程(非建築類) 委託設計監造服務(開口契約) ","勞務","工程服務 ","6650000","6465500","112/10/24","112/10/31","新北市－全區,宜蘭縣－全區 ","否","","非中央政府辦理新臺幣一億元以上之公共工程,非受中央政府補助比率逾工程建造經費百分之五十且補助經費達新臺幣一億元以上之個案公共工程 ","否"]
["555","農業部 ","農業部農村發展及水土保持署臺北分署 ","無 ","112-113年度宜蘭縣北區等農路設施改善暨坡地保育工程委託設計及監造技術服務 ","勞務","工程服務 ","6300000","6079500","112/10/11","112/10/16","其他－其他 ","否","","非中央政府辦理新臺幣一億元以上之公共工程 ","否"]
["556","農業部 ","農業部農村發展及水土保持署臺北分署 ","無 ","112-113年度新竹縣第1區及第3區等農路設施改善暨坡地保育工程委託設計及監造技術服務 ","勞務","工程服務 ","6300000","6048000","112/10/11","112/10/16","其他－其他 ","否","","非中央政府辦理新臺幣一億元以上之公共工程 ","否"]
["557","農業部 ","農業部農村發展及水土保持署臺北分署 ","無 ","112-113年度新竹縣第4區等農路設施改善暨坡地保育工程委託設計及監造技術服務 ","勞務","工程服務 ","6300000","5985000","112/10/11","112/10/16","其他－其他 ","否","","非中央政府辦理新臺幣一億元以上之公共工程 ","否"]
["558","農業部 ","農業部農田水利署 ","無 ","豐田圳幹線等輸水渠道強化工程委託規劃設計監造技術服務 ","勞務","工程服務 ","3100000","3100000","112/10/20","112/10/23","花蓮縣－壽豐 ","否","","非中央政府辦理新臺幣一億元以上之公共工程 ","否"]
["559","農業部 ","農業部農田水利署 ","無 ","八卦山旱灌區提升農業水資源永續韌性建設計畫工程委託專案管理技術服務 ","勞務","工程服務 ","28558820","27702055","112/09/28","112/10/26","南投縣－名間 ","否","","非中央政府辦理新臺幣一億元以上之公共工程,非受中央政府補助比率逾工程建造經費百分之五十且補助經費達新臺幣一億元以上之個案公共工程 ","否"]
["560","農業部 ","農業部農田水利署 ","無 ","內三排水支線引灌區韌性工程委託設計監造技術服務(第一工區) ","勞務","工程服務 ","13788763","13375100","112/09/23","112/10/05","彰化縣－田中,彰化縣－溪州 ","否","","非中央政府辦理新臺幣一億元以上之公共工程,非受中央政府補助比率逾工程建造經費百分之五十且補助經費達新臺幣一億元以上之個案公共工程 ","否"]
["561","農業部 ","農業部農田水利署 ","無 ","112~113年度彰化管理處灌溉排水渠道水利工程委託設計監造技術服務（韌性建設計畫）開口契約 ","勞務","工程服務 ","12000000","11520000","112/10/06","112/10/20","南投縣－名間 ","否","","非中央政府辦理新臺幣一億元以上之公共工程,非受中央政府補助比率逾工程建造經費百分之五十且補助經費達新臺幣一億元以上之個案公共工程 ","否"]
["562","農業部 ","農業部農田水利署 ","無 ","八卦山名間鄉旱灌區既有貯水池景觀韌性工程委託設計監造服務   ","勞務","工程服務 ","5644550","5475214","112/10/18","112/10/27","南投縣－名間 ","否","","非中央政府辦理新臺幣一億元以上之公共工程,非受中央政府補助比率逾工程建造經費百分之五十且補助經費達新臺幣一億元以上之個案公共工程 ","否"]
["563","農業部 ","農業部農田水利署 ","無 ","八卦山名間鄉旱灌區既有設施閥類及機電設備韌性工程委託設計監造技術服務    ","勞務","工程服務 ","6016156","5775510","112/10/18","112/10/30","南投縣－名間 ","否","","非中央政府辦理新臺幣一億元以上之公共工程,非受中央政府補助比率逾工程建造經費百分之五十且補助經費達新臺幣一億元以上之個案公共工程 ","否"]
["564","農業部 ","農業部農田水利署 ","無 ","112年度烏山頭水庫風景區大門入口意象優化改造勞務採購 ","勞務","都市計劃及景觀建築服務 ","3000000","3000000","112/10/20","112/10/23","臺南市－官田區 ","否","","整修工程、拆除工程、疏濬工程、結構補強工程 ","否"]
["565","農業部 ","農業部農田水利署 ","無 ","112~113年度苗栗管理處水利設施改善工程委託設計監造等技術服務工作(後龍溪流域等站開口契約) ","勞務","工程服務 ","9156000","8487000","112/10/16","112/10/30","苗栗縣－後龍,苗栗縣－苗栗,苗栗縣－造橋,苗栗縣－頭屋,苗栗縣－公館,苗栗縣－銅鑼,苗栗縣－西湖 ","否","","非中央政府辦理新臺幣一億元以上之公共工程 ","是"]
["566","農業部 ","農業部農田水利署 ","無 ","大湖鄉雅悠圳路二期改善工程委託監造服務 ","勞務","工程服務 ","387000","377365","112/10/13","112/10/30","苗栗縣－大湖 ","否","","非中央政府辦理新臺幣一億元以上之公共工程 ","否"]
["567","農業部 ","農業部農田水利署 ","無 ","龍泉圳中原里灌溉補給水路等圳強化工程委託設計監造服務 ","勞務","工程服務 ","1980000","1980000","112/09/27","112/10/16","南投縣－全區 ","否","","非中央政府辦理新臺幣一億元以上之公共工程 ","否"]
["568","農業部 ","農業部農田水利署 ","無 ","能高大圳九仙溪圳頭水源補助強化工程委託設計監造服務 ","勞務","工程服務 ","2290000","2194500","112/10/13","112/10/24","南投縣－仁愛 ","否","","非中央政府辦理新臺幣一億元以上之公共工程 ","否"]
["569","農業部 ","農業部農田水利署 ","無 ","112年度龍潭區及平鎮區擴大灌溉服務推動計畫 ","勞務","工程服務 ","6500000","6249000","112/09/13","112/10/03","桃園市－平鎮區,桃園市－龍潭區 ","否","","非中央政府辦理新臺幣一億元以上之公共工程 ","否"]
["570","農業部 ","農業部農田水利署 ","無 ","桃園市平鎮區延平路二段56號建築物外牆修繕工程設計監造技術服務 ","勞務","工程服務 ","721726","708000","112/09/20","112/10/03","桃園市－平鎮區 ","否","","整修工程、拆除工程、疏濬工程、結構補強工程 ","否"]
["571","農業部 ","農業部農田水利署 ","無 ","古坑灌溉調蓄池工程委託規劃設計及監造技術服務 ","勞務","工程服務 ","33769000","33769000","112/10/11","112/10/12","雲林縣－全區 ","已依規定納入辦理節能減碳檢核 ","規劃設計階段納入辦理節能減碳檢核 ","","否"]
["572","農業部 ","農業部獸醫研究所 ","無 ","「歷史建築假設及防護棚架工程監造」 ","勞務","建築服務 ","200000","188000","112/10/25","112/10/27","苗栗縣－竹南 ","否","","非中央政府辦理新臺幣一億元以上之公共工程,整修工程、拆除工程、疏濬工程、結構補強工程 ","否"]
["573","農業部 ","農業部臺中區農業改良場 ","無 ","「農業副產物循環作業示範場域」委託規劃、設計及監造技術服務 ","勞務","建築服務 ","348324","330000","112/09/27","112/10/04","彰化縣－大村 ","否","","非中央政府辦理新臺幣一億元以上之公共工程 ","否"]
["574","嘉義市政府 ","嘉義市政府 ","內政部營建署 ","嘉義市112年度基本居住水準家戶清查及輔導改善作業 ","勞務","建築服務 ","1400000","1400000","112/10/19","112/10/31","嘉義市－全區 ","否","","規劃取得綠建築標章之建築工程 ","否"]
["575","嘉義市政府 ","嘉義市政府 ","無 ","嘉義市大雅路一段人行道改善工程委託技術服務案(第二次勞務契約變更) ","勞務","工程服務 ","1867773","1867773","112/09/26","112/10/02","嘉義市－全區 ","否","","整修工程、拆除工程、疏濬工程、結構補強工程 ","否"]
["576","嘉義市政府 ","嘉義市政府 ","無 ","嘉義市大雅路一段人行道改善工程委託技術服務案(後續擴充) ","勞務","工程服務 ","970000","970000","112/09/26","112/10/12","嘉義市－全區 ","否","","整修工程、拆除工程、疏濬工程、結構補強工程 ","否"]
["577","嘉義市政府 ","嘉義市政府環境保護局 ","無 ","嘉義市綠能永續循環中心操作管理監督等委託技術服務案 ","勞務","建築服務 ","88950000","85010000","112/10/11","112/10/13","嘉義市－全區 ","否","","非中央政府辦理新臺幣一億元以上之公共工程 ","否"]
["578","嘉義市政府 ","嘉義市政府文化局 ","文化部文化資產局 ","嘉義市歷史建築「原南國運送店」及「原嘉義公學校宿舍」保護棚架及緊急加固工程規劃設計監造及工作紀錄勞務委託案 ","勞務","工程服務 ","940000","940000","112/10/16","112/10/17","嘉義市－全區 ","否","","非中央政府辦理新臺幣一億元以上之公共工程,非受中央政府補助比率逾工程建造經費百分之五十且補助經費達新臺幣一億元以上之個案公共工程,整修工程、拆除工程、疏濬工程、結構補強工程 ","否"]
["579","嘉義市政府 ","嘉義市東區區公所 ","無 ","原北門聯合里辦公處耐震補強工程委託規劃設計及監造技術服務案  ","勞務","工程服務 ","438000","416100","112/09/26","112/10/02","嘉義市－東區 ","否","","非中央政府辦理新臺幣一億元以上之公共工程,非受中央政府補助比率逾工程建造經費百分之五十且補助經費達新臺幣一億元以上之個案公共工程,整修工程、拆除工程、疏濬工程、結構補強工程 ","否"]
["580","嘉義市政府 ","嘉義市西區區公所 ","無 ","113年度嘉義市西區公共小型零星工程委託規畫設計監造 ","勞務","工程服務 ","1215500","1215500","112/10/26","112/10/30","嘉義市－全區 ","否","","非中央政府辦理新臺幣一億元以上之公共工程 ","否"]
["581","嘉義市政府 ","嘉義市立嘉義國民中學 ","教育部國民及學前教育署 ","112年度老舊廁所整修工程委託規劃設計及監造服務 ","勞務","工程服務 ","238000","238000","112/10/02","112/10/12","嘉義市－東區 ","否","","非中央政府辦理新臺幣一億元以上之公共工程,整修工程、拆除工程、疏濬工程、結構補強工程 ","否"]
["582","嘉義市政府 ","嘉義市立玉山國民中學 ","嘉義市政府、教育部國民及學前教育署 ","112年度公立國民中小學老舊廁所整修工程委託規劃設計監造 ","勞務","建築服務 ","230000","230000","112/10/03","112/10/11","南部地區－全區 ","否","","整修工程、拆除工程、疏濬工程、結構補強工程 ","否"]
["583","嘉義市政府 ","嘉義市立民生國民中學 ","嘉義市政府 ","嘉義市立民生國民中學學校運動操場及週邊設施整建計畫委託設計及監造技術服務 ","勞務","工程服務 ","577350","563000","112/10/24","112/10/27","嘉義市－全區 ","否","","非中央政府辦理新臺幣一億元以上之公共工程,非受中央政府補助比率逾工程建造經費百分之五十且補助經費達新臺幣一億元以上之個案公共工程 ","否"]
["584","嘉義縣政府 ","嘉義縣政府 ","內政部營建署 ","「嘉義縣公共污水處理廠再生水供應南科嘉義園區可行性評估及後續作業」委託專業服務案 ","勞務","工程服務 ","9980000","9800000","112/09/05","112/10/25","嘉義縣－太保,嘉義縣－朴子 ","已依規定納入辦理節能減碳檢核 ","規劃設計階段納入辦理節能減碳檢核 ","","否"]
["585","嘉義縣政府 ","嘉義縣政府 ","無 ","112年度嘉義縣人行環境及景觀建置工程委託製作計畫書、勘測規劃、設計及監造開口合約(後續擴充) ","勞務","建築服務 ","5512779","5512779","112/09/26","112/10/11","嘉義縣－全區 ","否","","非中央政府辦理新臺幣一億元以上之公共工程 ","否"]
["586","嘉義縣政府 ","嘉義縣政府 ","無 ","「112年度嘉義縣立田徑場及網球場園區整修工程」委託規劃設計監造技術服務採購案 ","勞務","綜合工程服務 ","1031789","979146","112/09/27","112/10/12","嘉義縣－太保,嘉義縣－朴子 ","否","","非受中央政府補助比率逾工程建造經費百分之五十且補助經費達新臺幣一億元以上之個案公共工程 ","否"]
["587","嘉義縣政府 ","嘉義縣政府 ","無 ","嘉義縣大林社區公共托育家園擴建計畫委託設計及監造服務案 ","勞務","建築服務 ","399400","376727","112/09/28","112/10/12","嘉義縣－大林 ","否","","整修工程、拆除工程、疏濬工程、結構補強工程 ","否"]
["588","嘉義縣政府 ","嘉義縣環境保護局 ","無 ","嘉義縣環境保護局停車場改善工程委託規畫測設監造服務案 ","勞務","綜合工程服務 ","658338","625000","112/10/12","112/10/24","嘉義縣－朴子 ","否","","整修工程、拆除工程、疏濬工程、結構補強工程 ","否"]
["589","嘉義縣政府 ","嘉義縣布袋鎮公所 ","嘉義縣政府 ","布袋鎮公所112年度水門及抽水站維護第二期 ","勞務","綜合工程服務 ","8492211","8300000","112/10/25","112/10/26","嘉義縣－布袋 ","否","","非中央政府辦理新臺幣一億元以上之公共工程,非受中央政府補助比率逾工程建造經費百分之五十且補助經費達新臺幣一億元以上之個案公共工程 ","否"]
["590","嘉義縣政府 ","嘉義縣大林鎮公所 ","農業部農村發展及水土保持署南投分署 ","三角里北勢、股圳及三和里林子前社區農路改善工程委託設計監造技術服務 ","勞務","工程服務 ","500000","492000","112/10/18","112/10/19","嘉義縣－大林 ","否","","非中央政府辦理新臺幣一億元以上之公共工程,非受中央政府補助比率逾工程建造經費百分之五十且補助經費達新臺幣一億元以上之個案公共工程,整修工程、拆除工程、疏濬工程、結構補強工程 ","否"]
["591","嘉義縣政府 ","嘉義縣民雄鄉公所 ","交通部公路總局、嘉義縣政府、經濟部 ","民雄鄉市場及停車場新建統包工程 ","工程","其他用途建築工程 ","415600000","415600000","112/10/11","112/10/12","嘉義縣－民雄 ","否","","規劃取得綠建築標章之建築工程 ","否"]
["592","嘉義縣政府 ","嘉義縣民雄鄉公所 ","無 ","112-113年度民雄鄉內政部營建署計畫案委託製作計畫書、勘測規劃、設計及監造服務開口契約 ","勞務","工程服務 ","9500000","9251191","112/10/26","112/10/27","嘉義縣－民雄 ","否","","非中央政府辦理新臺幣一億元以上之公共工程 ","是"]
["593","嘉義縣政府 ","嘉義縣水上鄉公所 ","無 ","水上鄉生命園區開發計畫委託技術服務 ","勞務","綜合工程服務 ","9500000","9400000","112/10/25","112/10/27","嘉義縣－水上 ","否","","非受中央政府補助比率逾工程建造經費百分之五十且補助經費達新臺幣一億元以上之個案公共工程 ","否"]
["594","嘉義縣政府 ","嘉義縣阿里山鄉公所 ","行政院、農業部農村發展及水土保持署、原住民族委員會、內政部營建署、嘉義縣政府 ","112-1年度阿里山鄉災害復建工程、公共工程設計監造技術服務開口契約 ","勞務","綜合工程服務 ","9916329","9775705","112/10/11","112/10/16","嘉義縣－阿里山 ","否","","災後原地復建 ","否"]
["595","嘉義縣政府 ","嘉義縣立大林國民中學 ","教育部體育署 ","嘉義縣大林國中新建硬地網球場委託設計監造技術服務案 ","勞務","工程服務 ","434800","420000","112/09/26","112/10/04","嘉義縣－大林 ","否","","非中央政府辦理新臺幣一億元以上之公共工程 ","否"]
["596","嘉義縣政府 ","嘉義縣布袋鎮新岑國民小學 ","教育部國民及學前教育署 ","嘉義縣布袋鎮新岑國民小學運動操場及球場新建工程委託監造服務 ","勞務","工程服務 ","248121","248121","112/10/19","112/10/24","嘉義縣－布袋 ","否","","非中央政府辦理新臺幣一億元以上之公共工程,非受中央政府補助比率逾工程建造經費百分之五十且補助經費達新臺幣一億元以上之個案公共工程 ","否"]
["597","嘉義縣政府 ","嘉義縣中埔鄉同仁國民小學 ","嘉義縣政府 ","嘉義縣同仁國小設置學校社區共讀站工程委託規劃設計及監造技術服務勞務採購 ","勞務","建築服務 ","162738","162738","112/10/26","112/10/30","嘉義縣－全區 ","否","","非中央政府辦理新臺幣一億元以上之公共工程,非受中央政府補助比率逾工程建造經費百分之五十且補助經費達新臺幣一億元以上之個案公共工程 ","否"]
["598","彰化縣政府 ","彰化縣政府 ","內政部 ","112年彰化縣芳苑鄉漁村聚落海牛人文景觀再造計畫 ","勞務","都市計劃及景觀建築服務 ","10000000","9695455","112/10/17","112/10/18","彰化縣－芳苑 ","否","","非中央政府辦理新臺幣一億元以上之公共工程,非受中央政府補助比率逾工程建造經費百分之五十且補助經費達新臺幣一億元以上之個案公共工程 ","否"]
["599","彰化縣政府 ","彰化縣政府 ","內政部 ","「111年彰化縣田中水與綠的交響環境營造計畫工程委託規劃設計技術服務」案後續擴充 ","勞務","工程服務 ","1961105","1961105","112/10/18","112/10/25","彰化縣－田中,彰化縣－社頭 ","否","","非中央政府辦理新臺幣一億元以上之公共工程 ","否"]
["600","彰化縣政府 ","彰化縣政府 ","無 ","112年度南彰化縣鄉道搶險修及地方小型等道路改善委託設計監造技術服務案 ","勞務","工程服務 ","3500000","3307500","112/09/28","112/10/02","彰化縣－員林,彰化縣－永靖,彰化縣－大村,彰化縣－田中,彰化縣－社頭,彰化縣－二水,彰化縣－北斗,彰化縣－溪州,彰化縣－埤頭,彰化縣－田尾,彰化縣－二林,彰化縣－大城,彰化縣－芳苑 ","否","","非中央政府辦理新臺幣一億元以上之公共工程,非受中央政府補助比率逾工程建造經費百分之五十且補助經費達新臺幣一億元以上之個案公共工程,災後緊急處理、搶修、搶險,災後原地復建,整修工程、拆除工程、疏濬工程、結構補強工程 ","否"]
["601","彰化縣政府 ","彰化縣政府 ","無 ","彰化縣員林社福大樓裝修工程委託規劃設計及監造技術服務 ","勞務","建築服務 ","1431118","1402496","112/10/06","112/10/11","彰化縣－員林 ","否","","非中央政府辦理新臺幣一億元以上之公共工程 ","否"]
["602","彰化縣政府 ","彰化縣政府 ","衛生福利部社會及家庭署 ","彰化縣關懷中心裝修工程規劃設計及監造技術服務 ","勞務","建築服務 ","253981","240012","112/09/28","112/10/02","彰化縣－二水 ","否","","整修工程、拆除工程、疏濬工程、結構補強工程 ","否"]
["603","彰化縣政府 ","彰化縣衛生局 ","無 ","彰化縣北斗鎮衛生所耐震補強工程委託規劃設計監造技術服務案 ","勞務","工程服務 ","446187","435032","112/09/28","112/10/06","彰化縣－全區 ","否","","整修工程、拆除工程、疏濬工程、結構補強工程 ","否"]
["604","彰化縣政府 ","彰化縣鹿港鎮公所 ","文化部文化資產局、彰化縣文化局 ","彰化縣縣定古蹟鹿港文武廟-文開書院屋面、木構件、牆面修復工程規劃設計案(含因應計畫) ","勞務","工程服務 ","1500000","1480000","112/10/26","112/10/27","彰化縣－鹿港 ","否","","非中央政府辦理新臺幣一億元以上之公共工程 ","否"]
["605","彰化縣政府 ","彰化縣鹿港鎮公所 ","無 ","鹿港鎮第五公墓禮廳及靈堂新建工程委託規劃設計監造服務-第一次契約變更 ","勞務","工程服務 ","454105","452000","112/10/26","112/10/26","彰化縣－鹿港 ","否","","非中央政府辦理新臺幣一億元以上之公共工程 ","否"]
["606","彰化縣政府 ","彰化縣和美鎮公所 ","無 ","和美鎮第三靈安堂納骨櫃設置及周邊零星改善工程委託設計監造技術服務 ","勞務","建築服務 ","2956661","2749695","112/10/19","112/10/25","彰化縣－和美 ","否","","非受中央政府補助比率逾工程建造經費百分之五十且補助經費達新臺幣一億元以上之個案公共工程 ","否"]
["607","彰化縣政府 ","彰化縣溪湖鎮公所 ","無 ","彰化縣溪湖鎮生命禮儀館設置工程委託規劃設計及監造技術服務 ","勞務","建築服務 ","7357775","7063464","112/10/11","112/10/12","彰化縣－溪湖 ","否","","非中央政府辦理新臺幣一億元以上之公共工程 ","否"]
["608","彰化縣政府 ","彰化縣花壇鄉公所 ","無 ","花壇鄉第十公墓遷葬整地設計監造委託技術服務案 ","勞務","工程服務 ","3490784","3106798","112/10/03","112/10/24","彰化縣－花壇 ","否","","非中央政府辦理新臺幣一億元以上之公共工程,非受中央政府補助比率逾工程建造經費百分之五十且補助經費達新臺幣一億元以上之個案公共工程 ","否"]
["609","彰化縣政府 ","彰化縣芳苑鄉公所 ","彰化縣政府 ","芳苑鄉五俊村芳埤段526-2地號溝渠改善工程委外設計及監造 ","勞務","工程服務 ","232180","200255","112/10/25","112/10/27","彰化縣－芳苑 ","否","","非受中央政府補助比率逾工程建造經費百分之五十且補助經費達新臺幣一億元以上之個案公共工程 ","否"]
["610","彰化縣政府 ","彰化縣大城鄉公所 ","彰化縣政府 ","大城鄉多功能活動中心周邊綠美化環境工程委託設計監造 ","勞務","工程服務 ","210000","204000","112/10/12","112/10/19","彰化縣－大城 ","否","","非中央政府辦理新臺幣一億元以上之公共工程 ","否"]
["611","彰化縣政府 ","彰化縣立田尾國民中學 ","彰化縣政府 ","「籃球場整建工程」規劃設計監造委託技術服務 ","勞務","工程服務 ","543615","538178","112/10/25","112/10/26","彰化縣－田尾 ","否","","整修工程、拆除工程、疏濬工程、結構補強工程 ","否"]
["612","彰化縣政府 ","彰化縣立溪湖國民中學 ","彰化縣政府 ","112年體育館籃球場木質地板修建工程委託技術服務案 ","勞務","建築服務 ","166974","165613","112/10/03","112/10/04","中部地區－全區 ","否","","整修工程、拆除工程、疏濬工程、結構補強工程 ","否"]
["613","彰化縣政府 ","彰化縣立彰泰國民中學 ","彰化縣政府 ","彰泰國中弘道樓屋頂層及四樓室內牆面防水工程委託規劃設計監造技術服務案 ","勞務","建築服務 ","218148","218148","112/10/24","112/10/25","彰化縣－彰化 ","否","","整修工程、拆除工程、疏濬工程、結構補強工程 ","否"]
["614","彰化縣政府 ","彰化縣民權華德福實驗國民中小學 ","教育部國民及學前教育署 ","彰化縣民權華德福實驗國民中小學-教學大樓及專科大樓老舊廁所整修工程設計監造委託技術服務 ","勞務","建築服務 ","260965","255746","112/10/03","112/10/05","彰化縣－芳苑 ","否","","整修工程、拆除工程、疏濬工程、結構補強工程 ","否"]
["615","彰化縣政府 ","彰化縣鹿港鎮文開國民小學 ","教育部國民及學前教育署、彰化縣政府 ","文開國小行政大樓老舊廁所整修工程設計監造委託技術服務 ","勞務","建築服務 ","245314","243842","112/10/12","112/10/13","彰化縣－彰化 ","否","","整修工程、拆除工程、疏濬工程、結構補強工程 ","否"]
["616","彰化縣政府 ","彰化縣和美鎮大榮國民小學 ","彰化縣政府 ","大榮國小教學大樓廁所整建工程委託設計監造技術服務案 ","勞務","建築服務 ","170138","169119","112/10/11","112/10/12","彰化縣－和美 ","否","","整修工程、拆除工程、疏濬工程、結構補強工程 ","否"]
["617","彰化縣政府 ","彰化縣溪湖鎮媽厝國民小學 ","教育部、彰化縣政府 ","媽厝國小112年度老舊廁所(南北棟)整修工程設計監造委託技術服務案 ","勞務","綜合工程服務 ","189054","180000","112/09/14","112/10/02","彰化縣－溪湖 ","否","","整修工程、拆除工程、疏濬工程、結構補強工程 ","否"]
["618","彰化縣政府 ","彰化縣埔鹽鄉埔鹽國民小學 ","教育部國民及學前教育署 ","112年度公立國民中小學老舊廁所整修工程計畫委託設計監造技術服務案 ","勞務","建築服務 ","164262","164000","112/10/13","112/10/16","彰化縣－埔鹽 ","否","","整修工程、拆除工程、疏濬工程、結構補強工程 ","否"]
["619","彰化縣政府 ","彰化縣田尾鄉田尾國民小學 ","教育部體育署、彰化縣政府 ","彰化縣田尾國小風雨球場改善工程委託設計監造技術服務 ","勞務","工程服務 ","205176","205176","112/10/06","112/10/06","彰化縣－田尾 ","否","","非中央政府辦理新臺幣一億元以上之公共工程,非受中央政府補助比率逾工程建造經費百分之五十且補助經費達新臺幣一億元以上之個案公共工程,整修工程、拆除工程、疏濬工程、結構補強工程 ","否"]
["620","彰化縣政府 ","彰化縣彰化市忠孝國民小學 ","彰化縣政府 ","112年度公立國民中小學老舊廁所整建工程委託規劃設計監造服務案 ","勞務","工程服務 ","327911","325000","112/10/02","112/10/04","彰化縣－全區 ","否","","非中央政府辦理新臺幣一億元以上之公共工程,整修工程、拆除工程、疏濬工程、結構補強工程 ","否"]
["621","臺中市政府 ","臺中市政府教育局 ","無 ","臺中市立南興國民中學第一期校舍興建工程 ","工程","教育用建築工程 ","332883000","304600000","112/10/26","112/10/31","中部地區－全區 ","否","","規劃取得綠建築標章之建築工程 ","否"]
["622","臺中市政府 ","臺中市立東山高級中學 ","臺中市政府教育局 ","校區內運動操場及球場整建工程委託規劃設計監造技術服務勞務採購案 ","勞務","綜合工程服務 ","593872","593872","112/10/18","112/10/18","臺中市－北屯區 ","否","","整修工程、拆除工程、疏濬工程、結構補強工程 ","否"]
["623","臺中市政府 ","臺中市立東山高級中學 ","臺中市政府教育局 ","室外籃排球場工程委託規劃設計監造技術服務勞務採購案 ","勞務","綜合工程服務 ","220874","220874","112/10/06","112/10/06","臺中市－北屯區 ","否","","整修工程、拆除工程、疏濬工程、結構補強工程 ","否"]
["624","臺中市政府 ","臺中市立中港高級中學 ","台灣中油股份有限公司 ","中港高中教學行政空間優化工程規劃設計監造服務 ","勞務","工程服務 ","178533","176748","112/10/25","112/10/26","臺中市－梧棲區 ","否","","整修工程、拆除工程、疏濬工程、結構補強工程 ","否"]
["625","臺中市政府 ","臺中市立中港高級中學 ","臺中市政府教育局 ","中港高中學生宿舍二期裝修工程規劃設計監造服務 ","勞務","工程服務 ","531218","520594","112/09/28","112/10/03","臺中市－梧棲區 ","否","","整修工程、拆除工程、疏濬工程、結構補強工程 ","否"]
["626","臺中市政府 ","臺中市立居仁國民中學 ","臺中市政府教育局 ","「臺中市立居仁國民中學112-113年度校園社區化改造計畫-設置學校社區共讀站委託規劃設計及監造服務」採購案 ","勞務","建築服務 ","208346","205000","112/10/16","112/10/19","臺中市－西區 ","否","","非中央政府辦理新臺幣一億元以上之公共工程 ","否"]
["627","臺中市政府 ","臺中市立北新國民中學 ","臺中市政府教育局 ","運動場跑道整修工程委託設計監造技術服務第一次變更設計 ","勞務","工程服務 ","128052","128052","112/10/18","112/10/20","臺中市－北屯區 ","否","","整修工程、拆除工程、疏濬工程、結構補強工程 ","否"]
["628","臺中市政府 ","臺中市立光明國民中學 ","臺中市政府教育局 ","光明國中-公立國民中小學老舊廁所整修工程委託技術服務 ","勞務","建築服務 ","850000","850000","112/10/04","112/10/04","臺中市－西區 ","否","","整修工程、拆除工程、疏濬工程、結構補強工程 ","否"]
["629","臺中市政府 ","臺中市立立人國民中學 ","教育部 ","立人國中運動操場及周邊設施整建工程委託設計及監造技術服務 ","勞務","工程服務 ","576650","570000","112/10/18","112/10/23","臺中市－北區 ","否","","整修工程、拆除工程、疏濬工程、結構補強工程 ","否"]
["630","臺中市政府 ","臺中市立安和國民中學 ","教育部國民及學前教育署 ","「臺中市立安和國民中學112年度悅學樓東側廁所改善工程」委託技術服務 ","勞務","工程服務 ","500000","500000","112/10/11","112/10/12","臺中市－西屯區 ","否","","非中央政府辦理新臺幣一億元以上之公共工程 ","否"]
["631","臺中市政府 ","臺中市立大墩國民中學 ","教育部體育署 ","大墩國中運動操場及周邊設施整建工程委託規劃設計監造技術服務 ","勞務","工程服務 ","539889","523692","112/10/18","112/10/19","臺中市－南屯區 ","否","","非中央政府辦理新臺幣一億元以上之公共工程 ","否"]
["632","臺中市政府 ","臺中市立大道國民中學 ","教育部 ","大道國中112年度「公立國民中小學效舜樓老舊廁所整修工程委託規劃設計監造技術服務採購案」 ","勞務","工程服務 ","380000","380000","112/10/17","112/10/17","臺中市－大肚區 ","否","","整修工程、拆除工程、疏濬工程、結構補強工程 ","否"]
["633","臺中市政府 ","臺中市立清泉國民中學 ","無 ","112年度老舊廁所整修工程委託規劃設計監造服務採購 ","勞務","工程服務 ","275134","275134","112/10/12","112/10/13","臺中市－清水區 ","否","","非受中央政府補助比率逾工程建造經費百分之五十且補助經費達新臺幣一億元以上之個案公共工程 ","否"]
["634","臺中市政府 ","臺中市立日南國民中學 ","臺中市政府 ","既有老舊校舍拆除重建工程委託規劃設計監造技術服務 ","勞務","建築服務 ","14245847","14130076","112/09/28","112/10/03","中部地區－全區 ","否","","規劃取得綠建築標章之建築工程 ","否"]
["635","臺中市政府 ","臺中市立大安國民中學 ","臺中市政府教育局 ","112年度公立國民中小學老舊廁所（活動中心）整修工程委託規劃設計監造服務案 ","勞務","建築服務 ","185340","183185","112/10/13","112/10/13","臺中市－大安區 ","否","","整修工程、拆除工程、疏濬工程、結構補強工程 ","否"]
["636","臺中市政府 ","臺中市立立新國民中學 ","教育部 ","112年度老舊廁所整修工程規劃設計監造技術服務採購案 ","勞務","工程服務 ","438228","433845","112/10/12","112/10/31","臺中市－大里區 ","否","","非中央政府辦理新臺幣一億元以上之公共工程 ","否"]
["637","臺中市政府 ","臺中市立公明國民中學 ","臺中市政府教育局 ","臺中市立公明國民中學 C棟(六間)老舊廁所整修工程工程委託設計監造技術服務採購案 ","勞務","工程服務 ","345922","345784","112/10/03","112/10/05","臺中市－沙鹿區 ","否","","非中央政府辦理新臺幣一億元以上之公共工程,非受中央政府補助比率逾工程建造經費百分之五十且補助經費達新臺幣一億元以上之個案公共工程,整修工程、拆除工程、疏濬工程、結構補強工程 ","否"]
["638","臺中市政府 ","臺中市立光復國民中小學 ","無 ","112-113年度設置學校社區共讀站委託技術服務採購案 ","勞務","建築服務 ","195691","195000","112/10/24","112/10/25","臺中市－霧峰區 ","否","","非中央政府辦理新臺幣一億元以上之公共工程,整修工程、拆除工程、疏濬工程、結構補強工程 ","否"]
["639","臺中市政府 ","臺中市東區臺中國民小學 ","教育部 ","112年度忠孝樓老舊廁所整修工程委託規劃設計監造案 ","勞務","建築服務 ","245682","245000","112/10/18","112/10/24","臺中市－東區 ","否","","整修工程、拆除工程、疏濬工程、結構補強工程 ","否"]
["640","臺中市政府 ","臺中市南區國光國民小學 ","臺中市政府教育局 ","國光堂老舊廁所整修工程委託規劃設計及監造技術服務採購 ","勞務","建築服務 ","240326","240326","112/10/12","112/10/24","臺中市－南區 ","否","","非中央政府辦理新臺幣一億元以上之公共工程,非受中央政府補助比率逾工程建造經費百分之五十且補助經費達新臺幣一億元以上之個案公共工程 ","否"]
["641","臺中市政府 ","臺中市西屯區永安國民小學 ","教育部體育署 ","臺中市西屯區永安國民小學學校運動操場及周邊設施整建工程委託規畫設計及監造服務採購 ","勞務","建築服務 ","761043","761043","112/09/14","112/10/17","臺中市－西屯區 ","否","","整修工程、拆除工程、疏濬工程、結構補強工程 ","否"]
["642","臺中市政府 ","臺中市南屯區文山國民小學 ","教育部國民及學前教育署 ","臺中市南屯區文山國民小學112年度「公立國民中小學老舊廁所整修工程」委託規劃設計監造技術服務採購案 ","勞務","工程服務 ","553046","553046","112/10/03","112/10/11","臺中市－南屯區 ","否","","整修工程、拆除工程、疏濬工程、結構補強工程 ","否"]
["643","臺中市政府 ","臺中市北屯區松竹國民小學 ","教育部國民及學前教育署 ","臺中市北屯區松竹國民小學勁竹樓暨松英樓西側老舊廁所整修工程委託規畫設計監造技術服務 ","勞務","建築服務 ","577513","577397","112/09/26","112/10/03","臺中市－北屯區 ","否","","整修工程、拆除工程、疏濬工程、結構補強工程 ","否"]
["644","臺中市政府 ","臺中市東區樂業國民小學 ","無 ","樂業國小社區共讀站整建工程委託規劃設計監造技術服務 ","勞務","工程服務 ","205831","205831","112/10/06","112/10/06","臺中市－東區 ","否","","非中央政府辦理新臺幣一億元以上之公共工程,非受中央政府補助比率逾工程建造經費百分之五十且補助經費達新臺幣一億元以上之個案公共工程 ","否"]
["645","臺中市政府 ","臺中市北屯區四維國民小學 ","臺中市政府教育局 ","112年度充實設施設備-路面高低差安全設施及附屬周邊改善工程委託規劃設計監造技術服務 ","勞務","建築服務 ","227800","220000","112/10/19","112/10/25","臺中市－北屯區 ","否","","非中央政府辦理新臺幣一億元以上之公共工程,非受中央政府補助比率逾工程建造經費百分之五十且補助經費達新臺幣一億元以上之個案公共工程,整修工程、拆除工程、疏濬工程、結構補強工程 ","否"]
["646","臺中市政府 ","臺中市北屯區文心國民小學 ","教育部 ","112年度老舊廁所整修工程委託規劃設計監造技術服務 ","勞務","建築服務 ","764243","762000","112/10/03","112/10/04","中部地區－全區 ","否","","整修工程、拆除工程、疏濬工程、結構補強工程 ","否"]
["647","臺中市政府 ","臺中市南區樹義國民小學 ","教育部體育署 ","112年樹義國小運動操場及周邊設施整建工程委託規劃設計監造技術服務 ","勞務","工程服務 ","544412","528080","112/10/17","112/10/17","臺中市－南區 ","否","","非中央政府辦理新臺幣一億元以上之公共工程,非受中央政府補助比率逾工程建造經費百分之五十且補助經費達新臺幣一億元以上之個案公共工程 ","否"]
["648","臺中市政府 ","臺中市烏日區僑仁國民小學 ","教育部國民及學前教育署 ","112年度老舊廁所整修委託規劃設計監造技術服務 ","勞務","建築服務 ","353554","353554","112/09/27","112/10/04","臺中市－烏日區 ","否","","非中央政府辦理新臺幣一億元以上之公共工程 ","否"]
["649","臺中市政府 ","臺中市烏日區僑仁國民小學 ","教育部國民及學前教育署 ","112年度改善校園排水工程系統委託規劃設計監造技術服務 ","勞務","工程服務 ","315352","315352","112/10/25","112/10/27","臺中市－烏日區 ","否","","整修工程、拆除工程、疏濬工程、結構補強工程 ","否"]
["650","臺中市政府 ","臺中市烏日區五光國民小學 ","教育部體育署 ","五光國小運動操場及周邊設施整建工程委託規劃設計監造服務 ","勞務","工程服務 ","500000","500000","112/10/17","112/10/18","中部地區－全區 ","否","","整修工程、拆除工程、疏濬工程、結構補強工程 ","否"]
["651","臺中市政府 ","臺中市新社區大林國民小學 ","臺中市政府教育局 ","臺中市新社區大林國民小學老舊廁所整修工程設計監造服務案 ","勞務","建築服務 ","202066","200045","112/09/27","112/10/03","臺中市－新社區 ","否","","非中央政府辦理新臺幣一億元以上之公共工程 ","否"]
["652","臺中市政府 ","臺中市后里區七星國民小學 ","臺中市政府教育局、教育部國民及學前教育署 ","七星國小附設幼兒園園舍併活動中心共構興建工程委託規劃設計監造技術服務案 ","勞務","建築服務 ","6188737","6182151","112/09/27","112/10/05","臺中市－后里區 ","否","","規劃取得綠建築標章之建築工程 ","否"]
["653","臺中市政府 ","臺中市豐原區翁子國民小學 ","內政部營建署、臺中市政府建設局 ","翁子國小校園周邊暨行車安全道路改善工程委託設計監造技術服務 ","勞務","工程服務 ","1343808","1316644","112/10/26","112/10/27","中部地區－全區 ","否","","整修工程、拆除工程、疏濬工程、結構補強工程 ","否"]
["654","臺中市政府 ","臺中市大肚區永順國民小學 ","臺中市政府教育局 ","臺中市永順國小學校社區共讀站委託規劃設計監造服務採購 ","勞務","工程服務 ","204897","204487","112/10/02","112/10/02","臺中市－大肚區 ","否","","整修工程、拆除工程、疏濬工程、結構補強工程 ","否"]
["655","臺中市政府 ","臺中市大里區立新國民小學 ","臺中市政府教育局 ","112年公立國中小學老舊廁所整修設計監造勞務委託採購案 ","勞務","建築服務 ","378979","377000","112/09/28","112/10/03","臺中市－大里區 ","否","","整修工程、拆除工程、疏濬工程、結構補強工程","否"]
["656","臺中市政府 ","臺中市太平區長億國民小學 ","教育部體育署 ","長億國小運動操場及周邊設施整建工程委託規劃設計監造技術服務採購 ","勞務","工程服務 ","501145","500143","112/10/18","112/10/18","臺中市－全區 ","否","","非中央政府辦理新臺幣一億元以上之公共工程 ","否"]
["657","臺中市政府 ","臺中市養護工程處 ","內政部營建署 ","臺中市東區旱溪西路成功國民小學校園周邊人行道暨道路改善工程委託設計監造技術服務案 ","勞務","工程服務 ","7973000","7417720","112/10/18","112/10/20","臺中市－東區 ","否","","非中央政府辦理新臺幣一億元以上之公共工程,非受中央政府補助比率逾工程建造經費百分之五十且補助經費達新臺幣一億元以上之個案公共工程 ","否"]
["658","臺中市政府 ","臺中市養護工程處 ","無 ","臺中市太平區東平國小校園周邊道路及人行道改善工程委託設計監造技術服務案 ","勞務","工程服務 ","5537000","5292550","112/10/18","112/10/20","臺中市－太平區 ","否","","非中央政府辦理新臺幣一億元以上之公共工程 ","否"]
["659","臺中市政府 ","臺中市政府經濟發展局 ","無 ","臺中市豐原第一公有零售市場A棟耐震能力補強工程委託設計監造技術服務案 ","勞務","建築服務 ","2630697","2551776","112/10/17","112/10/18","臺中市－豐原區 ","否","","非中央政府辦理新臺幣一億元以上之公共工程,非受中央政府補助比率逾工程建造經費百分之五十且補助經費達新臺幣一億元以上之個案公共工程,整修工程、拆除工程、疏濬工程、結構補強工程 ","否"]
["660","臺中市政府 ","臺中市政府水利局 ","無 ","「臺中市海線地區雨水下水道改善工程」委託技術服務(第一次契約變更) ","勞務","工程服務 ","1056013","1056013","112/10/11","112/10/18","臺中市－梧棲區,臺中市－清水區 ","否","","整修工程、拆除工程、疏濬工程、結構補強工程 ","否"]
["661","臺中市政府 ","臺中市政府交通局 ","交通部公路總局 ","112年度臺中市易肇事路段改善工程及綠斑馬學童安全改善工程委託監造(第四次後續擴充) ","勞務","綜合工程服務 ","65614","65614","112/10/06","112/10/12","臺中市－全區 ","否","","非中央政府辦理新臺幣一億元以上之公共工程,非受中央政府補助比率逾工程建造經費百分之五十且補助經費達新臺幣一億元以上之個案公共工程 ","否"]
["662","臺中市政府 ","臺中市政府交通局 ","無 ","112年臺中市公有停車場鋪面設置及修繕工程委託設計監造 ","勞務","工程服務 ","1067469","1024770","112/10/12","112/10/13","臺中市－全區 ","否","","整修工程、拆除工程、疏濬工程、結構補強工程 ","否"]
["663","臺中市政府 ","臺中市政府交通局 ","無 ","112年度臺中市第一、三工區道路標誌標線與安全管制設施工程委託監造(第2次後續擴充) ","勞務","工程服務 ","164796","164796","112/10/02","112/10/04","臺中市－中區,臺中市－東區,臺中市－北區,臺中市－北屯區,臺中市－太平區,臺中市－豐原區,臺中市－后里區,臺中市－石岡區,臺中市－東勢區,臺中市－和平區,臺中市－新社區,臺中市－潭子區,臺中市－大雅區,臺中市－神岡區 ","否","","非中央政府辦理新臺幣一億元以上之公共工程 ","否"]
["664","臺中市政府 ","臺中市政府交通局 ","無 ","112年度臺中市第二、四工區道路標誌標線與安全管制設施工程委託監造(第2次後續擴充) ","勞務","工程服務 ","157150","157150","112/10/02","112/10/04","臺中市－南區,臺中市－西區,臺中市－西屯區,臺中市－南屯區,臺中市－大里區,臺中市－霧峰區,臺中市－烏日區,臺中市－大肚區,臺中市－沙鹿區,臺中市－龍井區,臺中市－梧棲區,臺中市－清水區,臺中市－大甲區,臺中市－外埔區,臺中市－大安區 ","否","","非中央政府辦理新臺幣一億元以上之公共工程 ","否"]
["665","臺中市政府 ","臺中市政府交通局 ","無 ","112年度臺中市第一工區交通號誌維修養護與汰舊換新工程、交通設施災害緊急搶修工程委託監造(後續擴充) ","勞務","工程服務 ","186663","186663","112/10/13","112/10/18","中部地區－全區 ","否","","非受中央政府補助比率逾工程建造經費百分之五十且補助經費達新臺幣一億元以上之個案公共工程,整修工程、拆除工程、疏濬工程、結構補強工程 ","否"]
["666","臺中市政府 ","臺中市政府交通局 ","無 ","112年度臺中市第二工區交通號誌維修養護與汰舊換新工程、交通設施災害緊急搶修工程委託監造(後續擴充) ","勞務","工程服務 ","186663","186663","112/10/13","112/10/18","中部地區－全區 ","否","","非受中央政府補助比率逾工程建造經費百分之五十且補助經費達新臺幣一億元以上之個案公共工程,整修工程、拆除工程、疏濬工程、結構補強工程 ","否"]
["667","臺中市政府 ","臺中市政府交通局 ","無 ","112年度臺中市易肇事路段改善工程及綠斑馬學童安全改善工程委託監造(第五次後續擴充) ","勞務","綜合工程服務 ","200387","200387","112/10/26","112/10/31","臺中市－全區 ","否","","非中央政府辦理新臺幣一億元以上之公共工程,非受中央政府補助比率逾工程建造經費百分之五十且補助經費達新臺幣一億元以上之個案公共工程 ","否"]
["668","臺中市政府 ","臺中市政府觀光旅遊局 ","交通部公路總局 ","大慶車站至台74線側車道自行車道委託設計技術服務 ","勞務","工程服務 ","1525000","1494000","112/09/28","112/10/02","臺中市－南區,臺中市－烏日區 ","否","","非中央政府辦理新臺幣一億元以上之公共工程 ","否"]
["669","臺中市政府 ","臺中市政府觀光旅遊局 ","無 ","112年度臺中市全區自行車道及周邊設施維護工程委託設計監造技術服務 ","勞務","工程服務 ","438082","418368","112/10/19","112/10/20","臺中市－全區 ","否","","非受中央政府補助比率逾工程建造經費百分之五十且補助經費達新臺幣一億元以上之個案公共工程 ","否"]
["670","臺中市政府 ","臺中市政府文化局 ","無 ","「臺中市中山堂空調改善工程」規劃設計技術服務採購案 ","勞務","工程服務 ","1815000","1815000","112/09/28","112/10/02","臺中市－北區 ","否","","非中央政府辦理新臺幣一億元以上之公共工程 ","否"]
["671","臺中市政府 ","臺中市文化資產處 ","無 ","臺中市歷史建築朝陽街日式宿舍群修復工程委託監造及工作報告書技術服務 ","勞務","建築服務 ","3954198","3954198","112/09/26","112/10/02","臺中市－西區 ","否","","非中央政府辦理新臺幣一億元以上之公共工程,非受中央政府補助比率逾工程建造經費百分之五十且補助經費達新臺幣一億元以上之個案公共工程 ","否"]
["672","臺中市政府 ","臺中市政府客家事務委員會 ","無 ","「112年東勢客家文化園區暨臺中客家故事館周遭植栽景觀計畫」委託專業服務案 ","勞務","都市計劃及景觀建築服務 ","1300000","1299810","112/10/19","112/10/23","臺中市－東勢區 ","否","","非中央政府辦理新臺幣一億元以上之公共工程 ","否"]
["673","臺中市政府 ","臺中市政府運動局 ","無 ","臺中市神岡區網球場興建工程委託規劃設計監造技術服務 ","勞務","工程服務 ","686249","603899","112/10/19","112/10/24","臺中市－神岡區 ","否","","非中央政府辦理新臺幣一億元以上之公共工程,非受中央政府補助比率逾工程建造經費百分之五十且補助經費達新臺幣一億元以上之個案公共工程 ","否"]
["674","臺中市政府 ","臺中市南屯區公所 ","無 ","「112年度臺中市南屯區基礎公共建設工程委託設計監造(開口契約)」第四次後續擴充增購 ","勞務","工程服務 ","32006","32006","112/09/25","112/10/02","臺中市－南屯區 ","否","","非受中央政府補助比率逾工程建造經費百分之五十且補助經費達新臺幣一億元以上之個案公共工程 ","否"]
["675","臺中市政府 ","臺中市北屯區公所 ","臺中市政府水利局 ","112年度臺中市北屯區公所天然災害緊急搶險搶修工程(開口契約)委託設計監造-後續擴充 ","勞務","工程服務 ","150000","150000","112/10/13","112/10/23","臺中市－北屯區 ","否","","非中央政府辦理新臺幣一億元以上之公共工程,災後緊急處理、搶修、搶險 ","否"]
["676","臺中市政府 ","臺中市北屯區公所 ","臺中市政府建設局 ","臺中市北屯區112年小型工程開口契約委託設計監造(後續擴充) ","勞務","工程服務 ","13930","13930","112/10/03","112/10/04","臺中市－北屯區 ","否","","非中央政府辦理新臺幣一億元以上之公共工程,非受中央政府補助比率逾工程建造經費百分之五十且補助經費達新臺幣一億元以上之個案公共工程 ","否"]
["677","臺中市政府 ","臺中市豐原區公所 ","無 ","112年度臺中市豐原區天然災害緊急搶險搶修工程(開口契約)委託設計監造(後續擴充) ","勞務","工程服務 ","252686","252686","112/10/19","112/10/23","臺中市－豐原區 ","否","","非中央政府辦理新臺幣一億元以上之公共工程,非受中央政府補助比率逾工程建造經費百分之五十且補助經費達新臺幣一億元以上之個案公共工程,災後緊急處理、搶修、搶險,整修工程、拆除工程、疏濬工程、結構補強工程 ","否"]
["678","臺中市政府 ","臺中市豐原區公所 ","無 ","「臺中市豐原區公所路面整修工程-豐榮里和平街13處等工程(開口契約)」委託設計監造 ","勞務","工程服務 ","525000","484000","112/10/18","112/10/18","臺中市－豐原區 ","否","","非中央政府辦理新臺幣一億元以上之公共工程,非受中央政府補助比率逾工程建造經費百分之五十且補助經費達新臺幣一億元以上之個案公共工程,整修工程、拆除工程、疏濬工程、結構補強工程 ","否"]
["679","臺中市政府 ","臺中市豐原區公所 ","無 ","「臺中市豐原區113年度路燈養護工程(開口契約)」委託設計監造案 ","勞務","工程服務 ","465593","438500","112/10/20","112/10/20","臺中市－豐原區 ","否","","非中央政府辦理新臺幣一億元以上之公共工程,非受中央政府補助比率逾工程建造經費百分之五十且補助經費達新臺幣一億元以上之個案公共工程,整修工程、拆除工程、疏濬工程、結構補強工程 ","否"]
["680","臺中市政府 ","臺中市豐原區公所 ","無 ","豐原區北陽里旱溪支線坑溝上游段災後復建工程委託設計監造 ","勞務","工程服務 ","288645","285896","112/10/24","112/10/24","臺中市－豐原區 ","否","","非中央政府辦理新臺幣一億元以上之公共工程,非受中央政府補助比率逾工程建造經費百分之五十且補助經費達新臺幣一億元以上之個案公共工程,災後原地復建,整修工程、拆除工程、疏濬工程、結構補強工程 ","否"]
["681","臺中市政府 ","臺中市大里區公所 ","無 ","臺中市大里區公所路面整修工程(開口契約)委託設計監造技術服務 ","勞務","工程服務 ","810904","770359","112/10/03","112/10/04","臺中市－大里區 ","否","","整修工程、拆除工程、疏濬工程、結構補強工程 ","否"]
["682","臺中市政府 ","臺中市太平區公所 ","無 ","112年度太平區道路及附屬設施巡查、改善及搶修工程（開口契約）委託設計監造-第2次後續擴充 ","勞務","工程服務 ","338001","338001","112/10/12","112/10/16","臺中市－太平區 ","否","","非中央政府辦理新臺幣一億元以上之公共工程 ","否"]
["683","臺中市政府 ","臺中市太平區公所 ","無 ","112 年度臺中市太平區天然災害緊急搶險搶修工程 (開口契約)委託設計監造-第1次後續擴充 ","勞務","工程服務 ","294707","294707","112/10/06","112/10/11","臺中市－太平區 ","否","","非中央政府辦理新臺幣一億元以上之公共工程 ","否"]
["684","臺中市政府 ","臺中市太平區公所 ","無 ","112 年臺中市太平區新福公園增設沙坑遮陽設施及意象美化委 託專業服務案 ","勞務","工程服務 ","490000","490000","112/10/03","112/10/03","臺中市－太平區 ","否","","非中央政府辦理新臺幣一億元以上之公共工程 ","否"]
["685","臺中市政府 ","臺中市太平區公所 ","無 ","「臺中市歷史建築『頭汴坑警察官吏派出所修復工程』委託監造及工作報告書技術服務案」 ","勞務","工程服務 ","2375000","2375000","112/10/12","112/10/13","臺中市－太平區 ","否","","非中央政府辦理新臺幣一億元以上之公共工程 ","否"]
["686","臺中市政府 ","臺中市清水區公所 ","無 ","「112年度清水區內公園廣場行道樹園道綠地相關設施維護(開口契約)」委託設計監造技術服務(第一次後續擴充) ","勞務","工程服務 ","10747","10747","112/10/11","112/10/12","臺中市－清水區 ","否","","非中央政府辦理新臺幣一億元以上之公共工程,非受中央政府補助比率逾工程建造經費百分之五十且補助經費達新臺幣一億元以上之個案公共工程 ","否"]
["687","臺中市政府 ","臺中市清水區公所 ","無 ","清水區中清路橋下籃球場圍籬網改善工程委託設計監造技術服務 ","勞務","工程服務 ","774895","759397","112/10/03","112/10/04","臺中市－清水區 ","否","","非中央政府辦理新臺幣一億元以上之公共工程,非受中央政府補助比率逾工程建造經費百分之五十且補助經費達新臺幣一億元以上之個案公共工程 ","否"]
["688","臺中市政府 ","臺中市清水區公所 ","無 ","112年度臺中市清水區農地重劃區緊急農路改善工程委託設計監造技術服務 ","勞務","工程服務 ","228462","221608","112/10/03","112/10/04","臺中市－清水區 ","否","","非中央政府辦理新臺幣一億元以上之公共工程,非受中央政府補助比率逾工程建造經費百分之五十且補助經費達新臺幣一億元以上之個案公共工程 ","否"]
["689","臺中市政府 ","臺中市清水區公所 ","無 ","清水區內道路及人行道改善工程開口契約委託設計監造技術服務 ","勞務","工程服務 ","398104","378199","112/10/06","112/10/11","臺中市－清水區 ","否","","非中央政府辦理新臺幣一億元以上之公共工程,非受中央政府補助比率逾工程建造經費百分之五十且補助經費達新臺幣一億元以上之個案公共工程 ","否"]
["690","臺中市政府 ","臺中市沙鹿區公所 ","無 ","112年度臺中市沙鹿區路面整修工程(開口契約)委託設計監造技術服務 ","勞務","工程服務 ","332446","309175","112/10/12","112/10/16","臺中市－沙鹿區 ","否","","非中央政府辦理新臺幣一億元以上之公共工程,整修工程、拆除工程、疏濬工程、結構補強工程 ","否"]
["691","臺中市政府 ","臺中市大甲區公所 ","臺中市政府 ","臺中市大甲區轄內路面整修工程委託設計監造技術服務案 ","勞務","工程服務 ","375959","368500","112/09/28","112/10/03","臺中市－大甲區 ","否","","整修工程、拆除工程、疏濬工程、結構補強工程 ","否"]
["692","臺中市政府 ","臺中市烏日區公所 ","無 ","112年度烏日區路面及附屬設施整修改善等工程委託設計監造 ","勞務","工程服務 ","299250","146633","112/10/06","112/10/06","臺中市－烏日區 ","否","","非中央政府辦理新臺幣一億元以上之公共工程,非受中央政府補助比率逾工程建造經費百分之五十且補助經費達新臺幣一億元以上之個案公共工程 ","否"]
["693","臺中市政府 ","臺中市大肚區公所 ","無 ","大肚區蔗廍里及瑞井里等2里道路及排水改善工程委託測量規劃設計監造服務 ","勞務","工程服務 ","1428269","1214505","112/10/18","112/10/24","臺中市－大肚區 ","否","","整修工程、拆除工程、疏濬工程、結構補強工程 ","否"]
["694","臺中市政府 ","臺中市大肚區公所 ","無 ","臺中市大肚區內道路及排水小型工程委託測量規劃設計監造服務 ","勞務","工程服務 ","774450","684505","112/10/17","112/10/20","臺中市－大肚區 ","否","","整修工程、拆除工程、疏濬工程、結構補強工程 ","否"]
["695","臺中市政府 ","臺中市后里區公所 ","無 ","112年度后里區道路改善工程(開口契約)-委託技術服務案 ","勞務","工程服務 ","587616","572926","112/10/24","112/10/25","臺中市－后里區 ","否","","非中央政府辦理新臺幣一億元以上之公共工程,整修工程、拆除工程、疏濬工程、結構補強工程 ","否"]
["696","臺中市政府 ","臺中市霧峰區公所 ","無 ","112年度霧峰區區里小型工程計畫(開口契約)委託設計監造技術服務 ","勞務","綜合工程服務 ","1394350","1017876","112/10/13","112/10/16","臺中市－霧峰區 ","否","","非中央政府辦理新臺幣一億元以上之公共工程 ","否"]
["697","臺中市政府 ","臺中市潭子區公所 ","無 ","112年度臺中市潭子區路面整修工程(開口契約)-委託設計監造技術服務案 ","勞務","工程服務 ","504906","454513","112/10/12","112/10/13","臺中市－潭子區 ","否","","整修工程、拆除工程、疏濬工程、結構補強工程 ","否"]
["698","臺中市政府 ","臺中市龍井區公所 ","無 ","112年度龍井區第四工區道路及附屬設施修復改善工程委託設計監造技術服務-後續擴充 ","勞務","工程服務 ","206555","206555","112/10/02","112/10/06","臺中市－龍井區 ","否","","非中央政府辦理新臺幣一億元以上之公共工程,非受中央政府補助比率逾工程建造經費百分之五十且補助經費達新臺幣一億元以上之個案公共工程 ","否"]
["699","臺中市政府 ","臺中市龍井區公所 ","無 ","112年度臺中市龍井區已辦竣農地重劃區農水路改善工程委託設計監造技術服務 ","勞務","工程服務 ","430566","430566","112/10/03","112/10/03","臺中市－龍井區 ","否","","非中央政府辦理新臺幣一億元以上之公共工程,非受中央政府補助比率逾工程建造經費百分之五十且補助經費達新臺幣一億元以上之個案公共工程 ","否"]
["700","臺中市政府 ","臺中市龍井區公所 ","無 ","臺中市龍井區麗水里觀光遊憩與環境整備委託研究 ","勞務","都市計劃及景觀建築服務 ","4000000","3960000","112/10/27","112/10/30","臺中市－龍井區 ","否","","非中央政府辦理新臺幣一億元以上之公共工程,非受中央政府補助比率逾工程建造經費百分之五十且補助經費達新臺幣一億元以上之個案公共工程 ","否"]
["701","臺中市政府 ","臺中市和平區公所 ","台灣電力股份有限公司 ","112年度台電公司促進電力發展營運協助金--台電發電廠周圍地區道路及建設工程經費----梨山里、平等里設計監造 ","勞務","工程服務 ","185363","185363","112/10/11","112/10/20","中部地區－全區 ","否","","非受中央政府補助比率逾工程建造經費百分之五十且補助經費達新臺幣一億元以上之個案公共工程,整修工程、拆除工程、疏濬工程、結構補強工程 ","否"]
["702","臺中市政府 ","臺中市和平區公所 ","行政院農業委員會水土保持局臺中分局 ","和平區梨山里松茂部落農路上邊坡崩塌改善工程設計監造委託技術服務費 ","勞務","工程服務 ","192857","192857","112/10/11","112/10/20","中部地區－全區 ","否","","整修工程、拆除工程、疏濬工程、結構補強工程 ","否"]
["703","臺中市政府 ","臺中市和平區公所 ","無 ","112年度復建工程設計監造委託技術服務（開口契約）後續擴充 ","勞務","工程服務 ","287738","287738","112/10/23","112/10/24","臺中市－和平區 ","否","","災後緊急處理、搶修、搶險 ","否"]
["704","臺中市政府 ","臺中市和平區公所 ","臺中市政府 ","112年度和平區中坑、自由、達觀等三里天然災害緊急搶險工程（開口契約）設計監造委託技術服務後續擴充 ","勞務","工程服務 ","298206","298206","112/10/23","112/10/24","臺中市－和平區 ","否","","災後緊急處理、搶修、搶險 ","否"]
["705","臺中市政府 ","臺中市和平區公所 ","臺中市政府 ","112年度和平區梨山、平等等二里天然災害緊急搶險工程（開口契約）設計監造委託技術服務後續擴充 ","勞務","工程服務 ","311726","311726","112/10/23","112/10/24","臺中市－和平區 ","否","","災後緊急處理、搶修、搶險 ","否"]
["706","臺中市政府 ","臺中市和平區公所 ","臺中市政府 ","112年度和平區南勢、天輪、博愛等三里天然災害緊急搶險工程（開口契約）設計監造委託技術服務後續擴充 ","勞務","工程服務 ","294910","294910","112/10/23","112/10/24","臺中市－和平區 ","否","","災後緊急處理、搶修、搶險 ","否"]
["707","臺中市政府 ","臺中市石岡區公所 ","無 ","112年度石岡區和順巷、下坑巷及梅子巷等道路改善工程(開口契約)委託設計監造採購案 ","勞務","工程服務 ","273260","265452","112/10/12","112/10/12","臺中市－石岡區 ","否","","非中央政府辦理新臺幣一億元以上之公共工程 ","否"]
["708","臺中市政府 ","臺中市石岡區公所 ","經濟部水利署第三河川局 ","112年度三河局疏濬清淤路線(臺三線)周邊及支線路面、排水溝等改善工程(開口契約)委託設計監造採購案 ","勞務","工程服務 ","471230","457766","112/10/11","112/10/12","臺中市－石岡區 ","否","","非中央政府辦理新臺幣一億元以上之公共工程 ","否"]
["709","臺中市政府 ","臺中市石岡區公所 ","臺中市政府水利局 ","112年度臺中市石岡區公所天然災害緊急搶險搶修工程(開口契約)委託設計監造採購案-後續擴充 ","勞務","工程服務 ","41998","41998","112/10/18","112/10/23","臺中市－石岡區 ","否","","非中央政府辦理新臺幣一億元以上之公共工程 ","否"]
["710","臺中市政府 ","臺中市大安區公所 ","無 ","臺中市大安區公所三樓辦公廳舍及一樓廁所補照案-第二次契約變更 ","勞務","工程服務 ","6317","6317","112/09/25","112/10/05","臺中市－大安區 ","否","","非受中央政府補助比率逾工程建造經費百分之五十且補助經費達新臺幣一億元以上之個案公共工程 ","否"]
["711","臺中市政府 ","臺中市新社區公所 ","無 ","「112年度新社區路面整修工程(開口契約)」委託技術服務案 ","勞務","工程服務 ","371663","368123","112/10/18","112/10/20","臺中市－新社區 ","否","","整修工程、拆除工程、疏濬工程、結構補強工程 ","否"]
["712","臺北市政府 ","臺北市政府民政局 ","無 ","「林安泰古厝民俗文物館園區景觀裝置作業」勞務採購案第1次契約變更 ","勞務","都市計劃及景觀建築服務 ","168300","163000","112/09/26","112/10/03","臺北市－全區 ","否","","非中央政府辦理新臺幣一億元以上之公共工程,非受中央政府補助比率逾工程建造經費百分之五十且補助經費達新臺幣一億元以上之個案公共工程,整修工程、拆除工程、疏濬工程、結構補強工程 ","否"]
["713","臺北市政府 ","臺北市立大學 ","教育部體育署 ","天母校區詩欣館游泳池工程委託設計監造技術服務案 ","勞務","建築服務 ","650889","650889","112/10/11","112/10/11","臺北市－全區 ","否","","整修工程、拆除工程、疏濬工程、結構補強工程 ","否"]
["714","臺北市政府 ","臺北市立大學 ","教育部體育署 ","天母校區體育館地坪工程委託設計監造服務案 ","勞務","建築服務 ","604403","604403","112/10/11","112/10/11","臺北市－全區 ","否","","整修工程、拆除工程、疏濬工程、結構補強工程 ","否"]
["715","臺北市政府 ","臺北市立百齡高級中學 ","教育部 ","學校運動操場及周邊設施整建工程（操場跑道）委託技術服務 ","勞務","工程服務 ","599413","562477","112/10/18","112/10/30","臺北市－全區 ","否","","非受中央政府補助比率逾工程建造經費百分之五十且補助經費達新臺幣一億元以上之個案公共工程,整修工程、拆除工程、疏濬工程、結構補強工程 ","否"]
["716","臺北市政府 ","臺北市立啟聰學校 ","臺北市政府教育局 ","113年度校園共融式遊戲場工程委託技術服務採購案 ","勞務","工程服務 ","314090","314090","112/10/13","112/10/17","北部地區－全區 ","否","","非中央政府辦理新臺幣一億元以上之公共工程,非受中央政府補助比率逾工程建造經費百分之五十且補助經費達新臺幣一億元以上之個案公共工程,整修工程、拆除工程、疏濬工程、結構補強工程 ","否"]
["717","臺北市政府 ","臺北市立興雅國民中學 ","臺北市政府教育局 ","112年度無障礙電梯建置工程委託技術服務案 ","勞務","工程服務 ","460000","460000","112/10/04","112/10/30","臺北市－信義區 ","否","","整修工程、拆除工程、疏濬工程、結構補強工程 ","否"]
["718","臺北市政府 ","臺北市立關渡國民中學 ","教育部 ","行政教學大樓老舊廁所整建工程委託設計及監造技術服務案 ","勞務","工程服務 ","165369","165000","112/09/27","112/10/05","臺北市－北投區 ","否","","非中央政府辦理新臺幣一億元以上之公共工程,非受中央政府補助比率逾工程建造經費百分之五十且補助經費達新臺幣一億元以上之個案公共工程 ","否"]
["719","臺北市政府 ","臺北市士林區福林國民小學 ","教育部體育署、臺北市政府教育局 ","112年度室內溫水游泳池設施設備改善工程委託設計監造技術服務採購案 ","勞務","工程服務 ","495688","495688","112/10/17","112/10/19","臺北市－士林區 ","否","","非中央政府辦理新臺幣一億元以上之公共工程,非受中央政府補助比率逾工程建造經費百分之五十且補助經費達新臺幣一億元以上之個案公共工程 ","否"]
["720","臺北市政府 ","臺北市北投區義方國民小學 ","教育部國民及學前教育署 ","112年度活動中心1樓及夾層老舊廁所整修工程委託設計及監造服務採購案 ","勞務","工程服務 ","179127","179127","112/10/13","112/10/17","臺北市－全區 ","否","","整修工程、拆除工程、疏濬工程、結構補強工程 ","否"]
["721","臺北市政府 ","臺北市北投區明德國民小學 ","教育部、臺北市政府教育局 ","112年度明德國小中正樓老舊廁所整修工程委託設計監造技術服務採購案 ","勞務","建築服務 ","298813","298813","112/10/03","112/10/04","臺北市－北投區 ","否","","非中央政府辦理新臺幣一億元以上之公共工程,非受中央政府補助比率逾工程建造經費百分之五十且補助經費達新臺幣一億元以上之個案公共工程,整修工程、拆除工程、疏濬工程、結構補強工程 ","否"]
["722","臺北市政府 ","臺北市士林區天母國民小學 ","臺北市政府教育局 ","111年度活動中心四樓及三樓演藝廳委託設計監造技術服務案後續擴充案 ","勞務","工程服務 ","240178","240178","112/10/19","112/10/24","臺北市－士林區 ","否","","整修工程、拆除工程、疏濬工程、結構補強工程 ","否"]
["723","臺北市政府 ","臺北市信義區福德國民小學 ","臺北市政府教育局 ","112年度四維樓拆除工程委託設計技術服務 ","勞務","建築服務 ","725512","725000","112/10/03","112/10/13","北部地區－全區 ","否","","非中央政府辦理新臺幣一億元以上之公共工程 ","否"]
["724","臺北市政府 ","臺北市中正區河堤國民小學 ","無 ","112年度智仁樓老舊廁所整修工程委託技術服務勞務採購 ","勞務","工程服務 ","190481","190000","112/10/02","112/10/26","臺北市－全區 ","否","","非受中央政府補助比率逾工程建造經費百分之五十且補助經費達新臺幣一億元以上之個案公共工程 ","否"]
["725","臺北市政府 ","臺北市文山區永建國民小學 ","臺北市政府教育局 ","113年度共融式遊戲場設置工程委託設計及監造勞務採購案 ","勞務","建築服務 ","317246","317246","112/10/06","112/10/18","臺北市－文山區 ","否","","非中央政府辦理新臺幣一億元以上之公共工程 ","否"]
["726","臺北市政府 ","臺北市內湖區南湖國民小學 ","無 ","活動中心新建工程(綠建築及安全改善)委託規劃設計及監造技術服務採購案 ","勞務","工程服務 ","198095","198095","112/10/12","112/10/17","北部地區－全區 ","否","","非受中央政府補助比率逾工程建造經費百分之五十且補助經費達新臺幣一億元以上之個案公共工程,規劃取得綠建築標章之建築工程 ","否"]
["727","臺北市政府 ","臺北市政府工務局 ","無 ","歷史建築青邨國建館及圓講堂修復統包工程 ","工程","其他用途建築工程 ","198110000","198000000","112/10/02","112/10/05","臺北市－北投區 ","否","","整修工程、拆除工程、疏濬工程、結構補強工程 ","否"]
["728","臺北市政府 ","臺北市政府工務局新建工程處 ","無 ","「110年度道路維護、緊急搶修、道路新（拓）建及騎樓整平等工程委託監造技術服務」A項（內湖區、南港區）-第3次契約變更 ","勞務","工程服務 ","3652944","3652944","112/09/28","112/10/24","北部地區－全區 ","否","","非中央政府辦理新臺幣一億元以上之公共工程 ","否"]
["729","臺北市政府 ","臺北市政府工務局公園路燈工程管理處 ","無 ","北士科周邊景館廊道建置工程委託設計暨監造技術服務案 ","勞務","工程服務 ","1186700","1186700","112/10/27","112/10/30","臺北市－士林區,臺北市－北投區 ","否","","非中央政府辦理新臺幣一億元以上之公共工程,非受中央政府補助比率逾工程建造經費百分之五十且補助經費達新臺幣一億元以上之個案公共工程 ","否"]
["730","臺北市政府 ","臺北市政府工務局水利工程處 ","無 ","110年度全市河濱公園花海及綠化工程委託設計工作-變更 ","勞務","工程服務 ","119465","117076","112/08/25","112/10/04","北部地區－全區 ","否","","非受中央政府補助比率逾工程建造經費百分之五十且補助經費達新臺幣一億元以上之個案公共工程 ","否"]
["731","臺北市政府 ","臺北市政府工務局水利工程處 ","無 ","舊貴子坑溪下游環境暨排水改善工程等3項工程委託監造工作 ","勞務","工程服務 ","3583480","3500000","112/10/24","112/10/26","北部地區－全區 ","否","","非受中央政府補助比率逾工程建造經費百分之五十且補助經費達新臺幣一億元以上之個案公共工程 ","否"]
["732","臺北市政府 ","臺北市政府工務局大地工程處 ","無 ","110年度貓空地區人行跨越吊橋規劃設計委託技術服務案-第1次契約變更 ","勞務","工程服務 ","976500","976500","112/09/26","112/10/25","臺北市－全區 ","否","","非中央政府辦理新臺幣一億元以上之公共工程,非受中央政府補助比率逾工程建造經費百分之五十且補助經費達新臺幣一億元以上之個案公共工程 ","否"]
["733","臺北市政府 ","臺北市文山區公所 ","無 ","明義區民活動中心室內裝修工程委託規劃設計監造技術服務 ","勞務","工程服務 ","300268","295000","112/10/19","112/10/31","臺北市－文山區 ","否","","整修工程、拆除工程、疏濬工程、結構補強工程 ","否"]
["734","臺北市政府 ","臺北市政府捷運工程局 ","無 ","「環狀線北環段Y19A站出入口B/通風井Y配置調整設計服務工作」契約變更案 ","勞務","工程服務 ","11471156","11400000","112/09/27","112/10/30","北部地區－全區 ","否","","規劃取得綠建築標章之建築工程 ","否"]
["735","臺北市政府 ","臺北市政府捷運工程局第二區工程處 ","無 ","捷運環狀線北環段委託技術服務DF116設計標之（CPN-C01）「CF680C區段標工程CF683施工標新增北機廠與Y22站間連續壁工程」契約變更案 ","勞務","工程服務 ","311153","311000","112/10/03","112/10/11","臺北市－中山區,臺北市－士林區,新北市－三重區,新北市－蘆洲區,新北市－五股區 ","否","","非受中央政府補助比率逾工程建造經費百分之五十且補助經費達新臺幣一億元以上之個案公共工程 ","否"]
["736","臺北市政府 ","臺北市政府捷運工程局第二區工程處 ","無 ","萬大線CQ850A區段標CQ851子施工標及CQ850區段標CQ852子施工標站體因應國家標準CNS11227-1防火門耐火性能新標準契約變更案 ","勞務","工程服務 ","581244","581244","112/08/10","112/10/13","臺北市－松山區 ","否","","非受中央政府補助比率逾工程建造經費百分之五十且補助經費達新臺幣一億元以上之個案公共工程 ","否"]
["737","臺北市政府 ","臺北市都市更新處 ","無 ","112年度委託協助公聽會、聽證等相關行政作業委辦案-第一次契約變更 ","勞務","都市計劃及景觀建築服務 ","385370","385370","112/10/23","112/10/27","臺北市－全區 ","否","","非中央政府辦理新臺幣一億元以上之公共工程 ","否"]
["738","臺北市政府 ","臺北市都市更新處 ","無 ","112年度臺北市都更推廣教育計畫 ","勞務","都市計劃及景觀建築服務 ","450000","450000","112/10/24","112/10/25","臺北市－全區 ","否","","非中央政府辦理新臺幣一億元以上之公共工程 ","否"]
["739","臺北市政府 ","臺北市都市更新處 ","無 ","「中山區北安段一小段公辦都更先期規劃評估案」委託專業服務案 ","勞務","都市計劃及景觀建築服務 ","860000","860000","112/10/06","112/10/11","臺北市－全區 ","否","","非中央政府辦理新臺幣一億元以上之公共工程,非受中央政府補助比率逾工程建造經費百分之五十且補助經費達新臺幣一億元以上之個案公共工程 ","否"]
["740","臺東縣政府 ","臺東縣成功鎮公所 ","無 ","臺東縣成功鎮第一停車場多目標使用第二期鋼棚興建及設施改善工程委託設計及監造技術服務 ","勞務","工程服務 ","1052000","1047000","112/10/25","112/10/31","臺東縣－成功 ","否","","整修工程、拆除工程、疏濬工程、結構補強工程 ","否"]
["741","臺東縣政府 ","臺東縣關山鎮公所 ","無 ","關山鎮112-113年度公共工程委託設計監造技術服務 ","勞務","工程服務 ","9900000","8910000","112/09/26","112/10/12","臺東縣－關山 ","否","","非受中央政府補助比率逾工程建造經費百分之五十且補助經費達新臺幣一億元以上之個案公共工程 ","是"]
["742","臺東縣政府 ","臺東縣太麻里鄉公所 ","無 ","多良火車站攤販區設備改善工程委託設計及監造技術服務案 ","勞務","工程服務 ","621000","608580","112/09/01","112/10/30","臺東縣－太麻里 ","否","","整修工程、拆除工程、疏濬工程、結構補強工程 ","否"]
["743","臺東縣政府 ","臺東縣東河鄉公所 ","臺東縣政府 ","瑪屋撈外部落聚會所規劃設計 ","勞務","建築服務 ","800000","800000","112/10/12","112/10/17","臺東縣－東河 ","否","","非中央政府辦理新臺幣一億元以上之公共工程,非受中央政府補助比率逾工程建造經費百分之五十且補助經費達新臺幣一億元以上之個案公共工程 ","否"]
["744","臺南市政府 ","臺南市立民德國民中學 ","教育部體育署、臺南市政府體育局 ","112年度運動場地整修工程委託規劃設計監造案 ","勞務","工程服務 ","385975","385975","112/10/23","112/10/24","臺南市－北區 ","否","","非中央政府辦理新臺幣一億元以上之公共工程,整修工程、拆除工程、疏濬工程、結構補強工程 ","否"]
["745","臺南市政府 ","臺南市立永康國民中學 ","教育部國民及學前教育署 ","113年度綜合大樓耐震補強工程委託設計監造技術服務勞務採購 ","勞務","工程服務 ","577400","577400","112/10/17","112/10/18","臺南市－永康區 ","否","","整修工程、拆除工程、疏濬工程、結構補強工程 ","否"]
["746","臺南市政府 ","臺南市東區東光國民小學 ","教育部國民及學前教育署 ","臺南市東區東光國民小學112年度東光樓校園能源管理系統(EMS)搬遷勞務採購案 ","勞務","工程服務 ","433650","433650","112/10/12","112/10/13","臺南市－東區 ","否","","整修工程、拆除工程、疏濬工程、結構補強工程 ","否"]
["747","臺南市政府 ","臺南市東區東光國民小學 ","臺南市政府教育局 ","臺南市東區東光國民小學112年度東光館室內冷氣空調機電設備改善工程委託規劃、設計及監造勞務採購 ","勞務","工程服務 ","411692","391107","112/10/17","112/10/19","臺南市－東區 ","否","","整修工程、拆除工程、疏濬工程、結構補強工程 ","否"]
["748","臺南市政府 ","臺南市安南區和順國民小學 ","教育部 ","112年和順國小操場及周邊設施整建工程委託規畫設計監造技術服務 ","勞務","工程服務 ","634230","634200","112/10/13","112/10/18","臺南市－全區 ","否","","整修工程、拆除工程、疏濬工程、結構補強工程 ","否"]
["749","臺南市政府 ","臺南市安平區億載國民小學 ","教育部 ","112年度漁光分校運動操場及周邊設施整建委託技術服務(規劃設計監造)勞務採購案 ","勞務","工程服務 ","231924","231924","112/10/18","112/10/19","臺南市－安平區 ","否","","非中央政府辦理新臺幣一億元以上之公共工程,非受中央政府補助比率逾工程建造經費百分之五十且補助經費達新臺幣一億元以上之個案公共工程 ","否"]
["750","臺南市政府 ","臺南市永康區龍潭國民小學 ","教育部 ","臺南市永康區龍潭國民小學112學年度教育部補助老舊廁所整修工程委託規劃設計監造服務案 ","勞務","建築服務 ","328000","325000","112/09/12","112/10/24","南部地區－全區 ","否","","非中央政府辦理新臺幣一億元以上之公共工程,整修工程、拆除工程、疏濬工程、結構補強工程 ","否"]
["751","臺南市政府 ","臺南市佳里區信義國民小學 ","臺南市政府教育局 ","信義國小「校園周邊暨行車安全道路改善計畫」工程委託設計監造 ","勞務","工程服務 ","787373","787373","112/09/20","112/10/13","臺南市－佳里區 ","否","","非中央政府辦理新臺幣一億元以上之公共工程,非受中央政府補助比率逾工程建造經費百分之五十且補助經費達新臺幣一億元以上之個案公共工程 ","否"]
["752","臺南市政府 ","臺南市政府工務局 ","無 ","南區灣裡人工溼地整修工程規劃設計及監造技術服務案(第1次契約變更) ","勞務","工程服務 ","581591","581591","112/10/03","112/10/11","臺南市－南區 ","否","","整修工程、拆除工程、疏濬工程、結構補強工程 ","否"]
["753","臺南市政府 ","臺南市政府工務局 ","無 ","六塊寮排水治理工程(安定區第二標及第三標一工區)暨台19線和順北橋改建工程 ","工程","橋樑, 高架快速道路, 隧道及地鐵 ","193767872","193700000","112/10/03","112/10/04","臺南市－安定區 ","否","","整修工程、拆除工程、疏濬工程、結構補強工程 ","否"]
["754","臺南市政府 ","臺南市政府工務局 ","無 ","112年度臺南市轄區公園清潔維護及其他臨時指派公園綠美化改善工程監造服務案(開口契約)第一次契約變更(後續擴充) ","勞務","工程服務 ","531044","531044","112/09/23","112/10/03","臺南市－全區 ","否","","非受中央政府補助比率逾工程建造經費百分之五十且補助經費達新臺幣一億元以上之個案公共工程,災後緊急處理、搶修、搶險 ","否"]
["755","臺南市政府 ","臺南市政府工務局 ","無 ","112年度臺南市建築物昇降設備及機械停車設備安全檢查抽複查勞務採購案(第1次契約變更) ","勞務","建築服務 ","425600","425600","112/10/19","112/10/31","臺南市－全區 ","否","","非受中央政府補助比率逾工程建造經費百分之五十且補助經費達新臺幣一億元以上之個案公共工程 ","是"]
["756","臺南市政府 ","臺南市政府地政局 ","無 ","臺南市永康區永大市地重劃工程委託規劃設計暨監造技術服務 ","勞務","都市計劃及景觀建築服務 ","17443608","17443608","112/09/23","112/10/11","臺南市－永康區 ","已依規定納入辦理節能減碳檢核 ","計畫提報核定階段納入辦理節能減碳檢核 ","","否"]
["757","臺南市政府 ","臺南市政府地政局 ","無 ","臺南市安南區朝皇市地重劃工程委託規劃設計暨監造技術服 ","勞務","工程服務 ","18429880","18429880","112/10/12","112/10/19","臺南市－安南區 ","否","","非中央政府辦理新臺幣一億元以上之公共工程 ","否"]
["758","臺南市政府 ","臺南市政府水利局 ","行政院環境保護署 ","臺南市劉厝排水中游水質改善工程委託規劃設計(含後續擴充監造)技術服務 ","勞務","工程服務 ","8205000","8205000","112/10/17","112/10/19","臺南市－佳里區,臺南市－西港區,臺南市－七股區 ","否","","非中央政府辦理新臺幣一億元以上之公共工程 ","否"]
["759","臺南市政府 ","臺南市政府水利局 ","無 ","111年度臺南市污水下水道管線更新工程委託設計監造委託技術服務-第三次後續擴充 ","勞務","工程服務 ","228000","228000","112/09/27","112/10/04","臺南市－全區 ","否","","非中央政府辦理新臺幣一億元以上之公共工程 ","否"]
["760","臺南市政府 ","臺南市政府水利局 ","環境部 ","月津港水質改善截流及現地處理改善細部設計工作(含後續擴充監造) ","勞務","工程服務 ","4976000","4976000","112/10/17","112/10/19","臺南市－鹽水區 ","否","","非中央政府辦理新臺幣一億元以上之公共工程 ","否"]
["761","臺南市政府 ","臺南市政府農業局 ","行政院農業委員會水土保持局 ","溪美社區華瑞生態園區暨水圳旁休憩步道延續工程設計監造案 ","勞務","工程服務 ","1068000","939840","112/06/15","112/10/20","臺南市－善化區 ","否","","非中央政府辦理新臺幣一億元以上之公共工程,非受中央政府補助比率逾工程建造經費百分之五十且補助經費達新臺幣一億元以上之個案公共工程 ","否"]
["762","臺南市政府 ","臺南市政府交通局 ","無 ","112年臺南市新設、改善及搶修交通設施工程委託設計監造服務案(開口契約) ","勞務","綜合工程服務 ","1000000","980000","112/10/17","112/10/19","臺南市－全區 ","否","","非中央政府辦理新臺幣一億元以上之公共工程,非受中央政府補助比率逾工程建造經費百分之五十且補助經費達新臺幣一億元以上之個案公共工程 ","否"]
["763","臺南市政府 ","臺南市公共運輸處 ","無 ","安億停車場改善工程委託規劃設計監造服務 ","勞務","工程服務 ","822148","805705","112/10/18","112/10/18","臺南市－全區 ","否","","整修工程、拆除工程、疏濬工程、結構補強工程 ","否"]
["764","臺南市政府 ","臺南市政府文化局 ","無 ","臺南市赤崁文化園區改造工程-成功國小東北棟室裝與成功館室內裝修擴充採購 ","工程","其他裝修工程 ","154774153","154000000","112/09/14","112/10/16","臺南市－中西區,臺南市－安平區 ","否","","規劃取得綠建築標章之建築工程 ","否"]
["765","臺南市政府 ","臺南市政府文化局 ","無 ","「臺南市赤崁文化園區改造工程」東棟教室結構安全鑑定採購案 ","勞務","工程服務 ","1200000","1200000","112/09/26","112/10/04","臺南市－中西區,臺南市－安平區 ","否","","整修工程、拆除工程、疏濬工程、結構補強工程 ","否"]
["766","臺南市政府 ","臺南市政府文化局 ","無 ","水交社文化園區中央廣場澆灌設施及周邊設施規劃建置案 ","勞務","綜合工程服務 ","850000","774000","112/10/19","112/10/20","臺南市－南區,臺南市－安平區 ","否","","非受中央政府補助比率逾工程建造經費百分之五十且補助經費達新臺幣一億元以上之個案公共工程 ","否"]
["767","臺南市政府 ","臺南市政府文化局 ","無 ","新營文化中心屋頂洩水及防水改善工作 ","勞務","工程服務 ","4722000","4720000","112/10/26","112/10/30","臺南市－安平區,臺南市－新營區 ","否","","非中央政府辦理新臺幣一億元以上之公共工程 ","否"]
["768","臺南市政府 ","臺南市政府都市發展局 ","內政部營建署 ","臺南市七股區鄉村地區整體規劃委託技術服務案 ","勞務","都市計劃及景觀建築服務 ","5000000","5000000","112/10/12","112/10/13","臺南市－全區 ","否","","非受中央政府補助比率逾工程建造經費百分之五十且補助經費達新臺幣一億元以上之個案公共工程 ","否"]
["769","臺南市政府 ","臺南市政府體育局 ","無 ","新營共融式遊戲區周邊二期工程規劃設計監造技術服務案 ","勞務","工程服務 ","215945","209466","112/09/28","112/10/05","臺南市－新營區 ","否","","非中央政府辦理新臺幣一億元以上之公共工程,非受中央政府補助比率逾工程建造經費百分之五十且補助經費達新臺幣一億元以上之個案公共工程,整修工程、拆除工程、疏濬工程、結構補強工程 ","否"]
["770","臺南市政府 ","臺南市政府體育局 ","無 ","新營體育園區環田徑場周邊鋪面改善暨第三停車場整修工程規劃設計監造技術服務案 ","勞務","工程服務 ","486856","472250","112/09/28","112/10/05","臺南市－新營區 ","否","","非中央政府辦理新臺幣一億元以上之公共工程,非受中央政府補助比率逾工程建造經費百分之五十且補助經費達新臺幣一億元以上之個案公共工程,整修工程、拆除工程、疏濬工程、結構補強工程 ","否"]
["771","臺南市政府 ","臺南市政府體育局 ","無 ","臺南市新營區全民運動館新建工程 ","工程","運動及娛樂工程 ","186460000","186460000","112/10/11","112/10/13","臺南市－新營區 ","否","","規劃取得綠建築標章之建築工程 ","否"]
["772","臺南市政府 ","臺南市東區區公所 ","無 ","虎尾寮綠色散步道人本示範區-臺南市東區裕文國小周邊通學步道改善工程委託設計監造 ","勞務","都市計劃及景觀建築服務 ","2625000","2625000","112/09/26","112/10/04","臺南市－東區 ","否","","整修工程、拆除工程、疏濬工程、結構補強工程 ","否"]
["773","臺南市政府 ","臺南市麻豆區公所 ","臺南市政府工務局 ","麻豆區大山國小人行環境優化暨周邊路口及道路品質改善工程委託設計監造 ","勞務","工程服務 ","2581459","2456413","112/10/03","112/10/19","臺南市－麻豆區 ","否","","整修工程、拆除工程、疏濬工程、結構補強工程 ","否"]
["774","臺南市政府 ","臺南市善化區公所 ","無 ","112年度善化區道路及小型工程委託規劃設計及監造案（開口契約）第二期 ","勞務","工程服務 ","4500000","4500000","112/10/12","112/10/23","臺南市－善化區 ","否","","非中央政府辦理新臺幣一億元以上之公共工程,非受中央政府補助比率逾工程建造經費百分之五十且補助經費達新臺幣一億元以上之個案公共工程 ","是"]
["775","臺南市政府 ","臺南市官田區公所 ","臺南市政府民政局 ","臺南市官田區隆田里活動中心用地都市計畫個案變更委託技術服務案 ","勞務","都市計劃及景觀建築服務 ","480000","474000","112/10/12","112/10/13","臺南市－官田區 ","否","","非中央政府辦理新臺幣一億元以上之公共工程,非受中央政府補助比率逾工程建造經費百分之五十且補助經費達新臺幣一億元以上之個案公共工程 ","否"]
["776","臺南市政府 ","臺南市安定區公所 ","無 ","安定區納骨堂增設神主牌位堂新建工程 ","工程","其他土木工程 ","113639925","113000000","112/10/20","112/10/24","臺南市－安定區 ","否","","非中央政府辦理新臺幣一億元以上之公共工程,規劃取得綠建築標章之建築工程 ","否"]
["777","臺南市政府 ","臺南市仁德區公所 ","無 ","113年度臺南市仁德區道路管理養護(開口契約)委外測設監造 ","勞務","工程服務 ","536250","536250","112/10/20","112/10/23","臺南市－仁德區 ","否","","整修工程、拆除工程、疏濬工程、結構補強工程 ","否"]
["778","臺灣高等法院 ","臺灣花蓮地方法院 ","無 ","行政大樓側棟及後棟建造斜屋頂防漏工程委託技術服務採購案 ","勞務","工程服務 ","358826","355000","112/10/12","112/10/19","花蓮縣－全區 ","否","","非中央政府辦理新臺幣一億元以上之公共工程 ","否"]
["779","澎湖縣政府 ","澎湖縣政府農漁局 ","無 ","湖西鄉農村再生社區環境改善工程委託設計監造 ","勞務","工程服務 ","600000","600000","112/10/20","112/10/23","澎湖縣－全區 ","否","","整修工程、拆除工程、疏濬工程、結構補強工程 ","否"]
["780","澎湖縣政府 ","澎湖縣湖西鄉公所 ","無 ","湖西鄉道路改善工程許家村及第3、4標委託設計監造服務 ","勞務","綜合工程服務 ","3063000","1529856","112/10/11","112/10/13","澎湖縣－湖西 ","否","","非中央政府辦理新臺幣一億元以上之公共工程,非受中央政府補助比率逾工程建造經費百分之五十且補助經費達新臺幣一億元以上之個案公共工程,整修工程、拆除工程、疏濬工程、結構補強工程 ","否"]
["781","澎湖縣政府 ","澎湖縣西嶼鄉公所 ","衛生福利部、內政部 ","澎湖縣西嶼鄉公所綜合大樓暨池東池西活動中心拆除重建併設置托嬰中心工程 ","工程","其他用途建築工程 ","173225000","173000000","112/09/27","112/10/04","離島地區－全區 ","否","","非受中央政府補助比率逾工程建造經費百分之五十且補助經費達新臺幣一億元以上之個案公共工程","否"]
["782","澎湖縣政府 ","澎湖縣西嶼鄉池東國民小學 ","澎湖縣政府、教育部國民及學前教育署 ","池東國小廁所整修設計監造 ","勞務","工程服務 ","400000","400000","112/10/19","112/10/20","澎湖縣－全區 ","否","","整修工程、拆除工程、疏濬工程、結構補強工程 ","否"]
["783","衛生福利部 ","衛生福利部 ","無 ","111年度「中興新村辦公室遷移至省府大樓裝修工程委託規劃設計監造技術服務」第1次契約變更 ","勞務","工程服務 ","268000","260000","112/10/19","112/10/20","南投縣－南投 ","否","","非中央政府辦理新臺幣一億元以上之公共工程 ","否"]
["784","衛生福利部 ","衛生福利部 ","無 ","「衛生福利部大樓新聞媒體發布室（東側衛福藝廊）空間裝修工程」委託規劃設計監造技術服務 ","勞務","建築服務 ","372000","372000","112/10/19","112/10/31","臺北市－南港區 ","否","","整修工程、拆除工程、疏濬工程、結構補強工程 ","否"]
["785","衛生福利部 ","衛生福利部 ","無 ","衛生福利部北投檔案庫房整修工程委託規劃設計監造技術服務 ","勞務","建築服務 ","1890000","1890000","112/10/05","112/10/12","北部地區－全區 ","否","","整修工程、拆除工程、疏濬工程、結構補強工程 ","否"]
["786","衛生福利部 ","衛生福利部中區兒童之家 ","無 ","地下室機械車位改善案之委託規劃設計及監造採購案 ","勞務","工程服務 ","415224","380000","112/10/16","112/10/18","臺中市－西區 ","否","","非中央政府辦理新臺幣一億元以上之公共工程,非受中央政府補助比率逾工程建造經費百分之五十且補助經費達新臺幣一億元以上之個案公共工程,整修工程、拆除工程、疏濬工程、結構補強工程 ","否"]
["787","衛生福利部 ","衛生福利部中區兒童之家 ","無 ","修遠樓空調設備更新及外牆改善計畫案委託規劃設計及監造技術服務採購案 ","勞務","工程服務 ","927013","927013","112/10/24","112/10/27","臺中市－西區 ","否","","非中央政府辦理新臺幣一億元以上之公共工程,非受中央政府補助比率逾工程建造經費百分之五十且補助經費達新臺幣一億元以上之個案公共工程,整修工程、拆除工程、疏濬工程、結構補強工程 ","否"]
["788","衛生福利部 ","衛生福利部基隆醫院 ","無 ","院區消防設備改善工程委託設計監造技術服務 ","勞務","工程服務 ","1885345","1800505","112/09/28","112/10/06","基隆市－信義區 ","否","","非受中央政府補助比率逾工程建造經費百分之五十且補助經費達新臺幣一億元以上之個案公共工程,整修工程、拆除工程、疏濬工程、結構補強工程 ","否"]
["789","衛生福利部 ","衛生福利部嘉義醫院 ","無 ","6樓西側病房整修工程委託規劃設計監造案 ","勞務","建築服務 ","816435","801179","112/10/25","112/10/30","嘉義市－西區 ","否","","非中央政府辦理新臺幣一億元以上之公共工程,非受中央政府補助比率逾工程建造經費百分之五十且補助經費達新臺幣一億元以上之個案公共工程,整修工程、拆除工程、疏濬工程、結構補強工程 ","否"]
["790","衛生福利部 ","衛生福利部玉里醫院 ","無 ","溪口精神護理之家建物補照作業 ","勞務","建築服務 ","830500","825000","112/10/12","112/10/19","花蓮縣－壽豐 ","否","","非中央政府辦理新臺幣一億元以上之公共工程,整修工程、拆除工程、疏濬工程、結構補強工程 ","否"]
["791","環境部 ","環境部氣候變遷署 ","無 ","環境部氣候變遷署舊財政大樓8樓辦公廳舍整修暨2、7樓辦公空間調整工程委託規劃設計監造服務案 ","勞務","工程服務 ","1300000","1300000","112/10/16","112/10/26","臺北市－中正區 ","否","","整修工程、拆除工程、疏濬工程、結構補強工程 ","否"]
["792","環境部 ","環境部資源循環署 ","無 ","環境部資源循環署潮州大樓辦公空間裝修工程委託設計監造服務案 ","勞務","工程服務 ","4000000","3964000","112/09/28","112/10/13","臺北市－中正區 ","否","","整修工程、拆除工程、疏濬工程、結構補強工程 ","否"]